Organisation Code,Organisation Label,Effective Date,Organisational Unit,Service Division Label,Category Internal Name,Purpose,Detailed Expenditure Code,Payment Date,Transaction Number,Irrecoverable VAT Amount,Amount,Capital Or Revenue,Beneficiary Name,Procurement Card
Http://opendatacommunities.org/id/metropolitan-district-council/leeds,Leeds City Council,28/02/2023,Children and Families,Social Care,Supplies and Services,Consultancy Services,259,03/02/2023,2302-00001,0.00,9737.50,R,A & F Lloyd Training Limited,No
Http://opendatacommunities.org/id/metropolitan-district-council/leeds,Leeds City Council,28/02/2023,Adults and Health,Services For Older People Under 65 P/Dis,Agency Payments,Sheltered Accommodation,569,01/02/2023,2302-00002,0.00,5400.00,R,A & V TRANSITIONAL HOMES,No
Http://opendatacommunities.org/id/metropolitan-district-council/leeds,Leeds City Council,28/02/2023,Children and Families,Social Care,Agency Payments,Placement Support,550,24/02/2023,2302-00003,0.00,250.00,R,REDACTED PERSONAL DATA,No
Http://opendatacommunities.org/id/metropolitan-district-council/leeds,Leeds City Council,28/02/2023,Resources,Leeds Building Services,Supplies and Services,Other Hired And Contracted Services,265,03/02/2023,2302-00004,0.00,25445.65,R,A Coole Electrical Ltd,No
Http://opendatacommunities.org/id/metropolitan-district-council/leeds,Leeds City Council,28/02/2023,Resources,Leeds Building Services,Supplies and Services,Other Hired And Contracted Services,265,03/02/2023,2302-00005,0.00,12112.84,R,A Coole Electrical Ltd,No
Http://opendatacommunities.org/id/metropolitan-district-council/leeds,Leeds City Council,28/02/2023,Resources,Leeds Building Services,Supplies and Services,Other Hired And Contracted Services,265,10/02/2023,2302-00006,0.00,3898.68,R,A Coole Electrical Ltd,No
Http://opendatacommunities.org/id/metropolitan-district-council/leeds,Leeds City Council,28/02/2023,Resources,Leeds Building Services,Supplies and Services,Other Hired And Contracted Services,265,17/02/2023,2302-00007,0.00,9906.17,R,A Coole Electrical Ltd,No
Http://opendatacommunities.org/id/metropolitan-district-council/leeds,Leeds City Council,28/02/2023,Resources,Leeds Building Services,Supplies and Services,Other Hired And Contracted Services,265,17/02/2023,2302-00008,0.00,223.18,R,A Coole Electrical Ltd,No
Http://opendatacommunities.org/id/metropolitan-district-council/leeds,Leeds City Council,28/02/2023,Communities Housing and Environment,Customer Access,Supplies and Services,Bought In Professional Services,277,08/02/2023,2302-00009,0.00,13.50,R,REDACTED COMMERCIAL CONFIDENTIALITY,No
Http://opendatacommunities.org/id/metropolitan-district-council/leeds,Leeds City Council,28/02/2023,Communities Housing and Environment,Customer Access,Supplies and Services,Bought In Professional Services,277,08/02/2023,2302-00010,0.00,18.00,R,REDACTED COMMERCIAL CONFIDENTIALITY,No
Http://opendatacommunities.org/id/metropolitan-district-council/leeds,Leeds City Council,28/02/2023,Communities Housing and Environment,Customer Access,Supplies and Services,Bought In Professional Services,277,08/02/2023,2302-00011,0.00,22.50,R,REDACTED COMMERCIAL CONFIDENTIALITY,No
Http://opendatacommunities.org/id/metropolitan-district-council/leeds,Leeds City Council,28/02/2023,Communities Housing and Environment,Customer Access,Supplies and Services,Bought In Professional Services,277,15/02/2023,2302-00012,0.00,19.50,R,REDACTED COMMERCIAL CONFIDENTIALITY,No
Http://opendatacommunities.org/id/metropolitan-district-council/leeds,Leeds City Council,28/02/2023,Communities Housing and Environment,Customer Access,Supplies and Services,Bought In Professional Services,277,15/02/2023,2302-00013,0.00,19.50,R,REDACTED COMMERCIAL CONFIDENTIALITY,No
Http://opendatacommunities.org/id/metropolitan-district-council/leeds,Leeds City Council,28/02/2023,Communities Housing and Environment,Customer Access,Supplies and Services,Bought In Professional Services,277,22/02/2023,2302-00014,0.00,36.00,R,REDACTED COMMERCIAL CONFIDENTIALITY,No
Http://opendatacommunities.org/id/metropolitan-district-council/leeds,Leeds City Council,28/02/2023,Communities Housing and Environment,Customer Access,Supplies and Services,Bought In Professional Services,277,22/02/2023,2302-00015,0.00,12.00,R,REDACTED COMMERCIAL CONFIDENTIALITY,No
Http://opendatacommunities.org/id/metropolitan-district-council/leeds,Leeds City Council,28/02/2023,Strategic Landlord,HRA Housing Leeds,Capital,OTHER COSTS,7,23/02/2023,2302-00016,0.00,100.00,C,REDACTED PERSONAL DATA,No
Http://opendatacommunities.org/id/metropolitan-district-council/leeds,Leeds City Council,28/02/2023,Strategic Landlord,HRA Housing Leeds,Capital,OTHER COSTS,7,06/02/2023,2302-00017,0.00,100.00,C,REDACTED PERSONAL DATA,No
Http://opendatacommunities.org/id/metropolitan-district-council/leeds,Leeds City Council,28/02/2023,Children and Families,Social Care,Agency Payments,Services Rendered By Other Organisations,511,01/02/2023,2302-00018,0.00,2673.60,R,REDACTED PERSONAL DATA,No
Http://opendatacommunities.org/id/metropolitan-district-council/leeds,Leeds City Council,28/02/2023,Children and Families,Social Care,Agency Payments,Services Rendered By Voluntary Sector,505,03/02/2023,2302-00019,0.00,10554.24,R,REDACTED PERSONAL DATA,No
Http://opendatacommunities.org/id/metropolitan-district-council/leeds,Leeds City Council,28/02/2023,Children and Families,Social Care,Agency Payments,Services Rendered By Voluntary Sector,505,17/02/2023,2302-00020,0.00,6384.00,R,REDACTED PERSONAL DATA,No
Http://opendatacommunities.org/id/metropolitan-district-council/leeds,Leeds City Council,28/02/2023,Children and Families,Social Care,Agency Payments,Contact,548,16/02/2023,2302-00021,0.00,16.60,R,REDACTED PERSONAL DATA,No
Http://opendatacommunities.org/id/metropolitan-district-council/leeds,Leeds City Council,28/02/2023,Strategic Landlord,HRA Housing Leeds,Capital,OTHER COSTS,7,15/02/2023,2302-00022,0.00,100.00,C,REDACTED PERSONAL DATA,No
Http://opendatacommunities.org/id/metropolitan-district-council/leeds,Leeds City Council,28/02/2023,Children and Families,Social Care,Agency Payments,Services Rendered By Other Organisations,511,03/02/2023,2302-00023,0.00,86.04,R,REDACTED PERSONAL DATA,No
Http://opendatacommunities.org/id/metropolitan-district-council/leeds,Leeds City Council,28/02/2023,Strategic Landlord,HRA Housing Leeds,Capital,OTHER COSTS,7,16/02/2023,2302-00024,0.00,100.00,C,REDACTED PERSONAL DATA,No
Http://opendatacommunities.org/id/metropolitan-district-council/leeds,Leeds City Council,28/02/2023,Communities Housing and Environment,Strategic Housing Partnership & Support,Supplies and Services,Other Hired And Contracted Services,265,09/02/2023,2302-00025,0.00,1400.00,R,REDACTED PERSONAL DATA,No
Http://opendatacommunities.org/id/metropolitan-district-council/leeds,Leeds City Council,28/02/2023,Adults and Health,Other Generic Services,Agency Payments,Fees To Carers,563,03/02/2023,2302-00026,0.00,125.31,R,REDACTED PERSONAL DATA,No
Http://opendatacommunities.org/id/metropolitan-district-council/leeds,Leeds City Council,28/02/2023,Adults and Health,Other Generic Services,Agency Payments,Fees To Carers,563,16/02/2023,2302-00027,0.00,518.40,R,REDACTED PERSONAL DATA,No
Http://opendatacommunities.org/id/metropolitan-district-council/leeds,Leeds City Council,28/02/2023,Adults and Health,Other Generic Services,Agency Payments,Fees To Carers,563,16/02/2023,2302-00028,0.00,56.70,R,REDACTED PERSONAL DATA,No
Http://opendatacommunities.org/id/metropolitan-district-council/leeds,Leeds City Council,28/02/2023,Resources,Leeds Building Services,Supplies and Services,Operational Materials,205,03/02/2023,2302-00029,0.00,2270.00,R,A J H  Pump Supply & Repair Ltd,No
Http://opendatacommunities.org/id/metropolitan-district-council/leeds,Leeds City Council,28/02/2023,Resources,Leeds Building Services,Supplies and Services,Operational Materials,205,09/02/2023,2302-00030,0.00,1889.00,R,A J H  Pump Supply & Repair Ltd,No
Http://opendatacommunities.org/id/metropolitan-district-council/leeds,Leeds City Council,28/02/2023,Resources,Leeds Building Services,Supplies and Services,Operational Materials,205,09/02/2023,2302-00031,0.00,1235.00,R,A J H  Pump Supply & Repair Ltd,No
Http://opendatacommunities.org/id/metropolitan-district-council/leeds,Leeds City Council,28/02/2023,Resources,Leeds Building Services,Supplies and Services,Other Hired And Contracted Services,265,24/02/2023,2302-00032,0.00,180.00,R,A J H  Pump Supply & Repair Ltd,No
Http://opendatacommunities.org/id/metropolitan-district-council/leeds,Leeds City Council,28/02/2023,Children and Families,Social Care,Agency Payments,Services Rendered By Other Organisations,511,03/02/2023,2302-00033,0.00,1147.20,R,REDACTED PERSONAL DATA,No
Http://opendatacommunities.org/id/metropolitan-district-council/leeds,Leeds City Council,28/02/2023,Strategic Landlord,Housing Management,Supplies and Services,Compensation Claims,200,13/02/2023,2302-00034,0.00,100.00,R,REDACTED PERSONAL DATA,No
Http://opendatacommunities.org/id/metropolitan-district-council/leeds,Leeds City Council,28/02/2023,Strategic Landlord,HRA Housing Leeds,Capital,OTHER COSTS,7,23/02/2023,2302-00035,0.00,100.00,C,REDACTED PERSONAL DATA,No
Http://opendatacommunities.org/id/metropolitan-district-council/leeds,Leeds City Council,28/02/2023,Children and Families,Social Care,Employees,Agency Staff,8,09/02/2023,2302-00036,0.00,814.00,R,A Little Something Extra Ltd,No
Http://opendatacommunities.org/id/metropolitan-district-council/leeds,Leeds City Council,28/02/2023,Children and Families,Social Care,Employees,Agency Staff,8,09/02/2023,2302-00037,0.00,592.00,R,A Little Something Extra Ltd,No
Http://opendatacommunities.org/id/metropolitan-district-council/leeds,Leeds City Council,28/02/2023,Children and Families,Social Care,Employees,Agency Staff,8,09/02/2023,2302-00038,0.00,814.00,R,A Little Something Extra Ltd,No
Http://opendatacommunities.org/id/metropolitan-district-council/leeds,Leeds City Council,28/02/2023,Children and Families,Social Care,Employees,Agency Staff,8,09/02/2023,2302-00039,0.00,1017.50,R,A Little Something Extra Ltd,No
Http://opendatacommunities.org/id/metropolitan-district-council/leeds,Leeds City Council,28/02/2023,Children and Families,Social Care,Employees,Agency Staff,8,13/02/2023,2302-00040,0.00,740.00,R,A Little Something Extra Ltd,No
Http://opendatacommunities.org/id/metropolitan-district-council/leeds,Leeds City Council,28/02/2023,Children and Families,Social Care,Employees,Agency Staff,8,13/02/2023,2302-00041,0.00,1387.50,R,A Little Something Extra Ltd,No
Http://opendatacommunities.org/id/metropolitan-district-council/leeds,Leeds City Council,28/02/2023,Children and Families,Social Care,Employees,Agency Staff,8,13/02/2023,2302-00042,0.00,1110.00,R,A Little Something Extra Ltd,No
Http://opendatacommunities.org/id/metropolitan-district-council/leeds,Leeds City Council,28/02/2023,Children and Families,Social Care,Supplies and Services,Teaching Materials,202,24/02/2023,2302-00043,0.00,1100.00,R,A Little Something Extra Ltd,No
Http://opendatacommunities.org/id/metropolitan-district-council/leeds,Leeds City Council,28/02/2023,Children and Families,Social Care,Employees,Agency Staff,8,24/02/2023,2302-00044,0.00,-231.25,R,A Little Something Extra Ltd,No
Http://opendatacommunities.org/id/metropolitan-district-council/leeds,Leeds City Council,28/02/2023,Children and Families,Social Care,Employees,Agency Staff,8,28/02/2023,2302-00045,0.00,416.25,R,A Little Something Extra Ltd,No
Http://opendatacommunities.org/id/metropolitan-district-council/leeds,Leeds City Council,28/02/2023,Communities Housing and Environment,Customer Access,Supplies and Services,Bought In Professional Services,277,08/02/2023,2302-00046,0.00,18.00,R,A MOHAMMED,No
Http://opendatacommunities.org/id/metropolitan-district-council/leeds,Leeds City Council,28/02/2023,Communities Housing and Environment,Customer Access,Supplies and Services,Bought In Professional Services,277,23/02/2023,2302-00047,0.00,27.00,R,A MUSALAM,No
Http://opendatacommunities.org/id/metropolitan-district-council/leeds,Leeds City Council,28/02/2023,Children and Families,Social Care,Agency Payments,Services Rendered By Other Organisations,511,01/02/2023,2302-00048,0.00,668.40,R,REDACTED PERSONAL DATA,No
Http://opendatacommunities.org/id/metropolitan-district-council/leeds,Leeds City Council,28/02/2023,Children and Families,Social Care,Agency Payments,Services Rendered By Other Organisations,511,03/02/2023,2302-00049,0.00,3154.80,R,REDACTED PERSONAL DATA,No
Http://opendatacommunities.org/id/metropolitan-district-council/leeds,Leeds City Council,28/02/2023,Children and Families,Social Care,Agency Payments,Services Rendered By Voluntary Sector,505,10/02/2023,2302-00050,0.00,3360.00,R,REDACTED PERSONAL DATA,No
Http://opendatacommunities.org/id/metropolitan-district-council/leeds,Leeds City Council,28/02/2023,Communities Housing and Environment,Customer Access,Supplies and Services,Bought In Professional Services,277,01/02/2023,2302-00051,0.00,24.00,R,A NAMAKI,No
Http://opendatacommunities.org/id/metropolitan-district-council/leeds,Leeds City Council,28/02/2023,Communities Housing and Environment,Customer Access,Supplies and Services,Bought In Professional Services,277,01/02/2023,2302-00052,0.00,18.00,R,A NAMAKI,No
Http://opendatacommunities.org/id/metropolitan-district-council/leeds,Leeds City Council,28/02/2023,Communities Housing and Environment,Customer Access,Supplies and Services,Bought In Professional Services,277,01/02/2023,2302-00053,0.00,18.00,R,A NAMAKI,No
Http://opendatacommunities.org/id/metropolitan-district-council/leeds,Leeds City Council,28/02/2023,Communities Housing and Environment,Customer Access,Supplies and Services,Bought In Professional Services,277,01/02/2023,2302-00054,0.00,13.50,R,A NAMAKI,No
Http://opendatacommunities.org/id/metropolitan-district-council/leeds,Leeds City Council,28/02/2023,Communities Housing and Environment,Customer Access,Supplies and Services,Bought In Professional Services,277,01/02/2023,2302-00055,0.00,18.00,R,A NAMAKI,No
Http://opendatacommunities.org/id/metropolitan-district-council/leeds,Leeds City Council,28/02/2023,Communities Housing and Environment,Customer Access,Supplies and Services,Bought In Professional Services,277,01/02/2023,2302-00056,0.00,18.00,R,A NAMAKI,No
Http://opendatacommunities.org/id/metropolitan-district-council/leeds,Leeds City Council,28/02/2023,Communities Housing and Environment,Customer Access,Supplies and Services,Bought In Professional Services,277,01/02/2023,2302-00057,0.00,18.00,R,A NAMAKI,No
Http://opendatacommunities.org/id/metropolitan-district-council/leeds,Leeds City Council,28/02/2023,Communities Housing and Environment,Customer Access,Supplies and Services,Bought In Professional Services,277,08/02/2023,2302-00058,0.00,18.00,R,A NAMAKI,No
Http://opendatacommunities.org/id/metropolitan-district-council/leeds,Leeds City Council,28/02/2023,Communities Housing and Environment,Customer Access,Supplies and Services,Bought In Professional Services,277,08/02/2023,2302-00059,0.00,18.00,R,A NAMAKI,No
Http://opendatacommunities.org/id/metropolitan-district-council/leeds,Leeds City Council,28/02/2023,Communities Housing and Environment,Customer Access,Supplies and Services,Bought In Professional Services,277,08/02/2023,2302-00060,0.00,22.50,R,A NAMAKI,No
Http://opendatacommunities.org/id/metropolitan-district-council/leeds,Leeds City Council,28/02/2023,Communities Housing and Environment,Customer Access,Supplies and Services,Bought In Professional Services,277,08/02/2023,2302-00061,0.00,27.00,R,A NAMAKI,No
Http://opendatacommunities.org/id/metropolitan-district-council/leeds,Leeds City Council,28/02/2023,Communities Housing and Environment,Customer Access,Supplies and Services,Bought In Professional Services,277,08/02/2023,2302-00062,0.00,18.00,R,A NAMAKI,No
Http://opendatacommunities.org/id/metropolitan-district-council/leeds,Leeds City Council,28/02/2023,Communities Housing and Environment,Customer Access,Supplies and Services,Bought In Professional Services,277,15/02/2023,2302-00063,0.00,108.00,R,A NAMAKI,No
Http://opendatacommunities.org/id/metropolitan-district-council/leeds,Leeds City Council,28/02/2023,Communities Housing and Environment,Customer Access,Supplies and Services,Bought In Professional Services,277,15/02/2023,2302-00064,0.00,108.00,R,A NAMAKI,No
Http://opendatacommunities.org/id/metropolitan-district-council/leeds,Leeds City Council,28/02/2023,Communities Housing and Environment,Customer Access,Supplies and Services,Bought In Professional Services,277,15/02/2023,2302-00065,0.00,18.00,R,A NAMAKI,No
Http://opendatacommunities.org/id/metropolitan-district-council/leeds,Leeds City Council,28/02/2023,Communities Housing and Environment,Customer Access,Supplies and Services,Bought In Professional Services,277,15/02/2023,2302-00066,0.00,54.00,R,A NAMAKI,No
Http://opendatacommunities.org/id/metropolitan-district-council/leeds,Leeds City Council,28/02/2023,Communities Housing and Environment,Customer Access,Supplies and Services,Bought In Professional Services,277,15/02/2023,2302-00067,0.00,18.00,R,A NAMAKI,No
Http://opendatacommunities.org/id/metropolitan-district-council/leeds,Leeds City Council,28/02/2023,Communities Housing and Environment,Customer Access,Supplies and Services,Bought In Professional Services,277,22/02/2023,2302-00068,0.00,108.00,R,A NAMAKI,No
Http://opendatacommunities.org/id/metropolitan-district-council/leeds,Leeds City Council,28/02/2023,Communities Housing and Environment,Customer Access,Supplies and Services,Bought In Professional Services,277,22/02/2023,2302-00069,0.00,108.00,R,A NAMAKI,No
Http://opendatacommunities.org/id/metropolitan-district-council/leeds,Leeds City Council,28/02/2023,Communities Housing and Environment,Customer Access,Supplies and Services,Bought In Professional Services,277,22/02/2023,2302-00070,0.00,18.00,R,A NAMAKI,No
Http://opendatacommunities.org/id/metropolitan-district-council/leeds,Leeds City Council,28/02/2023,Communities Housing and Environment,Customer Access,Supplies and Services,Bought In Professional Services,277,22/02/2023,2302-00071,0.00,18.00,R,A NAMAKI,No
Http://opendatacommunities.org/id/metropolitan-district-council/leeds,Leeds City Council,28/02/2023,Communities Housing and Environment,Customer Access,Supplies and Services,Bought In Professional Services,277,22/02/2023,2302-00072,0.00,18.00,R,A NAMAKI,No
Http://opendatacommunities.org/id/metropolitan-district-council/leeds,Leeds City Council,28/02/2023,Communities Housing and Environment,Customer Access,Supplies and Services,Bought In Professional Services,277,22/02/2023,2302-00073,0.00,18.00,R,A NAMAKI,No
Http://opendatacommunities.org/id/metropolitan-district-council/leeds,Leeds City Council,28/02/2023,Communities Housing and Environment,Customer Access,Supplies and Services,Bought In Professional Services,277,22/02/2023,2302-00074,0.00,18.00,R,A NAMAKI,No
Http://opendatacommunities.org/id/metropolitan-district-council/leeds,Leeds City Council,28/02/2023,Communities Housing and Environment,Customer Access,Supplies and Services,Bought In Professional Services,277,22/02/2023,2302-00075,0.00,54.00,R,A NAMAKI,No
Http://opendatacommunities.org/id/metropolitan-district-council/leeds,Leeds City Council,28/02/2023,Children and Families,Social Care,Agency Payments,Services Rendered By Other Organisations,511,03/02/2023,2302-00076,0.00,286.80,R,REDACTED PERSONAL DATA,No
Http://opendatacommunities.org/id/metropolitan-district-council/leeds,Leeds City Council,28/02/2023,Strategic Landlord,HRA Housing Leeds,Capital,CONSTRUCTION,3,02/02/2023,2302-00077,0.00,100.00,C,REDACTED PERSONAL DATA,No
Http://opendatacommunities.org/id/metropolitan-district-council/leeds,Leeds City Council,28/02/2023,City Development,Libraries Arts & Heritage,Supplies and Services,Non-Recurring Grants,227,02/02/2023,2302-00078,0.00,1000.00,R,A Quiet Word Ltd,No
Http://opendatacommunities.org/id/metropolitan-district-council/leeds,Leeds City Council,28/02/2023,Strategic Landlord,HRA Housing Leeds,Capital,OTHER COSTS,7,15/02/2023,2302-00079,0.00,100.00,C,REDACTED PERSONAL DATA,No
Http://opendatacommunities.org/id/metropolitan-district-council/leeds,Leeds City Council,28/02/2023,Resources,Commercial Services,Supplies and Services,Other Hired And Contracted Services,265,21/02/2023,2302-00080,0.00,140.80,R,REDACTED PERSONAL DATA,No
Http://opendatacommunities.org/id/metropolitan-district-council/leeds,Leeds City Council,28/02/2023,Resources,Shared Services,Supplies and Services,Other Hired And Contracted Services,265,08/02/2023,2302-00081,0.00,50.00,R,A Star Couriers Ltd,No
Http://opendatacommunities.org/id/metropolitan-district-council/leeds,Leeds City Council,28/02/2023,Communities Housing and Environment,Waste Management,Employees,Training & Development,70,17/02/2023,2302-00082,0.00,647.10,R,A T Nerac Ltd,No
Http://opendatacommunities.org/id/metropolitan-district-council/leeds,Leeds City Council,28/02/2023,Communities Housing and Environment,Waste Management,Employees,Training & Development,70,22/02/2023,2302-00083,0.00,531.80,R,A T Nerac Ltd,No
Http://opendatacommunities.org/id/metropolitan-district-council/leeds,Leeds City Council,28/02/2023,Strategic Landlord,HRA Housing Leeds,Capital,OTHER COSTS,7,15/02/2023,2302-00084,0.00,100.00,C,REDACTED PERSONAL DATA,No
Http://opendatacommunities.org/id/metropolitan-district-council/leeds,Leeds City Council,28/02/2023,Children and Families,Social Care,Agency Payments,Services Rendered By Other Organisations,511,01/02/2023,2302-00085,0.00,501.30,R,REDACTED PERSONAL DATA,No
Http://opendatacommunities.org/id/metropolitan-district-council/leeds,Leeds City Council,28/02/2023,Children and Families,Social Care,Agency Payments,Services Rendered By Other Organisations,511,03/02/2023,2302-00086,0.00,573.60,R,REDACTED PERSONAL DATA,No
Http://opendatacommunities.org/id/metropolitan-district-council/leeds,Leeds City Council,28/02/2023,City Development,Libraries Arts & Heritage,Transport,Car & Motorcycle Allowances,311,01/02/2023,2302-00087,0.00,91.00,R,REDACTED PERSONAL DATA,No
Http://opendatacommunities.org/id/metropolitan-district-council/leeds,Leeds City Council,28/02/2023,Communities Housing and Environment,Strategic Housing Partnership & Support ,Supplies and Services,Food & Drink,231,11/01/2023,2302-00088,0.00,341.99,R,A&h Bros Ltd,Yes
Http://opendatacommunities.org/id/metropolitan-district-council/leeds,Leeds City Council,28/02/2023,Resources,Leeds Building Services,Supplies and Services,Other Hired And Contracted Services,265,20/02/2023,2302-00089,0.00,3925.00,R,A1 SHEET METAL FLUES LTD,No
Http://opendatacommunities.org/id/metropolitan-district-council/leeds,Leeds City Council,28/02/2023,Resources,Leeds Building Services,Supplies and Services,Other Hired And Contracted Services,265,02/02/2023,2302-00090,0.00,180.00,R,A1 STAIR LIFT SERVICES,No
Http://opendatacommunities.org/id/metropolitan-district-council/leeds,Leeds City Council,28/02/2023,Resources,Leeds Building Services,Supplies and Services,Other Hired And Contracted Services,265,10/02/2023,2302-00091,0.00,22.50,R,A1 STAIR LIFT SERVICES,No
Http://opendatacommunities.org/id/metropolitan-district-council/leeds,Leeds City Council,28/02/2023,Resources,Leeds Building Services,Supplies and Services,Other Hired And Contracted Services,265,10/02/2023,2302-00092,0.00,157.50,R,A1 STAIR LIFT SERVICES,No
Http://opendatacommunities.org/id/metropolitan-district-council/leeds,Leeds City Council,28/02/2023,Communities Housing and Environment,Parks and Countryside ,Supplies and Services,Operational Furniture And Equipment,203,04/01/2023,2302-00093,0.00,308.00,R,A1mobile.Co.Uk,Yes
Http://opendatacommunities.org/id/metropolitan-district-council/leeds,Leeds City Council,28/02/2023,Communities Housing and Environment,Parks and Countryside ,Transport,External Hire -Occasional,304,01/02/2023,2302-00094,0.00,308.00,R,A1mobile.Co.Uk,Yes
Http://opendatacommunities.org/id/metropolitan-district-council/leeds,Leeds City Council,28/02/2023,Communities Housing and Environment,Customer Access,Supplies and Services,Bought In Professional Services,277,08/02/2023,2302-00095,0.00,1150.00,R,AA Global Language Services Ltd,No
Http://opendatacommunities.org/id/metropolitan-district-council/leeds,Leeds City Council,28/02/2023,Communities Housing and Environment,Parks and Countryside ,Supplies and Services,Resaleable Materials,204,30/01/2023,2302-00096,0.00,218.31,R,Aagrah Foods,Yes
Http://opendatacommunities.org/id/metropolitan-district-council/leeds,Leeds City Council,28/02/2023,City Development,Recreation,External Income,Sporting & Other Recreational Fees,928,20/02/2023,2302-00097,0.00,171.74,R,REDACTED PERSONAL DATA,No
Http://opendatacommunities.org/id/metropolitan-district-council/leeds,Leeds City Council,28/02/2023,Adults and Health,Services For Adults Under 65 Learn/Dis,Internal Recharges,Legal Disbursements,411,15/02/2023,2302-00098,0.00,400.00,R,Aaqib Javed,No
Http://opendatacommunities.org/id/metropolitan-district-council/leeds,Leeds City Council,28/02/2023,Children and Families,Social Care,Internal Recharges,Legal Disbursements,411,17/02/2023,2302-00099,0.00,375.00,R,Aaqib Javed,No
Http://opendatacommunities.org/id/metropolitan-district-council/leeds,Leeds City Council,28/02/2023,Adults and Health,Services For Older People - 65 And Over,Agency Payments,Residential Care Dementia,571,01/02/2023,2302-00100,0.00,2177.12,R,Aaron Court Care Home,No
Http://opendatacommunities.org/id/metropolitan-district-council/leeds,Leeds City Council as Accountable Body,28/02/2023,Social Services Pooled Budgets,Leeds Community Equip Store Pooled Budgt,Supplies and Services,Other Equipment,203,23/02/2023,2302-00101,0.00,199.00,R,AAT (GB) LTD,No
Http://opendatacommunities.org/id/metropolitan-district-council/leeds,Leeds City Council,28/02/2023,City Development,Libraries Arts & Heritage ,Supplies and Services,Books & Audio-Visual Materials,206,07/02/2023,2302-00102,0.00,26.00,R,Ab* Abebooks.Uk Jp92f3,Yes
Http://opendatacommunities.org/id/metropolitan-district-council/leeds,Leeds City Council as Accountable Body,28/02/2023,Social Services Pooled Budgets,Jcs For People With Learning Disabilitie,Agency Payments,Residential,580,01/02/2023,2302-00103,0.00,11720.20,R,Abbey Care And Education,No
Http://opendatacommunities.org/id/metropolitan-district-council/leeds,Leeds City Council,28/02/2023,Adults and Health,Public Health,Agency Payments,Public Health Commissioned Services,526,10/02/2023,2302-00104,0.00,2809.68,R,Abbey Grange Medical Practice,No
Http://opendatacommunities.org/id/metropolitan-district-council/leeds,Leeds City Council,28/02/2023,City Development,Libraries Arts & Heritage ,Supplies and Services,Hospitality,255,04/01/2023,2302-00105,0.00,13.50,R,Abbey House Museum,Yes
Http://opendatacommunities.org/id/metropolitan-district-council/leeds,Leeds City Council,28/02/2023,Children and Families,Social Care,Agency Payments,Allowances,546,16/02/2023,2302-00106,0.00,627.08,R,ABBIE O'MAHONY,No
Http://opendatacommunities.org/id/metropolitan-district-council/leeds,Leeds City Council,28/02/2023,Children and Families,Social Care,Agency Payments,Services Rendered By Other Organisations,511,03/02/2023,2302-00107,0.00,1720.80,R,REDACTED PERSONAL DATA,No
Http://opendatacommunities.org/id/metropolitan-district-council/leeds,Leeds City Council,28/02/2023,Communities Housing and Environment,Parks and Countryside ,Supplies and Services,Other Hired And Contracted Services,265,12/01/2023,2302-00108,0.00,5000.00,R,Abbotts Memorial Compa,Yes
Http://opendatacommunities.org/id/metropolitan-district-council/leeds,Leeds City Council,28/02/2023,Communities Housing and Environment,Parks and Countryside ,Supplies and Services,Other Hired And Contracted Services,265,20/01/2023,2302-00109,0.00,600.00,R,Abbotts Memorial Compa,Yes
Http://opendatacommunities.org/id/metropolitan-district-council/leeds,Leeds City Council,28/02/2023,Communities Housing and Environment,Parks and Countryside ,Supplies and Services,Other Hired And Contracted Services,265,31/01/2023,2302-00110,0.00,600.00,R,Abbotts Memorial Compa,Yes
Http://opendatacommunities.org/id/metropolitan-district-council/leeds,Leeds City Council,28/02/2023,Communities Housing and Environment,Parks and Countryside ,Supplies and Services,Other Hired And Contracted Services,265,22/02/2023,2302-00111,0.00,1200.00,R,Abbotts Memorial Compa,Yes
Http://opendatacommunities.org/id/metropolitan-district-council/leeds,Leeds City Council,28/02/2023,Children and Families,Social Care,Agency Payments,General External Residential Placements,507,10/02/2023,2302-00112,0.00,15783.56,R,Abc Care And Education Ltd,No
Http://opendatacommunities.org/id/metropolitan-district-council/leeds,Leeds City Council,28/02/2023,Children and Families,Social Care,Agency Payments,Services Rendered By Other Organisations,511,01/02/2023,2302-00113,0.00,5347.20,R,ABC NURSERY AT LUFC,No
Http://opendatacommunities.org/id/metropolitan-district-council/leeds,Leeds City Council,28/02/2023,Children and Families,Social Care,Agency Payments,Services Rendered By Other Organisations,511,03/02/2023,2302-00114,0.00,10898.40,R,ABC NURSERY AT LUFC,No
Http://opendatacommunities.org/id/metropolitan-district-council/leeds,Leeds City Council,28/02/2023,Children and Families,Social Care,Agency Payments,Services Rendered By Other Organisations,511,01/02/2023,2302-00115,0.00,2339.40,R,Abc@D'S Childcare,No
Http://opendatacommunities.org/id/metropolitan-district-council/leeds,Leeds City Council,28/02/2023,Children and Families,Social Care,Agency Payments,Services Rendered By Other Organisations,511,03/02/2023,2302-00116,0.00,8030.40,R,Abc@D'S Childcare,No
Http://opendatacommunities.org/id/metropolitan-district-council/leeds,Leeds City Council,28/02/2023,Strategic Landlord,HRA Housing Leeds,Capital,OTHER COSTS,7,23/02/2023,2302-00117,0.00,80.00,C,REDACTED PERSONAL DATA,No
Http://opendatacommunities.org/id/metropolitan-district-council/leeds,Leeds City Council,28/02/2023,Communities Housing and Environment,Customer Access,Supplies and Services,Bought In Professional Services,277,01/02/2023,2302-00118,0.00,18.00,R,Abdul Kalam,No
Http://opendatacommunities.org/id/metropolitan-district-council/leeds,Leeds City Council,28/02/2023,Communities Housing and Environment,Customer Access,Supplies and Services,Bought In Professional Services,277,08/02/2023,2302-00119,0.00,27.00,R,Abdul Kalam,No
Http://opendatacommunities.org/id/metropolitan-district-council/leeds,Leeds City Council,28/02/2023,Communities Housing and Environment,Customer Access,Supplies and Services,Bought In Professional Services,277,08/02/2023,2302-00120,0.00,18.00,R,Abdul Kalam,No
Http://opendatacommunities.org/id/metropolitan-district-council/leeds,Leeds City Council,28/02/2023,Communities Housing and Environment,Customer Access,Supplies and Services,Bought In Professional Services,277,15/02/2023,2302-00121,0.00,18.00,R,Abdul Kalam,No
Http://opendatacommunities.org/id/metropolitan-district-council/leeds,Leeds City Council,28/02/2023,Communities Housing and Environment,Customer Access,Supplies and Services,Bought In Professional Services,277,01/02/2023,2302-00122,0.00,27.00,R,Abdulahad Denha,No
Http://opendatacommunities.org/id/metropolitan-district-council/leeds,Leeds City Council,28/02/2023,Communities Housing and Environment,Customer Access,Supplies and Services,Bought In Professional Services,277,08/02/2023,2302-00123,0.00,18.00,R,Abdulahad Denha,No
Http://opendatacommunities.org/id/metropolitan-district-council/leeds,Leeds City Council,28/02/2023,Communities Housing and Environment,Customer Access,Supplies and Services,Bought In Professional Services,277,08/02/2023,2302-00124,0.00,18.00,R,Abdulahad Denha,No
Http://opendatacommunities.org/id/metropolitan-district-council/leeds,Leeds City Council,28/02/2023,Communities Housing and Environment,Customer Access,Supplies and Services,Bought In Professional Services,277,08/02/2023,2302-00125,0.00,18.00,R,Abdulahad Denha,No
Http://opendatacommunities.org/id/metropolitan-district-council/leeds,Leeds City Council,28/02/2023,Communities Housing and Environment,Customer Access,Supplies and Services,Bought In Professional Services,277,08/02/2023,2302-00126,0.00,18.00,R,Abdulahad Denha,No
Http://opendatacommunities.org/id/metropolitan-district-council/leeds,Leeds City Council,28/02/2023,Communities Housing and Environment,Customer Access,Supplies and Services,Bought In Professional Services,277,08/02/2023,2302-00127,0.00,18.00,R,Abdulahad Denha,No
Http://opendatacommunities.org/id/metropolitan-district-council/leeds,Leeds City Council,28/02/2023,Communities Housing and Environment,Customer Access,Supplies and Services,Bought In Professional Services,277,08/02/2023,2302-00128,0.00,18.00,R,Abdulahad Denha,No
Http://opendatacommunities.org/id/metropolitan-district-council/leeds,Leeds City Council,28/02/2023,Communities Housing and Environment,Customer Access,Supplies and Services,Bought In Professional Services,277,08/02/2023,2302-00129,0.00,18.00,R,Abdulahad Denha,No
Http://opendatacommunities.org/id/metropolitan-district-council/leeds,Leeds City Council,28/02/2023,Communities Housing and Environment,Customer Access,Supplies and Services,Bought In Professional Services,277,15/02/2023,2302-00130,0.00,18.00,R,Abdulahad Denha,No
Http://opendatacommunities.org/id/metropolitan-district-council/leeds,Leeds City Council,28/02/2023,Communities Housing and Environment,Customer Access,Supplies and Services,Bought In Professional Services,277,22/02/2023,2302-00131,0.00,27.00,R,Abdulahad Denha,No
Http://opendatacommunities.org/id/metropolitan-district-council/leeds,Leeds City Council,28/02/2023,Communities Housing and Environment,Customer Access,Supplies and Services,Bought In Professional Services,277,22/02/2023,2302-00132,0.00,18.00,R,Abdulahad Denha,No
Http://opendatacommunities.org/id/metropolitan-district-council/leeds,Leeds City Council,28/02/2023,Communities Housing and Environment,Customer Access,Supplies and Services,Bought In Professional Services,277,08/02/2023,2302-00133,0.00,13.50,R,Abdulrahim Dastyar,No
Http://opendatacommunities.org/id/metropolitan-district-council/leeds,Leeds City Council,28/02/2023,Communities Housing and Environment,Customer Access,Supplies and Services,Bought In Professional Services,277,08/02/2023,2302-00134,0.00,18.00,R,Abdulrahim Dastyar,No
Http://opendatacommunities.org/id/metropolitan-district-council/leeds,Leeds City Council,28/02/2023,Communities Housing and Environment,Customer Access,Supplies and Services,Bought In Professional Services,277,08/02/2023,2302-00135,0.00,18.00,R,Abdulrahim Dastyar,No
Http://opendatacommunities.org/id/metropolitan-district-council/leeds,Leeds City Council,28/02/2023,Communities Housing and Environment,Customer Access,Supplies and Services,Bought In Professional Services,277,08/02/2023,2302-00136,0.00,18.00,R,Abdulrahim Dastyar,No
Http://opendatacommunities.org/id/metropolitan-district-council/leeds,Leeds City Council,28/02/2023,Communities Housing and Environment,Customer Access,Supplies and Services,Bought In Professional Services,277,08/02/2023,2302-00137,0.00,18.00,R,Abdulrahim Dastyar,No
Http://opendatacommunities.org/id/metropolitan-district-council/leeds,Leeds City Council,28/02/2023,Communities Housing and Environment,Customer Access,Supplies and Services,Bought In Professional Services,277,15/02/2023,2302-00138,0.00,18.00,R,Abdulrahim Dastyar,No
Http://opendatacommunities.org/id/metropolitan-district-council/leeds,Leeds City Council,28/02/2023,Communities Housing and Environment,Customer Access,Supplies and Services,Bought In Professional Services,277,15/02/2023,2302-00139,0.00,18.00,R,Abdulrahim Dastyar,No
Http://opendatacommunities.org/id/metropolitan-district-council/leeds,Leeds City Council,28/02/2023,Communities Housing and Environment,Customer Access,Supplies and Services,Bought In Professional Services,277,22/02/2023,2302-00140,0.00,9.00,R,Abdulrahim Dastyar,No
Http://opendatacommunities.org/id/metropolitan-district-council/leeds,Leeds City Council,28/02/2023,Communities Housing and Environment,Customer Access,Supplies and Services,Bought In Professional Services,277,22/02/2023,2302-00141,0.00,9.00,R,Abdulrahim Dastyar,No
Http://opendatacommunities.org/id/metropolitan-district-council/leeds,Leeds City Council,28/02/2023,Adults and Health,Services For Older People - 65 And Over,Agency Payments,Nursing Home,570,01/02/2023,2302-00142,0.00,21167.77,R,Aberford Hall,No
Http://opendatacommunities.org/id/metropolitan-district-council/leeds,Leeds City Council,28/02/2023,Adults and Health,Services For Older People - 65 And Over,Agency Payments,Nursing Care Dementia,574,01/02/2023,2302-00143,0.00,2186.00,R,Aberford Hall,No
Http://opendatacommunities.org/id/metropolitan-district-council/leeds,Leeds City Council,28/02/2023,Adults and Health,Services For Older People Under 65 P/Dis,Agency Payments,Nursing Home,570,01/02/2023,2302-00144,0.00,2768.00,R,Aberford Hall,No
Http://opendatacommunities.org/id/metropolitan-district-council/leeds,Leeds City Council,28/02/2023,Resources,Leeds Building Services,Supplies and Services,Operational Materials,205,03/02/2023,2302-00145,0.00,13.10,R,ABI GARAGE DOORS LTD,No
Http://opendatacommunities.org/id/metropolitan-district-council/leeds,Leeds City Council,28/02/2023,Resources,Leeds Building Services,Supplies and Services,Operational Materials,205,03/02/2023,2302-00146,0.00,45.83,R,ABI GARAGE DOORS LTD,No
Http://opendatacommunities.org/id/metropolitan-district-council/leeds,Leeds City Council,28/02/2023,Resources,Leeds Building Services,Supplies and Services,Operational Materials,205,24/02/2023,2302-00147,0.00,27.08,R,ABI GARAGE DOORS LTD,No
Http://opendatacommunities.org/id/metropolitan-district-council/leeds,Leeds City Council,28/02/2023,Strategic Landlord,Property and Contracts,Internal Recharges,Legal Disbursements,411,03/02/2023,2302-00148,0.00,450.00,R,Abigail Cheetham,No
Http://opendatacommunities.org/id/metropolitan-district-council/leeds,Leeds City Council,28/02/2023,Children and Families,Social Care ,Agency Payments,Section 17,551,26/01/2023,2302-00149,0.00,108.95,R,Abl Retail Ltd,Yes
Http://opendatacommunities.org/id/metropolitan-district-council/leeds,Leeds City Council,28/02/2023,City Development,Libraries Arts & Heritage ,Supplies and Services,Operational Furniture And Equipment,203,13/02/2023,2302-00150,0.00,190.11,R,Absoluteproduct.Co,Yes
Http://opendatacommunities.org/id/metropolitan-district-council/leeds,Leeds City Council,28/02/2023,Adults and Health,Social Services Support Services,Employees,Training & Development,70,17/02/2023,2302-00151,0.00,2255.00,R,ACAS,No
Http://opendatacommunities.org/id/metropolitan-district-council/leeds,Leeds City Council,28/02/2023,Communities Housing and Environment,Strategic Housing Partnership & Support,Supplies and Services,Other Hired And Contracted Services,265,01/02/2023,2302-00152,0.00,714.28,R,Accent Foundation Ltd,No
Http://opendatacommunities.org/id/metropolitan-district-council/leeds,Leeds City Council,28/02/2023,Communities Housing and Environment,Strategic Housing Partnership & Support,Supplies and Services,Other Hired And Contracted Services,265,07/02/2023,2302-00153,0.00,402.74,R,Accent Foundation Ltd,No
Http://opendatacommunities.org/id/metropolitan-district-council/leeds,Leeds City Council,28/02/2023,Resources,Technology,Supplies and Services,Computer Software & Equipment,214,24/02/2023,2302-00154,0.00,6300.00,R,ACCENTURE (UK) LTD,No
Http://opendatacommunities.org/id/metropolitan-district-council/leeds,Leeds City Council,28/02/2023,Insurance,Insurance,Supplies and Services,Insurance Claims,248,27/02/2023,2302-00155,0.00,2052.59,R,Access Hire,No
Http://opendatacommunities.org/id/metropolitan-district-council/leeds,Leeds City Council,28/02/2023,Strategic Landlord,Housing Management,Supplies and Services,Resaleable Materials,204,22/02/2023,2302-00156,0.00,37.20,R,ACCESS LOCKSMITHS (LEEDS) LIMITED,No
Http://opendatacommunities.org/id/metropolitan-district-council/leeds,Leeds City Council,28/02/2023,Children and Families,Social Care,Supplies and Services,Computer Software & Equipment,214,03/02/2023,2302-00157,0.00,6437.00,R,Access Uk Ltd,No
Http://opendatacommunities.org/id/metropolitan-district-council/leeds,Leeds City Council,28/02/2023,Resources,Technology,Supplies and Services,Computer Software & Equipment,214,08/02/2023,2302-00158,0.00,21000.00,R,Access Uk Ltd,No
Http://opendatacommunities.org/id/metropolitan-district-council/leeds,Leeds City Council,28/02/2023,City Development,Economic Development,Supplies and Services,Consultancy Services,259,10/02/2023,2302-00159,0.00,1050.00,R,Accessible By Design Ltd,No
Http://opendatacommunities.org/id/metropolitan-district-council/leeds,Leeds City Council,28/02/2023,City Development,Recreation ,Supplies and Services,Operational Furniture And Equipment,203,04/01/2023,2302-00160,0.00,21.94,R,Accu.Co.Uk,Yes
Http://opendatacommunities.org/id/metropolitan-district-council/leeds,Leeds City Council,28/02/2023,City Development,Recreation,Transport,External Hire -Occasional,304,03/02/2023,2302-00161,0.00,128.65,R,ACE CONTAINER SERVICES LIMITED,No
Http://opendatacommunities.org/id/metropolitan-district-council/leeds,Leeds City Council,28/02/2023,Resources,Leeds Building Services,Supplies and Services,Other Hired And Contracted Services,265,02/02/2023,2302-00162,0.00,1000.00,R,Ace Elevators Limited,No
Http://opendatacommunities.org/id/metropolitan-district-council/leeds,Leeds City Council,28/02/2023,Resources,Leeds Building Services,Supplies and Services,Other Hired And Contracted Services,265,22/02/2023,2302-00163,0.00,2452.10,R,Ace Elevators Limited,No
Http://opendatacommunities.org/id/metropolitan-district-council/leeds,Leeds City Council,28/02/2023,Resources,Leeds Building Services,Supplies and Services,Other Hired And Contracted Services,265,24/02/2023,2302-00164,0.00,1644.20,R,Ace Elevators Limited,No
Http://opendatacommunities.org/id/metropolitan-district-council/leeds,Leeds City Council,28/02/2023,Children and Families,Learning,Agency Payments,SEN Placements,566,22/02/2023,2302-00165,0.00,27821.66,R,ACKWORTH SCHOOL,No
Http://opendatacommunities.org/id/metropolitan-district-council/leeds,Leeds City Council,28/02/2023,Communities Housing and Environment,Parks and Countryside ,Supplies and Services,Other Hired And Contracted Services,265,17/01/2023,2302-00166,0.00,127.25,R,Acme Facilities Group,Yes
Http://opendatacommunities.org/id/metropolitan-district-council/leeds,Leeds City Council,28/02/2023,Communities Housing and Environment,Parks and Countryside ,Premises,Maintenance Of Buildings,101,20/01/2023,2302-00167,0.00,342.75,R,Acme Facilities Group,Yes
Http://opendatacommunities.org/id/metropolitan-district-council/leeds,Leeds City Council,28/02/2023,Communities Housing and Environment,Parks and Countryside ,Supplies and Services,Other Hired And Contracted Services,265,27/01/2023,2302-00168,0.00,151.01,R,Acme Facilities Group,Yes
Http://opendatacommunities.org/id/metropolitan-district-council/leeds,Leeds City Council,28/02/2023,Communities Housing and Environment,Parks and Countryside ,Supplies and Services,Other Hired And Contracted Services,265,03/02/2023,2302-00169,0.00,564.14,R,Acme Facilities Group,Yes
Http://opendatacommunities.org/id/metropolitan-district-council/leeds,Leeds City Council as Accountable Body,28/02/2023,Social Services Pooled Budgets,Jcs For People With Learning Disabilitie,Agency Payments,Residential,580,01/02/2023,2302-00170,0.00,55436.00,R,Acorn Care & Education Limited,No
Http://opendatacommunities.org/id/metropolitan-district-council/leeds,Leeds City Council as Accountable Body,28/02/2023,Social Services Pooled Budgets,Jcs For People With Learning Disabilitie,Agency Payments,Residential,580,01/02/2023,2302-00171,0.00,103957.36,R,Acorn Care & Education Limited,No
Http://opendatacommunities.org/id/metropolitan-district-council/leeds,Leeds City Council,28/02/2023,Children and Families,Social Care,Agency Payments,General External Residential Placements,507,03/02/2023,2302-00172,0.00,17249.29,R,Acorn Care & Education Ltd (Sales),No
Http://opendatacommunities.org/id/metropolitan-district-council/leeds,Leeds City Council,28/02/2023,Adults and Health,Services For Older People Under 65 P/Dis,Agency Payments,Nursing Home,570,01/02/2023,2302-00173,0.00,3500.00,R,Acorn Care Home,No
Http://opendatacommunities.org/id/metropolitan-district-council/leeds,Leeds City Council,28/02/2023,Children and Families,Social Care,Agency Payments,Services Rendered By Other Organisations,511,01/02/2023,2302-00174,0.00,668.40,R,ACORNS NURSERY,No
Http://opendatacommunities.org/id/metropolitan-district-council/leeds,Leeds City Council,28/02/2023,Children and Families,Social Care,Agency Payments,Services Rendered By Other Organisations,511,03/02/2023,2302-00175,0.00,13192.80,R,ACORNS NURSERY,No
Http://opendatacommunities.org/id/metropolitan-district-council/leeds,Leeds City Council,28/02/2023,Adults and Health,Assessment And Care Management,Agency Payments,Nursing Home,570,01/02/2023,2302-00176,0.00,6199.84,R,Acre Green,No
Http://opendatacommunities.org/id/metropolitan-district-council/leeds,Leeds City Council,28/02/2023,Adults and Health,Services For Older People - 65 And Over,Agency Payments,Nursing Home,570,01/02/2023,2302-00177,0.00,27489.34,R,Acre Green,No
Http://opendatacommunities.org/id/metropolitan-district-council/leeds,Leeds City Council,28/02/2023,Adults and Health,Services For Older People - 65 And Over,Agency Payments,Residential,580,01/02/2023,2302-00178,0.00,4180.20,R,Acre Green,No
Http://opendatacommunities.org/id/metropolitan-district-council/leeds,Leeds City Council,28/02/2023,Adults and Health,Services For Older People Under 65 P/Dis,Agency Payments,Residential,580,01/02/2023,2302-00179,0.00,1892.20,R,Acre Green,No
Http://opendatacommunities.org/id/metropolitan-district-council/leeds,Leeds City Council,28/02/2023,Children and Families,Social Care,Agency Payments,Services Rendered By Other Organisations,511,01/02/2023,2302-00180,0.00,1671.00,R,Acre Wood Day Nursery,No
Http://opendatacommunities.org/id/metropolitan-district-council/leeds,Leeds City Council,28/02/2023,Children and Families,Social Care,Agency Payments,Services Rendered By Other Organisations,511,03/02/2023,2302-00181,0.00,17208.00,R,Acre Wood Day Nursery,No
Http://opendatacommunities.org/id/metropolitan-district-council/leeds,Leeds City Council as Accountable Body,28/02/2023,Social Services Pooled Budgets,Jcs For People With Learning Disabilitie,Agency Payments,Residential,580,01/02/2023,2302-00182,0.00,10702.60,R,Action For Care Contracts Limited,No
Http://opendatacommunities.org/id/metropolitan-district-council/leeds,Leeds City Council,28/02/2023,Children and Families,Social Care,Agency Payments,Independent Fostering Agencies,509,16/02/2023,2302-00183,0.00,4897.20,R,Action For Children Services Ltd,No
Http://opendatacommunities.org/id/metropolitan-district-council/leeds,Leeds City Council,28/02/2023,Children and Families,Social Care,Agency Payments,Independent Fostering Agencies,509,16/02/2023,2302-00184,0.00,5060.44,R,Action For Children Services Ltd,No
Http://opendatacommunities.org/id/metropolitan-district-council/leeds,Leeds City Council,28/02/2023,Children and Families,Social Care,Agency Payments,Services Rendered By Other Organisations,511,01/02/2023,2302-00185,0.00,1671.00,R,ACTIVE KIDS YEADON LLP,No
Http://opendatacommunities.org/id/metropolitan-district-council/leeds,Leeds City Council,28/02/2023,Children and Families,Social Care,Agency Payments,Services Rendered By Other Organisations,511,03/02/2023,2302-00186,0.00,10133.60,R,ACTIVE KIDS YEADON LLP,No
Http://opendatacommunities.org/id/metropolitan-district-council/leeds,Leeds City Council,28/02/2023,Adults and Health,Services For Adults Under 65 Mental/Dis,Agency Payments,Sheltered Accommodation,569,01/02/2023,2302-00187,0.00,18918.56,R,Active Pathways,No
Http://opendatacommunities.org/id/metropolitan-district-council/leeds,Leeds City Council,28/02/2023,Adults and Health,Services For Older People - 65 And Over,Agency Payments,Sheltered Accommodation,569,01/02/2023,2302-00188,0.00,4154.84,R,Active Pathways,No
Http://opendatacommunities.org/id/metropolitan-district-council/leeds,Leeds City Council as Accountable Body,28/02/2023,Social Services Pooled Budgets,Jcs For People With Learning Disabilitie,Agency Payments,Sheltered Accommodation,569,01/02/2023,2302-00189,0.00,12452.52,R,Active Pathways,No
Http://opendatacommunities.org/id/metropolitan-district-council/leeds,Leeds City Council,28/02/2023,Adults and Health,Services For Adults Under 65 Mental/Dis,Agency Payments,Residential,580,01/02/2023,2302-00190,0.00,4324.60,R,Active Pathways Limited,No
Http://opendatacommunities.org/id/metropolitan-district-council/leeds,Leeds City Council,28/02/2023,Children and Families,Social Care ,Supplies and Services,Clothing & Uniforms,241,12/01/2023,2302-00191,0.00,96.50,R,Activewearb,Yes
Http://opendatacommunities.org/id/metropolitan-district-council/leeds,Leeds City Council,28/02/2023,Children and Families,Social Care ,Supplies and Services,Clothing & Uniforms,241,23/01/2023,2302-00192,0.00,148.20,R,Activewearb,Yes
Http://opendatacommunities.org/id/metropolitan-district-council/leeds,Leeds City Council,28/02/2023,Children and Families,Social Care ,Supplies and Services,Clothing & Uniforms,241,21/02/2023,2302-00193,0.00,61.84,R,Activewearb,Yes
Http://opendatacommunities.org/id/metropolitan-district-council/leeds,Leeds City Council,28/02/2023,Communities Housing and Environment,Waste Management ,Supplies and Services,Waste Disposal Charges,236,23/01/2023,2302-00194,0.00,905.00,R,Acumen Waste Services,Yes
Http://opendatacommunities.org/id/metropolitan-district-council/leeds,Leeds City Council,28/02/2023,Communities Housing and Environment,Waste Management,Supplies and Services,Recycling & Reuse Charges,234,02/02/2023,2302-00195,0.00,4576.32,R,Acumen Waste Services Ltd,No
Http://opendatacommunities.org/id/metropolitan-district-council/leeds,Leeds City Council,28/02/2023,Communities Housing and Environment,Waste Management,Supplies and Services,Recycling & Reuse Charges,234,02/02/2023,2302-00196,0.00,1650.96,R,Acumen Waste Services Ltd,No
Http://opendatacommunities.org/id/metropolitan-district-council/leeds,Leeds City Council,28/02/2023,Communities Housing and Environment,Waste Management,Supplies and Services,Waste Disposal Charges,236,02/02/2023,2302-00197,0.00,275.00,R,Acumen Waste Services Ltd,No
Http://opendatacommunities.org/id/metropolitan-district-council/leeds,Leeds City Council,28/02/2023,Communities Housing and Environment,Waste Management,Supplies and Services,Waste Disposal Charges,236,02/02/2023,2302-00198,0.00,275.00,R,Acumen Waste Services Ltd,No
Http://opendatacommunities.org/id/metropolitan-district-council/leeds,Leeds City Council,28/02/2023,Communities Housing and Environment,Waste Management,Supplies and Services,Waste Disposal Charges,236,03/02/2023,2302-00199,0.00,629.60,R,Acumen Waste Services Ltd,No
Http://opendatacommunities.org/id/metropolitan-district-council/leeds,Leeds City Council,28/02/2023,Communities Housing and Environment,Waste Management,Supplies and Services,Recycling & Reuse Charges,234,09/02/2023,2302-00200,0.00,1928.88,R,Acumen Waste Services Ltd,No
Http://opendatacommunities.org/id/metropolitan-district-council/leeds,Leeds City Council,28/02/2023,Communities Housing and Environment,Waste Management,Supplies and Services,Waste Disposal Charges,236,09/02/2023,2302-00201,0.00,1280.40,R,Acumen Waste Services Ltd,No
Http://opendatacommunities.org/id/metropolitan-district-council/leeds,Leeds City Council,28/02/2023,Communities Housing and Environment,Waste Management,Supplies and Services,Recycling & Reuse Charges,234,10/02/2023,2302-00202,0.00,8785.44,R,Acumen Waste Services Ltd,No
Http://opendatacommunities.org/id/metropolitan-district-council/leeds,Leeds City Council,28/02/2023,Communities Housing and Environment,Waste Management,Supplies and Services,Recycling & Reuse Charges,234,22/02/2023,2302-00203,0.00,5920.56,R,Acumen Waste Services Ltd,No
Http://opendatacommunities.org/id/metropolitan-district-council/leeds,Leeds City Council,28/02/2023,Resources,Shared Services,Supplies and Services,Other Hired And Contracted Services,265,03/02/2023,2302-00204,0.00,210.40,R,AD3 Envelope Printers Limited,No
Http://opendatacommunities.org/id/metropolitan-district-council/leeds,Leeds City Council,28/02/2023,Resources,Shared Services,Supplies and Services,Operational Materials,205,24/02/2023,2302-00205,0.00,665.10,R,AD3 Envelope Printers Limited,No
Http://opendatacommunities.org/id/metropolitan-district-council/leeds,Leeds City Council,28/02/2023,Resources,Shared Services,Supplies and Services,Operational Materials,205,24/02/2023,2302-00206,0.00,1497.00,R,AD3 Envelope Printers Limited,No
Http://opendatacommunities.org/id/metropolitan-district-council/leeds,Leeds City Council,28/02/2023,City Development,Highways,Internal Recharges,Legal Disbursements,411,15/02/2023,2302-00207,0.00,45600.00,R,Adam Aldred,No
Http://opendatacommunities.org/id/metropolitan-district-council/leeds,Leeds City Council,28/02/2023,Children and Families,Social Care,Transport,Fuel (Non LCC Supplies),321,16/02/2023,2302-00208,0.00,20.00,R,REDACTED PERSONAL DATA,No
Http://opendatacommunities.org/id/metropolitan-district-council/leeds,Leeds City Council,28/02/2023,Children and Families,Social Care,Appropriations,Leaving Care Allowances,634,17/02/2023,2302-00209,0.00,20.00,R,REDACTED PERSONAL DATA,No
Http://opendatacommunities.org/id/metropolitan-district-council/leeds,Leeds City Council,28/02/2023,Children and Families,Social Care,Agency Payments,Contact,548,03/02/2023,2302-00210,0.00,9.00,R,REDACTED PERSONAL DATA,No
Http://opendatacommunities.org/id/metropolitan-district-council/leeds,Leeds City Council,28/02/2023,Children and Families,Social Care,Agency Payments,Contact,548,10/02/2023,2302-00211,0.00,9.00,R,REDACTED PERSONAL DATA,No
Http://opendatacommunities.org/id/metropolitan-district-council/leeds,Leeds City Council,28/02/2023,Children and Families,Social Care,Agency Payments,Contact,548,17/02/2023,2302-00212,0.00,9.00,R,REDACTED PERSONAL DATA,No
Http://opendatacommunities.org/id/metropolitan-district-council/leeds,Leeds City Council,28/02/2023,Children and Families,Social Care,Agency Payments,Contact,548,24/02/2023,2302-00213,0.00,9.00,R,REDACTED PERSONAL DATA,No
Http://opendatacommunities.org/id/metropolitan-district-council/leeds,Leeds City Council,28/02/2023,Children and Families,Social Care,Agency Payments,Contact,548,03/02/2023,2302-00214,0.00,30.30,R,REDACTED PERSONAL DATA,No
Http://opendatacommunities.org/id/metropolitan-district-council/leeds,Leeds City Council,28/02/2023,Children and Families,Social Care,Agency Payments,Contact,548,10/02/2023,2302-00215,0.00,30.30,R,REDACTED PERSONAL DATA,No
Http://opendatacommunities.org/id/metropolitan-district-council/leeds,Leeds City Council,28/02/2023,Children and Families,Social Care,Agency Payments,Contact,548,14/02/2023,2302-00216,0.00,57.00,R,REDACTED PERSONAL DATA,No
Http://opendatacommunities.org/id/metropolitan-district-council/leeds,Leeds City Council,28/02/2023,Children and Families,Social Care,Agency Payments,Contact,548,17/02/2023,2302-00217,0.00,38.00,R,REDACTED PERSONAL DATA,No
Http://opendatacommunities.org/id/metropolitan-district-council/leeds,Leeds City Council,28/02/2023,Children and Families,Social Care,Agency Payments,Contact,548,17/02/2023,2302-00218,0.00,30.30,R,REDACTED PERSONAL DATA,No
Http://opendatacommunities.org/id/metropolitan-district-council/leeds,Leeds City Council,28/02/2023,Children and Families,Social Care,Agency Payments,Contact,548,24/02/2023,2302-00219,0.00,30.00,R,REDACTED PERSONAL DATA,No
Http://opendatacommunities.org/id/metropolitan-district-council/leeds,Leeds City Council,28/02/2023,Children and Families,Social Care,Agency Payments,Placement Support,550,03/02/2023,2302-00220,0.00,21.80,R,REDACTED PERSONAL DATA,No
Http://opendatacommunities.org/id/metropolitan-district-council/leeds,Leeds City Council,28/02/2023,Children and Families,Social Care,Agency Payments,Placement Support,550,10/02/2023,2302-00221,0.00,21.80,R,REDACTED PERSONAL DATA,No
Http://opendatacommunities.org/id/metropolitan-district-council/leeds,Leeds City Council,28/02/2023,Children and Families,Social Care,Agency Payments,Placement Support,550,17/02/2023,2302-00222,0.00,21.80,R,REDACTED PERSONAL DATA,No
Http://opendatacommunities.org/id/metropolitan-district-council/leeds,Leeds City Council,28/02/2023,Children and Families,Social Care,Agency Payments,Placement Support,550,24/02/2023,2302-00223,0.00,21.80,R,REDACTED PERSONAL DATA,No
Http://opendatacommunities.org/id/metropolitan-district-council/leeds,Leeds City Council,28/02/2023,City Development,Recreation,External Income,Sporting & Other Recreational Fees,928,09/02/2023,2302-00224,0.00,40.92,R,REDACTED PERSONAL DATA,No
Http://opendatacommunities.org/id/metropolitan-district-council/leeds,Leeds City Council,28/02/2023,City Development,Libraries Arts & Heritage,Supplies and Services,Food & Drink,231,10/02/2023,2302-00225,0.00,32.73,R,REDACTED PERSONAL DATA,No
Http://opendatacommunities.org/id/metropolitan-district-council/leeds,Leeds City Council,28/02/2023,Strategic Landlord,HRA Housing Leeds,Capital,OTHER COSTS,7,06/02/2023,2302-00226,0.00,80.00,C,REDACTED PERSONAL DATA,No
Http://opendatacommunities.org/id/metropolitan-district-council/leeds,Leeds City Council,28/02/2023,City Development,Libraries Arts & Heritage ,Supplies and Services,Conference Meetings,253,13/02/2023,2302-00227,0.00,155.00,R,Adams 2023 - Tickets,Yes
Http://opendatacommunities.org/id/metropolitan-district-council/leeds,Leeds City Council,28/02/2023,City Development,Libraries Arts & Heritage ,Supplies and Services,Conference Meetings,253,15/02/2023,2302-00228,0.00,25.83,R,Adams 2023 - Tickets,Yes
Http://opendatacommunities.org/id/metropolitan-district-council/leeds,Leeds City Council,28/02/2023,Adults and Health,Services For Older People - 65 And Over,Supplies and Services,Operational Furniture And Equipment,203,09/02/2023,2302-00229,0.00,1950.00,R,Addictive Audio,No
Http://opendatacommunities.org/id/metropolitan-district-council/leeds,Leeds City Council,28/02/2023,Communities Housing and Environment,Parks and Countryside,Premises,Rents,141,06/02/2023,2302-00230,0.00,7076.55,R,ADDPLANT Limited,No
Http://opendatacommunities.org/id/metropolitan-district-council/leeds,Leeds City Council,28/02/2023,Communities Housing and Environment,Parks and Countryside ,Supplies and Services,Other Hired And Contracted Services,265,07/02/2023,2302-00231,0.00,250.00,R,Ade Power Limited,Yes
Http://opendatacommunities.org/id/metropolitan-district-council/leeds,Leeds City Council,28/02/2023,Adults and Health,Services For Older People - 65 And Over,Agency Payments,Nursing Home,570,01/02/2023,2302-00232,0.00,7052.22,R,Adel Manor Care Centre,No
Http://opendatacommunities.org/id/metropolitan-district-council/leeds,Leeds City Council,28/02/2023,Children and Families,Social Care,Agency Payments,Services Rendered By Voluntary Sector,505,01/02/2023,2302-00233,0.00,1002.60,R,ADEL PRE SCHOOL,No
Http://opendatacommunities.org/id/metropolitan-district-council/leeds,Leeds City Council,28/02/2023,Children and Families,Social Care,Agency Payments,Services Rendered By Voluntary Sector,505,03/02/2023,2302-00234,0.00,4588.80,R,ADEL PRE SCHOOL,No
Http://opendatacommunities.org/id/metropolitan-district-council/leeds,Leeds City Council,28/02/2023,Children and Families,Social Care,Agency Payments,Services Rendered By Other Organisations,511,03/02/2023,2302-00235,0.00,1434.00,R,REDACTED PERSONAL DATA,No
Http://opendatacommunities.org/id/metropolitan-district-council/leeds,Leeds City Council,28/02/2023,Resources,Commercial Services,Supplies and Services,Other Hired And Contracted Services,265,06/02/2023,2302-00236,0.00,66.79,R,REDACTED PERSONAL DATA,No
Http://opendatacommunities.org/id/metropolitan-district-council/leeds,Leeds City Council,28/02/2023,Resources,Commercial Services,Supplies and Services,Other Hired And Contracted Services,265,21/02/2023,2302-00237,0.00,29.90,R,REDACTED PERSONAL DATA,No
Http://opendatacommunities.org/id/metropolitan-district-council/leeds,Leeds City Council,28/02/2023,Children and Families,Social Care,Agency Payments,Contact,548,17/02/2023,2302-00238,0.00,50.00,R,REDACTED PERSONAL DATA,No
Http://opendatacommunities.org/id/metropolitan-district-council/leeds,Leeds City Council,28/02/2023,Communities Housing and Environment,Community Safety ,Supplies and Services,Other Hired And Contracted Services,265,13/01/2023,2302-00239,0.00,81.08,R,Adi-Gardiner Ltd,Yes
Http://opendatacommunities.org/id/metropolitan-district-council/leeds,Leeds City Council,28/02/2023,Children and Families,Social Care ,Supplies and Services,Bought In Professional Services,277,05/02/2023,2302-00240,0.00,89.00,R,Admin-Pal.Co.Uk,Yes
Http://opendatacommunities.org/id/metropolitan-district-council/leeds,Leeds City Council,28/02/2023,City Development,Libraries Arts & Heritage ,Supplies and Services,Publication And Promotion,267,07/01/2023,2302-00241,0.00,43.32,R,Adobe Creative Cloud,Yes
Http://opendatacommunities.org/id/metropolitan-district-council/leeds,Leeds City Council,28/02/2023,City Development,Libraries Arts & Heritage ,Supplies and Services,Office Consumables,210,07/02/2023,2302-00242,0.00,43.32,R,Adobe Creative Cloud,Yes
Http://opendatacommunities.org/id/metropolitan-district-council/leeds,Leeds City Council,28/02/2023,City Development,Libraries Arts & Heritage ,Supplies and Services,Computer Software & Equipment,214,17/01/2023,2302-00243,0.00,104.18,R,Adobe Send-For-Sign,Yes
Http://opendatacommunities.org/id/metropolitan-district-council/leeds,Leeds City Council,28/02/2023,Children and Families,Social Care,Agency Payments,Independent Fostering Agencies,509,03/02/2023,2302-00244,0.00,228.00,R,Adolescent And Childrens Trust,No
Http://opendatacommunities.org/id/metropolitan-district-council/leeds,Leeds City Council,28/02/2023,Children and Families,Social Care,Agency Payments,Independent Fostering Agencies,509,03/02/2023,2302-00245,0.00,3025.00,R,Adolescent And Childrens Trust,No
Http://opendatacommunities.org/id/metropolitan-district-council/leeds,Leeds City Council,28/02/2023,Children and Families,Social Care,Agency Payments,Independent Fostering Agencies,509,03/02/2023,2302-00246,0.00,3565.00,R,Adolescent And Childrens Trust,No
Http://opendatacommunities.org/id/metropolitan-district-council/leeds,Leeds City Council,28/02/2023,Children and Families,Social Care,Agency Payments,Independent Fostering Agencies,509,03/02/2023,2302-00247,0.00,3565.00,R,Adolescent And Childrens Trust,No
Http://opendatacommunities.org/id/metropolitan-district-council/leeds,Leeds City Council,28/02/2023,Children and Families,Social Care,Agency Payments,Independent Fostering Agencies,509,03/02/2023,2302-00248,0.00,3751.00,R,Adolescent And Childrens Trust,No
Http://opendatacommunities.org/id/metropolitan-district-council/leeds,Leeds City Council,28/02/2023,Children and Families,Social Care,Agency Payments,Independent Fostering Agencies,509,03/02/2023,2302-00249,0.00,3751.00,R,Adolescent And Childrens Trust,No
Http://opendatacommunities.org/id/metropolitan-district-council/leeds,Leeds City Council,28/02/2023,Children and Families,Social Care,Agency Payments,Independent Fostering Agencies,509,03/02/2023,2302-00250,0.00,3551.67,R,Adolescent And Childrens Trust,No
Http://opendatacommunities.org/id/metropolitan-district-council/leeds,Leeds City Council,28/02/2023,Children and Families,Social Care,Agency Payments,Independent Fostering Agencies,509,03/02/2023,2302-00251,0.00,3658.00,R,Adolescent And Childrens Trust,No
Http://opendatacommunities.org/id/metropolitan-district-council/leeds,Leeds City Council,28/02/2023,Children and Families,Social Care,Agency Payments,Independent Fostering Agencies,509,03/02/2023,2302-00252,0.00,3658.00,R,Adolescent And Childrens Trust,No
Http://opendatacommunities.org/id/metropolitan-district-council/leeds,Leeds City Council,28/02/2023,Children and Families,Social Care,Agency Payments,Independent Fostering Agencies,509,03/02/2023,2302-00253,0.00,3534.00,R,Adolescent And Childrens Trust,No
Http://opendatacommunities.org/id/metropolitan-district-council/leeds,Leeds City Council,28/02/2023,Children and Families,Social Care,Agency Payments,Independent Fostering Agencies,509,03/02/2023,2302-00254,0.00,3830.67,R,Adolescent And Childrens Trust,No
Http://opendatacommunities.org/id/metropolitan-district-council/leeds,Leeds City Council,28/02/2023,Children and Families,Social Care,Agency Payments,Independent Fostering Agencies,509,03/02/2023,2302-00255,0.00,3830.67,R,Adolescent And Childrens Trust,No
Http://opendatacommunities.org/id/metropolitan-district-council/leeds,Leeds City Council,28/02/2023,Children and Families,Social Care,Agency Payments,Independent Fostering Agencies,509,03/02/2023,2302-00256,0.00,3658.00,R,Adolescent And Childrens Trust,No
Http://opendatacommunities.org/id/metropolitan-district-council/leeds,Leeds City Council,28/02/2023,Children and Families,Social Care,Agency Payments,Independent Fostering Agencies,509,03/02/2023,2302-00257,0.00,3534.00,R,Adolescent And Childrens Trust,No
Http://opendatacommunities.org/id/metropolitan-district-council/leeds,Leeds City Council,28/02/2023,Adults and Health,Services For Adults Under 65 Mental/Dis,Agency Payments,Home Care,568,01/02/2023,2302-00258,0.00,591.00,R,Adopt Healthcare Ltd,No
Http://opendatacommunities.org/id/metropolitan-district-council/leeds,Leeds City Council,28/02/2023,Adults and Health,Services For Adults Under 65 Mental/Dis,Agency Payments,Home Care,568,01/02/2023,2302-00259,0.00,99.00,R,Adopt Healthcare Ltd,No
Http://opendatacommunities.org/id/metropolitan-district-council/leeds,Leeds City Council,28/02/2023,Adults and Health,Services For Adults Under 65 Mental/Dis,Agency Payments,Home Care,568,03/02/2023,2302-00260,0.00,82.50,R,Adopt Healthcare Ltd,No
Http://opendatacommunities.org/id/metropolitan-district-council/leeds,Leeds City Council,28/02/2023,Adults and Health,Services For Adults Under 65 Mental/Dis,Agency Payments,Home Care,568,08/02/2023,2302-00261,0.00,558.00,R,Adopt Healthcare Ltd,No
Http://opendatacommunities.org/id/metropolitan-district-council/leeds,Leeds City Council,28/02/2023,Adults and Health,Services For Adults Under 65 Mental/Dis,Agency Payments,Home Care,568,08/02/2023,2302-00262,0.00,132.00,R,Adopt Healthcare Ltd,No
Http://opendatacommunities.org/id/metropolitan-district-council/leeds,Leeds City Council,28/02/2023,Adults and Health,Services For Adults Under 65 Mental/Dis,Agency Payments,Home Care,568,15/02/2023,2302-00263,0.00,148.50,R,Adopt Healthcare Ltd,No
Http://opendatacommunities.org/id/metropolitan-district-council/leeds,Leeds City Council,28/02/2023,Adults and Health,Services For Adults Under 65 Mental/Dis,Agency Payments,Home Care,568,22/02/2023,2302-00264,0.00,536.00,R,Adopt Healthcare Ltd,No
Http://opendatacommunities.org/id/metropolitan-district-council/leeds,Leeds City Council,28/02/2023,Adults and Health,Services For Adults Under 65 Mental/Dis,Agency Payments,Home Care,568,22/02/2023,2302-00265,0.00,148.50,R,Adopt Healthcare Ltd,No
Http://opendatacommunities.org/id/metropolitan-district-council/leeds,Leeds City Council,28/02/2023,Children and Families,Social Care,Agency Payments,Placement Support,550,03/02/2023,2302-00266,0.00,20.00,R,REDACTED PERSONAL DATA,No
Http://opendatacommunities.org/id/metropolitan-district-council/leeds,Leeds City Council,28/02/2023,Children and Families,Social Care,Agency Payments,Placement Support,550,10/02/2023,2302-00267,0.00,20.00,R,REDACTED PERSONAL DATA,No
Http://opendatacommunities.org/id/metropolitan-district-council/leeds,Leeds City Council,28/02/2023,Children and Families,Social Care,Agency Payments,Placement Support,550,17/02/2023,2302-00268,0.00,20.00,R,REDACTED PERSONAL DATA,No
Http://opendatacommunities.org/id/metropolitan-district-council/leeds,Leeds City Council,28/02/2023,Children and Families,Social Care,Agency Payments,Placement Support,550,24/02/2023,2302-00269,0.00,20.00,R,REDACTED PERSONAL DATA,No
Http://opendatacommunities.org/id/metropolitan-district-council/leeds,Leeds City Council as Accountable Body,28/02/2023,Social Services Pooled Budgets,Jcs For People With Learning Disabilitie,Agency Payments,Residential,580,16/02/2023,2302-00270,0.00,2609.36,R,ADRIAN HOUSE,No
Http://opendatacommunities.org/id/metropolitan-district-council/leeds,Leeds City Council,28/02/2023,Children and Families,Social Care,Agency Payments,Placement Support,550,03/02/2023,2302-00271,0.00,159.62,R,REDACTED PERSONAL DATA,No
Http://opendatacommunities.org/id/metropolitan-district-council/leeds,Leeds City Council,28/02/2023,Children and Families,Social Care,Agency Payments,Placement Support,550,10/02/2023,2302-00272,0.00,159.62,R,REDACTED PERSONAL DATA,No
Http://opendatacommunities.org/id/metropolitan-district-council/leeds,Leeds City Council,28/02/2023,Children and Families,Social Care,Agency Payments,Placement Support,550,17/02/2023,2302-00273,0.00,159.62,R,REDACTED PERSONAL DATA,No
Http://opendatacommunities.org/id/metropolitan-district-council/leeds,Leeds City Council,28/02/2023,Children and Families,Social Care,Agency Payments,Placement Support,550,24/02/2023,2302-00274,0.00,159.62,R,REDACTED PERSONAL DATA,No
Http://opendatacommunities.org/id/metropolitan-district-council/leeds,Leeds City Council,28/02/2023,Resources,Facilities Management ,Premises,Premises Security Services,162,04/01/2023,2302-00275,0.00,308.26,R,Adt Fire And Security,Yes
Http://opendatacommunities.org/id/metropolitan-district-council/leeds,Leeds City Council,28/02/2023,Resources,Commercial Services ,Supplies and Services,Operational Materials,205,02/02/2023,2302-00276,0.00,748.73,R,Adt Fire And Security,Yes
Http://opendatacommunities.org/id/metropolitan-district-council/leeds,Leeds City Council,28/02/2023,Resources,Legal Services,Supplies and Services,GENL LEGAL - MISCELLANEOUS,733,08/02/2023,2302-00277,0.00,94.05,R,Adult Psychological Solutions Ltd,No
Http://opendatacommunities.org/id/metropolitan-district-council/leeds,Leeds City Council,28/02/2023,City Development,Recreation,Supplies and Services,External Audit Fees,261,23/02/2023,2302-00278,0.00,135.00,R,ADVANCE STOCKS LTD,No
Http://opendatacommunities.org/id/metropolitan-district-council/leeds,Leeds City Council,28/02/2023,City Development,Libraries Arts & Heritage,Supplies and Services,External Audit Fees,261,23/02/2023,2302-00279,0.00,100.00,R,ADVANCE STOCKS LTD,No
Http://opendatacommunities.org/id/metropolitan-district-council/leeds,Leeds City Council,28/02/2023,Children and Families,Social Care,Internal Recharges,Legal Disbursements,411,08/02/2023,2302-00280,0.00,660.00,R,ADVANCED CHILD CARE ASSESSMENTS LTD,No
Http://opendatacommunities.org/id/metropolitan-district-council/leeds,Leeds City Council,28/02/2023,Children and Families,Social Care,Internal Recharges,Legal Disbursements,411,16/02/2023,2302-00281,0.00,354.49,R,ADVANCED CHILD CARE ASSESSMENTS LTD,No
Http://opendatacommunities.org/id/metropolitan-district-council/leeds,Leeds City Council,28/02/2023,Adults and Health,Assessment And Care Management,Agency Payments,Home Care,568,08/02/2023,2302-00282,0.00,573.72,R,Advanced Medcare Ltd,No
Http://opendatacommunities.org/id/metropolitan-district-council/leeds,Leeds City Council,28/02/2023,Adults and Health,Services For Adults Under 65 Learn/Dis,Agency Payments,Home Care,568,08/02/2023,2302-00283,0.00,573.72,R,Advanced Medcare Ltd,No
Http://opendatacommunities.org/id/metropolitan-district-council/leeds,Leeds City Council,28/02/2023,Adults and Health,Services For Older People - 65 And Over,Agency Payments,Home Care,568,08/02/2023,2302-00284,0.00,31595.76,R,Advanced Medcare Ltd,No
Http://opendatacommunities.org/id/metropolitan-district-council/leeds,Leeds City Council,28/02/2023,Adults and Health,Services For Older People - 65 And Over,Agency Payments,HCAIT Community Support,575,08/02/2023,2302-00285,0.00,1024.50,R,Advanced Medcare Ltd,No
Http://opendatacommunities.org/id/metropolitan-district-council/leeds,Leeds City Council,28/02/2023,Adults and Health,Services For Older People Under 65 P/Dis,Agency Payments,Home Care,568,08/02/2023,2302-00286,0.00,12227.43,R,Advanced Medcare Ltd,No
Http://opendatacommunities.org/id/metropolitan-district-council/leeds,Leeds City Council,28/02/2023,Adults and Health,Services For Older People Under 65 P/Dis,Agency Payments,HCAIT Community Support,575,08/02/2023,2302-00287,0.00,389.31,R,Advanced Medcare Ltd,No
Http://opendatacommunities.org/id/metropolitan-district-council/leeds,Leeds City Council as Accountable Body,28/02/2023,Social Services Pooled Budgets,Jcs For People With Learning Disabilitie,Agency Payments,Home Care,568,16/02/2023,2302-00288,0.00,3664.98,R,Advantage Healthcare Ltd,No
Http://opendatacommunities.org/id/metropolitan-district-council/leeds,Leeds City Council,28/02/2023,Adults and Health,Services For Older People - 65 And Over,Agency Payments,Payments To Voluntary Organisations,561,16/02/2023,2302-00289,0.00,101941.67,R,Advonet,No
Http://opendatacommunities.org/id/metropolitan-district-council/leeds,Leeds City Council,28/02/2023,Adults and Health,Services For Adults Under 65 Mental/Dis,Agency Payments,Home Care,568,17/02/2023,2302-00290,0.00,75.00,R,Advonet,No
Http://opendatacommunities.org/id/metropolitan-district-council/leeds,Leeds City Council as Accountable Body,28/02/2023,Social Services Pooled Budgets,Jcs For People With Learning Disabilitie,Supplies and Services,Other Hired And Contracted Services,265,17/02/2023,2302-00291,0.00,45.00,R,Advonet,No
Http://opendatacommunities.org/id/metropolitan-district-council/leeds,Leeds City Council as Accountable Body,28/02/2023,Social Services Pooled Budgets,Jcs For People With Learning Disabilitie,Supplies and Services,Other Hired And Contracted Services,265,17/02/2023,2302-00292,0.00,20.10,R,Advonet,No
Http://opendatacommunities.org/id/metropolitan-district-council/leeds,Leeds City Council as Accountable Body,28/02/2023,Social Services Pooled Budgets,Jcs For People With Learning Disabilitie,Supplies and Services,Other Hired And Contracted Services,265,17/02/2023,2302-00293,0.00,7.50,R,Advonet,No
Http://opendatacommunities.org/id/metropolitan-district-council/leeds,Leeds City Council as Accountable Body,28/02/2023,Social Services Pooled Budgets,Jcs For People With Learning Disabilitie,Supplies and Services,Other Hired And Contracted Services,265,17/02/2023,2302-00294,0.00,93.15,R,Advonet,No
Http://opendatacommunities.org/id/metropolitan-district-council/leeds,Leeds City Council as Accountable Body,28/02/2023,Social Services Pooled Budgets,Jcs For People With Learning Disabilitie,Supplies and Services,Other Hired And Contracted Services,265,17/02/2023,2302-00295,0.00,65.10,R,Advonet,No
Http://opendatacommunities.org/id/metropolitan-district-council/leeds,Leeds City Council as Accountable Body,28/02/2023,Social Services Pooled Budgets,Jcs For People With Learning Disabilitie,Supplies and Services,Other Hired And Contracted Services,265,17/02/2023,2302-00296,0.00,7.50,R,Advonet,No
Http://opendatacommunities.org/id/metropolitan-district-council/leeds,Leeds City Council as Accountable Body,28/02/2023,Social Services Pooled Budgets,Jcs For People With Learning Disabilitie,Supplies and Services,Other Hired And Contracted Services,265,17/02/2023,2302-00297,0.00,7.50,R,Advonet,No
Http://opendatacommunities.org/id/metropolitan-district-council/leeds,Leeds City Council as Accountable Body,28/02/2023,Social Services Pooled Budgets,Jcs For People With Learning Disabilitie,Supplies and Services,Other Hired And Contracted Services,265,17/02/2023,2302-00298,0.00,15.00,R,Advonet,No
Http://opendatacommunities.org/id/metropolitan-district-council/leeds,Leeds City Council as Accountable Body,28/02/2023,Social Services Pooled Budgets,Jcs For People With Learning Disabilitie,Supplies and Services,Other Hired And Contracted Services,265,17/02/2023,2302-00299,0.00,7.50,R,Advonet,No
Http://opendatacommunities.org/id/metropolitan-district-council/leeds,Leeds City Council,28/02/2023,City Development,Highways,Capital,OTHER COSTS,7,07/02/2023,2302-00300,0.00,100380.43,C,Aecom Limited,No
Http://opendatacommunities.org/id/metropolitan-district-council/leeds,Leeds City Council,28/02/2023,City Development,Asset Management,Capital,OTHER COSTS,7,21/02/2023,2302-00301,0.00,1068.93,C,Aecom Limited,No
Http://opendatacommunities.org/id/metropolitan-district-council/leeds,Leeds City Council,28/02/2023,City Development,Highways,Capital,OTHER COSTS,7,22/02/2023,2302-00302,0.00,106825.98,C,Aecom Limited,No
Http://opendatacommunities.org/id/metropolitan-district-council/leeds,Leeds City Council,28/02/2023,Adults and Health,Services For Adults Under 65 Mental/Dis,Agency Payments,Home Care,568,01/02/2023,2302-00303,0.00,787.20,R,Aegis Care Solutions Ltd,No
Http://opendatacommunities.org/id/metropolitan-district-council/leeds,Leeds City Council,28/02/2023,Adults and Health,Services For Adults Under 65 Mental/Dis,Agency Payments,Home Care,568,01/02/2023,2302-00304,0.00,594.00,R,Aegis Care Solutions Ltd,No
Http://opendatacommunities.org/id/metropolitan-district-council/leeds,Leeds City Council,28/02/2023,Adults and Health,Services For Adults Under 65 Mental/Dis,Agency Payments,Home Care,568,01/02/2023,2302-00305,0.00,1277.30,R,Aegis Care Solutions Ltd,No
Http://opendatacommunities.org/id/metropolitan-district-council/leeds,Leeds City Council,28/02/2023,Adults and Health,Services For Adults Under 65 Mental/Dis,Agency Payments,Home Care,568,01/02/2023,2302-00306,0.00,4574.40,R,Aegis Care Solutions Ltd,No
Http://opendatacommunities.org/id/metropolitan-district-council/leeds,Leeds City Council,28/02/2023,Adults and Health,Services For Adults Under 65 Mental/Dis,Agency Payments,Home Care,568,01/02/2023,2302-00307,0.00,1354.90,R,Aegis Care Solutions Ltd,No
Http://opendatacommunities.org/id/metropolitan-district-council/leeds,Leeds City Council,28/02/2023,Adults and Health,Services For Adults Under 65 Mental/Dis,Agency Payments,Home Care,568,01/02/2023,2302-00308,0.00,1315.50,R,Aegis Care Solutions Ltd,No
Http://opendatacommunities.org/id/metropolitan-district-council/leeds,Leeds City Council,28/02/2023,Adults and Health,Services For Adults Under 65 Mental/Dis,Agency Payments,Home Care,568,01/02/2023,2302-00309,0.00,1685.15,R,Aegis Care Solutions Ltd,No
Http://opendatacommunities.org/id/metropolitan-district-council/leeds,Leeds City Council,28/02/2023,Adults and Health,Services For Adults Under 65 Mental/Dis,Agency Payments,Home Care,568,01/02/2023,2302-00310,0.00,1448.80,R,Aegis Care Solutions Ltd,No
Http://opendatacommunities.org/id/metropolitan-district-council/leeds,Leeds City Council,28/02/2023,Adults and Health,Services For Adults Under 65 Mental/Dis,Agency Payments,Home Care,568,01/02/2023,2302-00311,0.00,1143.60,R,Aegis Care Solutions Ltd,No
Http://opendatacommunities.org/id/metropolitan-district-council/leeds,Leeds City Council,28/02/2023,Adults and Health,Services For Adults Under 65 Mental/Dis,Agency Payments,Home Care,568,01/02/2023,2302-00312,0.00,320.40,R,Aegis Care Solutions Ltd,No
Http://opendatacommunities.org/id/metropolitan-district-council/leeds,Leeds City Council,28/02/2023,Adults and Health,Services For Adults Under 65 Mental/Dis,Agency Payments,Home Care,568,01/02/2023,2302-00313,0.00,534.00,R,Aegis Care Solutions Ltd,No
Http://opendatacommunities.org/id/metropolitan-district-council/leeds,Leeds City Council as Accountable Body,28/02/2023,Social Services Pooled Budgets,Jcs For People With Learning Disabilitie,Agency Payments,Home Care,568,01/02/2023,2302-00314,0.00,1296.00,R,Aegis Care Solutions Ltd,No
Http://opendatacommunities.org/id/metropolitan-district-council/leeds,Leeds City Council,28/02/2023,Adults and Health,Services For Adults Under 65 Mental/Dis,Agency Payments,Home Care,568,03/02/2023,2302-00315,0.00,1263.00,R,Aegis Care Solutions Ltd,No
Http://opendatacommunities.org/id/metropolitan-district-council/leeds,Leeds City Council,28/02/2023,Adults and Health,Services For Adults Under 65 Mental/Dis,Agency Payments,Home Care,568,03/02/2023,2302-00316,0.00,1315.50,R,Aegis Care Solutions Ltd,No
Http://opendatacommunities.org/id/metropolitan-district-council/leeds,Leeds City Council as Accountable Body,28/02/2023,Social Services Pooled Budgets,Jcs For People With Learning Disabilitie,Agency Payments,Home Care,568,07/02/2023,2302-00317,0.00,1108.00,R,Aegis Care Solutions Ltd,No
Http://opendatacommunities.org/id/metropolitan-district-council/leeds,Leeds City Council,28/02/2023,Adults and Health,Services For Older People - 65 And Over,Agency Payments,Home Care,568,22/02/2023,2302-00318,0.00,102.45,R,Aegis Care Solutions Ltd,No
Http://opendatacommunities.org/id/metropolitan-district-council/leeds,Leeds City Council,28/02/2023,Adults and Health,Assessment And Care Management,Agency Payments,Home Care,568,03/02/2023,2302-00319,0.00,354.80,R,Affinity Trust,No
Http://opendatacommunities.org/id/metropolitan-district-council/leeds,Leeds City Council,28/02/2023,Adults and Health,Services For Older People - 65 And Over,Agency Payments,Home Care,568,03/02/2023,2302-00320,0.00,567.68,R,Affinity Trust,No
Http://opendatacommunities.org/id/metropolitan-district-council/leeds,Leeds City Council as Accountable Body,28/02/2023,Social Services Pooled Budgets,Jcs For People With Learning Disabilitie,Agency Payments,Day Centre,564,03/02/2023,2302-00321,0.00,14919.34,R,Affinity Trust,No
Http://opendatacommunities.org/id/metropolitan-district-council/leeds,Leeds City Council,28/02/2023,Adults and Health,Services For Adults Under 65 Mental/Dis,Agency Payments,Home Care,568,03/02/2023,2302-00322,0.00,141.92,R,Affinity Trust,No
Http://opendatacommunities.org/id/metropolitan-district-council/leeds,Leeds City Council,28/02/2023,Adults and Health,Assessment And Care Management,Agency Payments,Home Care,568,15/02/2023,2302-00323,0.00,141.92,R,Affinity Trust,No
Http://opendatacommunities.org/id/metropolitan-district-council/leeds,Leeds City Council,28/02/2023,Adults and Health,Services For Adults Under 65 Mental/Dis,Agency Payments,Home Care,568,15/02/2023,2302-00324,0.00,567.68,R,Affinity Trust,No
Http://opendatacommunities.org/id/metropolitan-district-council/leeds,Leeds City Council,28/02/2023,Adults and Health,Services For Adults Under 65 Mental/Dis,Agency Payments,HCAIT Community Support,575,15/02/2023,2302-00325,0.00,354.80,R,Affinity Trust,No
Http://opendatacommunities.org/id/metropolitan-district-council/leeds,Leeds City Council,28/02/2023,Adults and Health,Services For Older People - 65 And Over,Agency Payments,HCAIT Community Support,575,15/02/2023,2302-00326,0.00,585.42,R,Affinity Trust,No
Http://opendatacommunities.org/id/metropolitan-district-council/leeds,Leeds City Council,28/02/2023,Adults and Health,Services For Older People Under 65 P/Dis,Agency Payments,Home Care,568,15/02/2023,2302-00327,0.00,851.52,R,Affinity Trust,No
Http://opendatacommunities.org/id/metropolitan-district-council/leeds,Leeds City Council,28/02/2023,Adults and Health,Services For Older People Under 65 P/Dis,Agency Payments,HCAIT Community Support,575,15/02/2023,2302-00328,0.00,780.56,R,Affinity Trust,No
Http://opendatacommunities.org/id/metropolitan-district-council/leeds,Leeds City Council,28/02/2023,Adults and Health,Assessment And Care Management,Agency Payments,Home Care,568,15/02/2023,2302-00329,0.00,70.96,R,Affinity Trust,No
Http://opendatacommunities.org/id/metropolitan-district-council/leeds,Leeds City Council,28/02/2023,Adults and Health,Services For Adults Under 65 Mental/Dis,Agency Payments,Home Care,568,15/02/2023,2302-00330,0.00,567.68,R,Affinity Trust,No
Http://opendatacommunities.org/id/metropolitan-district-council/leeds,Leeds City Council,28/02/2023,Adults and Health,Services For Adults Under 65 Mental/Dis,Agency Payments,HCAIT Community Support,575,15/02/2023,2302-00331,0.00,354.80,R,Affinity Trust,No
Http://opendatacommunities.org/id/metropolitan-district-council/leeds,Leeds City Council,28/02/2023,Adults and Health,Services For Older People - 65 And Over,Agency Payments,HCAIT Community Support,575,15/02/2023,2302-00332,0.00,585.42,R,Affinity Trust,No
Http://opendatacommunities.org/id/metropolitan-district-council/leeds,Leeds City Council,28/02/2023,Adults and Health,Services For Older People Under 65 P/Dis,Agency Payments,Home Care,568,15/02/2023,2302-00333,0.00,851.52,R,Affinity Trust,No
Http://opendatacommunities.org/id/metropolitan-district-council/leeds,Leeds City Council,28/02/2023,Adults and Health,Services For Older People Under 65 P/Dis,Agency Payments,HCAIT Community Support,575,15/02/2023,2302-00334,0.00,780.56,R,Affinity Trust,No
Http://opendatacommunities.org/id/metropolitan-district-council/leeds,Leeds City Council as Accountable Body,28/02/2023,Social Services Pooled Budgets,Jcs For People With Learning Disabilitie,Agency Payments,Sheltered Accommodation,569,01/02/2023,2302-00335,0.00,116933.60,R,Affinity Trust North Divisional Office,No
Http://opendatacommunities.org/id/metropolitan-district-council/leeds,Leeds City Council,28/02/2023,Communities Housing and Environment,Parks and Countryside ,Transport,Hire Of Movable Plant & Machinery,315,16/01/2023,2302-00336,0.00,4750.00,R,Afi Uplift,Yes
Http://opendatacommunities.org/id/metropolitan-district-council/leeds,Leeds City Council,28/02/2023,Communities Housing and Environment,Parks and Countryside ,Transport,Hire Of Movable Plant & Machinery,315,06/02/2023,2302-00337,0.00,4650.00,R,Afi Uplift,Yes
Http://opendatacommunities.org/id/metropolitan-district-council/leeds,Leeds City Council,28/02/2023,Children and Families,Social Care ,Agency Payments,Placement Support,550,20/01/2023,2302-00338,0.00,3.20,R,Afro Grocers,Yes
Http://opendatacommunities.org/id/metropolitan-district-council/leeds,Leeds City Council,28/02/2023,Children and Families,Social Care ,Agency Payments,Placement Support,550,10/02/2023,2302-00339,0.00,2.74,R,Afro Grocers,Yes
Http://opendatacommunities.org/id/metropolitan-district-council/leeds,Leeds City Council,28/02/2023,Communities Housing and Environment,Communities,Supplies and Services,Other Hired And Contracted Services,265,21/02/2023,2302-00340,0.00,100.00,R,Age Uk Leeds,No
Http://opendatacommunities.org/id/metropolitan-district-council/leeds,Leeds City Council,28/02/2023,City Development,Highways,Supplies and Services,Operational Materials,205,24/02/2023,2302-00341,0.00,6255.33,R,AGGREGATE INDUSTRIES UK LTD,No
Http://opendatacommunities.org/id/metropolitan-district-council/leeds,Leeds City Council,28/02/2023,City Development,Highways,Supplies and Services,Operational Materials,205,24/02/2023,2302-00342,0.00,7682.50,R,AGGREGATE INDUSTRIES UK LTD,No
Http://opendatacommunities.org/id/metropolitan-district-council/leeds,Leeds City Council,28/02/2023,City Development,Highways,Supplies and Services,Operational Materials,205,24/02/2023,2302-00343,0.00,445.27,R,AGGREGATE INDUSTRIES UK LTD,No
Http://opendatacommunities.org/id/metropolitan-district-council/leeds,Leeds City Council,28/02/2023,City Development,Highways,Supplies and Services,Operational Materials,205,24/02/2023,2302-00344,0.00,7851.40,R,AGGREGATE INDUSTRIES UK LTD,No
Http://opendatacommunities.org/id/metropolitan-district-council/leeds,Leeds City Council,28/02/2023,City Development,Highways ,Supplies and Services,Other Hired And Contracted Services,265,24/02/2023,2302-00345,0.00,90.00,R,Agilysis Ltd,Yes
Http://opendatacommunities.org/id/metropolitan-district-council/leeds,Leeds City Council,28/02/2023,Communities Housing and Environment,Customer Access,Supplies and Services,Bought In Professional Services,277,01/02/2023,2302-00346,0.00,27.00,R,Agnieszka J Collier,No
Http://opendatacommunities.org/id/metropolitan-district-council/leeds,Leeds City Council,28/02/2023,Communities Housing and Environment,Customer Access,Supplies and Services,Bought In Professional Services,277,01/02/2023,2302-00347,0.00,37.50,R,Agnieszka J Collier,No
Http://opendatacommunities.org/id/metropolitan-district-council/leeds,Leeds City Council,28/02/2023,Communities Housing and Environment,Customer Access,Supplies and Services,Bought In Professional Services,277,22/02/2023,2302-00348,0.00,27.00,R,Agnieszka J Collier,No
Http://opendatacommunities.org/id/metropolitan-district-council/leeds,Leeds City Council,28/02/2023,Communities Housing and Environment,Customer Access,Supplies and Services,Bought In Professional Services,277,22/02/2023,2302-00349,0.00,18.00,R,Agnieszka J Collier,No
Http://opendatacommunities.org/id/metropolitan-district-council/leeds,Leeds City Council,28/02/2023,Communities Housing and Environment,Customer Access,Supplies and Services,Bought In Professional Services,277,15/02/2023,2302-00350,0.00,75.20,R,Ahmed T. Al-Hamdi,No
Http://opendatacommunities.org/id/metropolitan-district-council/leeds,Leeds City Council,28/02/2023,City Development,Economic Development,Supplies and Services,Grants To Businesses,243,27/02/2023,2302-00351,0.00,22000.00,R,AI Tech UK Ltd,No
Http://opendatacommunities.org/id/metropolitan-district-council/leeds,Leeds City Council,28/02/2023,Children and Families,Social Care,Agency Payments,Placement Support,550,06/02/2023,2302-00352,0.00,9.00,R,REDACTED PERSONAL DATA,No
Http://opendatacommunities.org/id/metropolitan-district-council/leeds,Leeds City Council,28/02/2023,Children and Families,Social Care,Appropriations,Leaving Care Allowances,634,16/02/2023,2302-00353,0.00,9.00,R,REDACTED PERSONAL DATA,No
Http://opendatacommunities.org/id/metropolitan-district-council/leeds,Leeds City Council,28/02/2023,Resources,Leeds Building Services,Supplies and Services,Operational Materials,205,27/02/2023,2302-00354,0.00,13.59,R,Air Conditioning Accessories,No
Http://opendatacommunities.org/id/metropolitan-district-council/leeds,Leeds City Council,28/02/2023,Resources,Commercial Services ,Supplies and Services,Operational Materials,205,12/01/2023,2302-00355,0.00,278.58,R,Air Force Pneumatics And,Yes
Http://opendatacommunities.org/id/metropolitan-district-council/leeds,Leeds City Council,28/02/2023,Communities Housing and Environment,Parks and Countryside ,Supplies and Services,Operational Furniture And Equipment,203,17/02/2023,2302-00356,0.00,34.12,R,Air Force Pneumatics And,Yes
Http://opendatacommunities.org/id/metropolitan-district-council/leeds,Leeds City Council,28/02/2023,Communities Housing and Environment,Environmental Health,Supplies and Services,Other Hired And Contracted Services,265,02/02/2023,2302-00357,0.00,11.75,R,AIR LIQUIDE UK,No
Http://opendatacommunities.org/id/metropolitan-district-council/leeds,Leeds City Council,28/02/2023,Communities Housing and Environment,Environmental Health,Supplies and Services,Other Hired And Contracted Services,265,02/02/2023,2302-00358,0.00,11.75,R,AIR LIQUIDE UK,No
Http://opendatacommunities.org/id/metropolitan-district-council/leeds,Leeds City Council,28/02/2023,Communities Housing and Environment,Environmental Health,Supplies and Services,Other Hired And Contracted Services,265,02/02/2023,2302-00359,0.00,18.16,R,AIR LIQUIDE UK,No
Http://opendatacommunities.org/id/metropolitan-district-council/leeds,Leeds City Council,28/02/2023,Communities Housing and Environment,Environmental Health,Supplies and Services,Other Hired And Contracted Services,265,02/02/2023,2302-00360,0.00,94.00,R,AIR LIQUIDE UK,No
Http://opendatacommunities.org/id/metropolitan-district-council/leeds,Leeds City Council,28/02/2023,Children and Families,Social Care ,Agency Payments,Placement Support,550,26/02/2023,2302-00361,0.00,360.00,R,Airbnb * Hmfdqhp45f,Yes
Http://opendatacommunities.org/id/metropolitan-district-council/leeds,Leeds City Council,28/02/2023,Children and Families,Social Care ,Agency Payments,Section 17,551,20/01/2023,2302-00362,0.00,310.00,R,Airbnb * Hmkxh58nxq,Yes
Http://opendatacommunities.org/id/metropolitan-district-council/leeds,Leeds City Council,28/02/2023,Children and Families,Social Care ,Agency Payments,Section 17,551,21/01/2023,2302-00363,0.00,-310.00,R,Airbnb * Hmkxh58nxq,Yes
Http://opendatacommunities.org/id/metropolitan-district-council/leeds,Leeds City Council,28/02/2023,Adults and Health,Public Health,Supplies and Services,Computer Software & Equipment,214,15/02/2023,2302-00364,0.00,3325.00,R,Aire Logic Ltd,No
Http://opendatacommunities.org/id/metropolitan-district-council/leeds,Leeds City Council,28/02/2023,Adults and Health,Public Health,Agency Payments,Public Health Commissioned Services,526,10/02/2023,2302-00365,0.00,3081.16,R,Aire Valley Surgery,No
Http://opendatacommunities.org/id/metropolitan-district-council/leeds,Leeds City Council,28/02/2023,Communities Housing and Environment,Parks and Countryside,Supplies and Services,Other Hired And Contracted Services,265,10/02/2023,2302-00366,0.00,1307.00,R,Aire Valley Tree Services Ltd,No
Http://opendatacommunities.org/id/metropolitan-district-council/leeds,Leeds City Council,28/02/2023,Communities Housing and Environment,Parks and Countryside,Supplies and Services,Other Hired And Contracted Services,265,16/02/2023,2302-00367,0.00,190.00,R,Aire Valley Tree Services Ltd,No
Http://opendatacommunities.org/id/metropolitan-district-council/leeds,Leeds City Council,28/02/2023,Communities Housing and Environment,Parks and Countryside,Supplies and Services,Other Hired And Contracted Services,265,17/02/2023,2302-00368,0.00,452.00,R,Aire Valley Tree Services Ltd,No
Http://opendatacommunities.org/id/metropolitan-district-council/leeds,Leeds City Council,28/02/2023,Adults and Health,Services For Older People - 65 And Over,Agency Payments,Residential Care Dementia,571,01/02/2023,2302-00369,0.00,48670.45,R,Aire View Residential Home,No
Http://opendatacommunities.org/id/metropolitan-district-council/leeds,Leeds City Council,28/02/2023,Adults and Health,Services For Older People - 65 And Over,Agency Payments,Residential,580,01/02/2023,2302-00370,0.00,4199.53,R,Aire View Residential Home,No
Http://opendatacommunities.org/id/metropolitan-district-council/leeds,Leeds City Council,28/02/2023,Adults and Health,Public Health,Agency Payments,Public Health Commissioned Services,526,10/02/2023,2302-00371,0.00,1123.28,R,Aireborough Family Practice,No
Http://opendatacommunities.org/id/metropolitan-district-council/leeds,Leeds City Council,28/02/2023,Strategic Accounts,Miscellaneous,Supplies and Services,Non-Recurring Grants,227,14/02/2023,2302-00372,0.00,500.00,R,Aireborough Historical Society,No
Http://opendatacommunities.org/id/metropolitan-district-council/leeds,Leeds City Council,28/02/2023,City Development,Recreation ,Supplies and Services,Other Hired And Contracted Services,265,20/02/2023,2302-00373,0.00,5.00,R,Aireborough Leisure Centr,Yes
Http://opendatacommunities.org/id/metropolitan-district-council/leeds,Leeds City Council,28/02/2023,Adults and Health,Services For Older People - 65 And Over,Agency Payments,Residential Care Dementia,571,01/02/2023,2302-00374,0.00,32893.28,R,Airedale Residential Home,No
Http://opendatacommunities.org/id/metropolitan-district-council/leeds,Leeds City Council,28/02/2023,Adults and Health,Services For Older People - 65 And Over,Agency Payments,Residential,580,01/02/2023,2302-00375,0.00,25293.73,R,Airedale Residential Home,No
Http://opendatacommunities.org/id/metropolitan-district-council/leeds,Leeds City Council,28/02/2023,Children and Families,Social Care ,Agency Payments,Placement Support,550,04/01/2023,2302-00376,0.00,13.75,R,Airpay 44961925-Amber Car,Yes
Http://opendatacommunities.org/id/metropolitan-district-council/leeds,Leeds City Council,28/02/2023,Children and Families,Social Care ,Agency Payments,Placement Support,550,04/01/2023,2302-00377,0.00,19.75,R,Airpay 44961967-Amber Car,Yes
Http://opendatacommunities.org/id/metropolitan-district-council/leeds,Leeds City Council,28/02/2023,Children and Families,Social Care ,Agency Payments,Placement Support,550,05/01/2023,2302-00378,0.00,12.45,R,Airpay 44962001-Amber Car,Yes
Http://opendatacommunities.org/id/metropolitan-district-council/leeds,Leeds City Council,28/02/2023,Children and Families,Social Care ,Agency Payments,Placement Support,550,06/01/2023,2302-00379,0.00,11.45,R,Airpay 44962039-Amber Car,Yes
Http://opendatacommunities.org/id/metropolitan-district-council/leeds,Leeds City Council,28/02/2023,Children and Families,Social Care ,Agency Payments,Placement Support,550,06/01/2023,2302-00380,0.00,11.25,R,Airpay 44962042-Amber Car,Yes
Http://opendatacommunities.org/id/metropolitan-district-council/leeds,Leeds City Council,28/02/2023,Children and Families,Social Care ,Agency Payments,Placement Support,550,05/01/2023,2302-00381,0.00,19.75,R,Airpay 44962052-Amber Car,Yes
Http://opendatacommunities.org/id/metropolitan-district-council/leeds,Leeds City Council,28/02/2023,Children and Families,Social Care ,Agency Payments,Placement Support,550,05/01/2023,2302-00382,0.00,19.85,R,Airpay 44962055-Amber Car,Yes
Http://opendatacommunities.org/id/metropolitan-district-council/leeds,Leeds City Council,28/02/2023,Children and Families,Social Care ,Agency Payments,Placement Support,550,06/01/2023,2302-00383,0.00,21.95,R,Airpay 44962058-Amber Car,Yes
Http://opendatacommunities.org/id/metropolitan-district-council/leeds,Leeds City Council,28/02/2023,Children and Families,Social Care ,Agency Payments,Placement Support,550,06/01/2023,2302-00384,0.00,21.95,R,Airpay 44962060-Amber Car,Yes
Http://opendatacommunities.org/id/metropolitan-district-council/leeds,Leeds City Council,28/02/2023,Children and Families,Social Care ,Agency Payments,Placement Support,550,09/01/2023,2302-00385,0.00,11.25,R,Airpay 44991036-Amber Car,Yes
Http://opendatacommunities.org/id/metropolitan-district-council/leeds,Leeds City Council,28/02/2023,Children and Families,Social Care ,Agency Payments,Placement Support,550,10/01/2023,2302-00386,0.00,12.55,R,Airpay 44991065-Amber Car,Yes
Http://opendatacommunities.org/id/metropolitan-district-council/leeds,Leeds City Council,28/02/2023,Children and Families,Social Care ,Agency Payments,Placement Support,550,10/01/2023,2302-00387,0.00,11.25,R,Airpay 44991083-Amber Car,Yes
Http://opendatacommunities.org/id/metropolitan-district-council/leeds,Leeds City Council,28/02/2023,Children and Families,Social Care ,Agency Payments,Placement Support,550,11/01/2023,2302-00388,0.00,12.65,R,Airpay 44991100-Amber Car,Yes
Http://opendatacommunities.org/id/metropolitan-district-council/leeds,Leeds City Council,28/02/2023,Children and Families,Social Care ,Agency Payments,Placement Support,550,11/01/2023,2302-00389,0.00,13.15,R,Airpay 44991117-Amber Car,Yes
Http://opendatacommunities.org/id/metropolitan-district-council/leeds,Leeds City Council,28/02/2023,Children and Families,Social Care ,Transport,Public Transport Expenses,310,11/01/2023,2302-00390,0.00,11.65,R,Airpay 44993407-Amber Car,Yes
Http://opendatacommunities.org/id/metropolitan-district-council/leeds,Leeds City Council,28/02/2023,Children and Families,Social Care ,Agency Payments,Placement Support,550,11/01/2023,2302-00391,0.00,8.55,R,Airpay 45052434-Amber Car,Yes
Http://opendatacommunities.org/id/metropolitan-district-council/leeds,Leeds City Council,28/02/2023,Children and Families,Social Care ,Transport,Public Transport Expenses,310,12/01/2023,2302-00392,0.00,17.54,R,Airpay 45053647-Amber Car,Yes
Http://opendatacommunities.org/id/metropolitan-district-council/leeds,Leeds City Council,28/02/2023,Children and Families,Social Care ,Agency Payments,Placement Support,550,12/01/2023,2302-00393,0.00,12.05,R,Airpay 45062345-Amber Car,Yes
Http://opendatacommunities.org/id/metropolitan-district-council/leeds,Leeds City Council,28/02/2023,Children and Families,Social Care ,Transport,Public Transport Expenses,310,12/01/2023,2302-00394,0.00,10.87,R,Airpay 45064438-Amber Car,Yes
Http://opendatacommunities.org/id/metropolitan-district-council/leeds,Leeds City Council,28/02/2023,Children and Families,Social Care ,Agency Payments,Placement Support,550,13/01/2023,2302-00395,0.00,11.35,R,Airpay 45081041-Amber Car,Yes
Http://opendatacommunities.org/id/metropolitan-district-council/leeds,Leeds City Council,28/02/2023,Children and Families,Social Care ,Agency Payments,Placement Support,550,16/01/2023,2302-00396,0.00,18.25,R,Airpay 45084695-Amber Car,Yes
Http://opendatacommunities.org/id/metropolitan-district-council/leeds,Leeds City Council,28/02/2023,Children and Families,Social Care ,Agency Payments,Placement Support,550,16/01/2023,2302-00397,0.00,18.15,R,Airpay 45084786-Amber Car,Yes
Http://opendatacommunities.org/id/metropolitan-district-council/leeds,Leeds City Council,28/02/2023,Children and Families,Social Care ,Agency Payments,Placement Support,550,17/01/2023,2302-00398,0.00,20.05,R,Airpay 45084819-Amber Car,Yes
Http://opendatacommunities.org/id/metropolitan-district-council/leeds,Leeds City Council,28/02/2023,Children and Families,Social Care ,Agency Payments,Placement Support,550,17/01/2023,2302-00399,0.00,18.35,R,Airpay 45084841-Amber Car,Yes
Http://opendatacommunities.org/id/metropolitan-district-council/leeds,Leeds City Council,28/02/2023,Children and Families,Social Care ,Agency Payments,Placement Support,550,18/01/2023,2302-00400,0.00,19.95,R,Airpay 45084858-Amber Car,Yes
Http://opendatacommunities.org/id/metropolitan-district-council/leeds,Leeds City Council,28/02/2023,Children and Families,Social Care ,Agency Payments,Placement Support,550,18/01/2023,2302-00401,0.00,20.55,R,Airpay 45084878-Amber Car,Yes
Http://opendatacommunities.org/id/metropolitan-district-council/leeds,Leeds City Council,28/02/2023,Children and Families,Social Care ,Appropriations,Leaving Care Allowances,634,16/01/2023,2302-00402,0.00,10.55,R,Airpay 45113818-Amber Car,Yes
Http://opendatacommunities.org/id/metropolitan-district-council/leeds,Leeds City Council,28/02/2023,Children and Families,Social Care ,Transport,Public Transport Expenses,310,16/01/2023,2302-00403,0.00,8.85,R,Airpay 45116442-Amber Car,Yes
Http://opendatacommunities.org/id/metropolitan-district-council/leeds,Leeds City Council,28/02/2023,Children and Families,Social Care ,Transport,Public Transport Expenses,310,23/01/2023,2302-00404,0.00,13.45,R,Airpay 45165788-Amber Car,Yes
Http://opendatacommunities.org/id/metropolitan-district-council/leeds,Leeds City Council,28/02/2023,Children and Families,Social Care ,Agency Payments,Placement Support,550,23/01/2023,2302-00405,0.00,17.85,R,Airpay 45203481-Amber Car,Yes
Http://opendatacommunities.org/id/metropolitan-district-council/leeds,Leeds City Council,28/02/2023,Children and Families,Social Care ,Transport,Public Transport Expenses,310,23/01/2023,2302-00406,0.00,8.65,R,Airpay 45205657-Amber Car,Yes
Http://opendatacommunities.org/id/metropolitan-district-council/leeds,Leeds City Council,28/02/2023,Children and Families,Social Care ,Transport,Public Transport Expenses,310,23/01/2023,2302-00407,0.00,10.45,R,Airpay 45205911-Amber Car,Yes
Http://opendatacommunities.org/id/metropolitan-district-council/leeds,Leeds City Council,28/02/2023,Children and Families,Social Care ,Transport,Public Transport Expenses,310,23/01/2023,2302-00408,0.00,12.95,R,Airpay 45206047-Amber Car,Yes
Http://opendatacommunities.org/id/metropolitan-district-council/leeds,Leeds City Council,28/02/2023,Children and Families,Social Care ,Transport,Public Transport Expenses,310,25/01/2023,2302-00409,0.00,8.65,R,Airpay 45229527-Amber Car,Yes
Http://opendatacommunities.org/id/metropolitan-district-council/leeds,Leeds City Council,28/02/2023,Children and Families,Social Care ,Appropriations,Young Peoples Activities,652,29/01/2023,2302-00410,0.00,10.95,R,Airpay 45286406-Amber Car,Yes
Http://opendatacommunities.org/id/metropolitan-district-council/leeds,Leeds City Council,28/02/2023,Children and Families,Social Care ,Appropriations,Young Peoples Activities,652,29/01/2023,2302-00411,0.00,16.75,R,Airpay 45286415-Amber Car,Yes
Http://opendatacommunities.org/id/metropolitan-district-council/leeds,Leeds City Council,28/02/2023,Children and Families,Social Care ,Transport,Public Transport Expenses,310,30/01/2023,2302-00412,0.00,10.35,R,Airpay 45298485-Amber Car,Yes
Http://opendatacommunities.org/id/metropolitan-district-council/leeds,Leeds City Council,28/02/2023,Children and Families,Social Care ,Agency Payments,Placement Support,550,01/02/2023,2302-00413,0.00,28.85,R,Airpay 45324570-Amber Car,Yes
Http://opendatacommunities.org/id/metropolitan-district-council/leeds,Leeds City Council,28/02/2023,Children and Families,Social Care ,Transport,Public Transport Expenses,310,02/02/2023,2302-00414,0.00,8.95,R,Airpay 45335194-Amber Car,Yes
Http://opendatacommunities.org/id/metropolitan-district-council/leeds,Leeds City Council,28/02/2023,Children and Families,Social Care ,Appropriations,Young Peoples Activities,652,02/02/2023,2302-00415,0.00,11.55,R,Airpay 45339139-Amber Car,Yes
Http://opendatacommunities.org/id/metropolitan-district-council/leeds,Leeds City Council,28/02/2023,Children and Families,Social Care ,Appropriations,Young Peoples Activities,652,02/02/2023,2302-00416,0.00,8.35,R,Airpay 45339144-Amber Car,Yes
Http://opendatacommunities.org/id/metropolitan-district-council/leeds,Leeds City Council,28/02/2023,Children and Families,Social Care ,Appropriations,Young Peoples Activities,652,02/02/2023,2302-00417,0.00,8.85,R,Airpay 45339172-Amber Car,Yes
Http://opendatacommunities.org/id/metropolitan-district-council/leeds,Leeds City Council,28/02/2023,Children and Families,Social Care ,Appropriations,Young Peoples Activities,652,02/02/2023,2302-00418,0.00,12.45,R,Airpay 45341017-Amber Car,Yes
Http://opendatacommunities.org/id/metropolitan-district-council/leeds,Leeds City Council,28/02/2023,Children and Families,Social Care ,Agency Payments,Contact,548,14/02/2023,2302-00419,0.00,46.65,R,Airpay 45491314-Amber Car,Yes
Http://opendatacommunities.org/id/metropolitan-district-council/leeds,Leeds City Council,28/02/2023,Children and Families,Social Care ,Agency Payments,Contact,548,17/02/2023,2302-00420,0.00,34.35,R,Airpay 45526089-Amber Car,Yes
Http://opendatacommunities.org/id/metropolitan-district-council/leeds,Leeds City Council,28/02/2023,Children and Families,Social Care ,Agency Payments,Contact,548,17/02/2023,2302-00421,0.00,35.55,R,Airpay 45526090-Amber Car,Yes
Http://opendatacommunities.org/id/metropolitan-district-council/leeds,Leeds City Council,28/02/2023,Children and Families,Social Care ,Transport,Public Transport Expenses,310,20/02/2023,2302-00422,0.00,8.15,R,Airpay 45571627-Amber Car,Yes
Http://opendatacommunities.org/id/metropolitan-district-council/leeds,Leeds City Council,28/02/2023,Children and Families,Social Care ,Agency Payments,Contact,548,20/02/2023,2302-00423,0.00,36.25,R,Airpay 45571924-Amber Car,Yes
Http://opendatacommunities.org/id/metropolitan-district-council/leeds,Leeds City Council,28/02/2023,Children and Families,Social Care ,Transport,Public Transport Expenses,310,22/02/2023,2302-00424,0.00,6.25,R,Airpay 45573465-Amber Car,Yes
Http://opendatacommunities.org/id/metropolitan-district-council/leeds,Leeds City Council,28/02/2023,Children and Families,Social Care ,Transport,Public Transport Expenses,310,21/02/2023,2302-00425,0.00,15.05,R,Airpay 45573976-Amber Car,Yes
Http://opendatacommunities.org/id/metropolitan-district-council/leeds,Leeds City Council,28/02/2023,Children and Families,Social Care ,Transport,Public Transport Expenses,310,21/02/2023,2302-00426,0.00,10.21,R,Airpay 45579177-Amber Car,Yes
Http://opendatacommunities.org/id/metropolitan-district-council/leeds,Leeds City Council,28/02/2023,Children and Families,Social Care ,Agency Payments,Placement Support,550,21/02/2023,2302-00427,0.00,28.85,R,Airpay 45582129-Amber Car,Yes
Http://opendatacommunities.org/id/metropolitan-district-council/leeds,Leeds City Council,28/02/2023,Children and Families,Social Care ,Transport,Public Transport Expenses,310,22/02/2023,2302-00428,0.00,8.29,R,Airpay 45591948-Amber Car,Yes
Http://opendatacommunities.org/id/metropolitan-district-council/leeds,Leeds City Council,28/02/2023,Children and Families,Social Care ,Transport,Public Transport Expenses,310,22/02/2023,2302-00429,0.00,34.35,R,Airpay 45594213-Amber Car,Yes
Http://opendatacommunities.org/id/metropolitan-district-council/leeds,Leeds City Council,28/02/2023,Children and Families,Social Care ,Transport,Public Transport Expenses,310,24/02/2023,2302-00430,0.00,15.37,R,Airpay 45621776-Amber Car,Yes
Http://opendatacommunities.org/id/metropolitan-district-council/leeds,Leeds City Council,28/02/2023,Children and Families,Social Care ,Appropriations,Leaving Care Allowances,634,26/02/2023,2302-00431,0.00,11.15,R,Airpay 45652420-Amber Car,Yes
Http://opendatacommunities.org/id/metropolitan-district-council/leeds,Leeds City Council,28/02/2023,Children and Families,Social Care ,Appropriations,Leaving Care Allowances,634,26/02/2023,2302-00432,0.00,11.75,R,Airpay 45653886-Amber Car,Yes
Http://opendatacommunities.org/id/metropolitan-district-council/leeds,Leeds City Council,28/02/2023,Adults and Health,Services For Adults Under 65 Mental/Dis,Agency Payments,Fees - Level 4,520,03/02/2023,2302-00433,0.00,175.00,R,AIT Mitra Limited,No
Http://opendatacommunities.org/id/metropolitan-district-council/leeds,Leeds City Council,28/02/2023,Adults and Health,Services For Adults Under 65 Mental/Dis,Agency Payments,Fees - Level 4,520,07/02/2023,2302-00434,0.00,175.00,R,AIT Mitra Limited,No
Http://opendatacommunities.org/id/metropolitan-district-council/leeds,Leeds City Council,28/02/2023,Adults and Health,Services For Adults Under 65 Mental/Dis,Agency Payments,Fees - Level 4,520,14/02/2023,2302-00435,0.00,175.00,R,AIT Mitra Limited,No
Http://opendatacommunities.org/id/metropolitan-district-council/leeds,Leeds City Council as Accountable Body,28/02/2023,Social Services Pooled Budgets,Jcs For People With Learning Disabilitie,Agency Payments,Residential,580,01/02/2023,2302-00436,0.00,7082.20,R,AITCH care homes,No
Http://opendatacommunities.org/id/metropolitan-district-council/leeds,Leeds City Council,28/02/2023,Resources,Commercial Services,Supplies and Services,Other Hired And Contracted Services,265,21/02/2023,2302-00437,0.00,6825.00,R,REDACTED PERSONAL DATA,No
Http://opendatacommunities.org/id/metropolitan-district-council/leeds,Leeds City Council,28/02/2023,Communities Housing and Environment,Benefits Wlefare and Poverty,Supplies and Services,Grant Related Expenditure,290,06/02/2023,2302-00438,0.00,70.00,R,REDACTED PERSONAL DATA,No
Http://opendatacommunities.org/id/metropolitan-district-council/leeds,Leeds City Council,28/02/2023,Resources,Leeds Building Services,Supplies and Services,Operational Furniture And Equipment,203,02/02/2023,2302-00439,0.00,67.00,R,AJM FIXINGS & POWER TOOLS LTD,No
Http://opendatacommunities.org/id/metropolitan-district-council/leeds,Leeds City Council,28/02/2023,Resources,Leeds Building Services,Supplies and Services,Operational Furniture And Equipment,203,02/02/2023,2302-00440,0.00,102.10,R,AJM FIXINGS & POWER TOOLS LTD,No
Http://opendatacommunities.org/id/metropolitan-district-council/leeds,Leeds City Council,28/02/2023,Resources,Leeds Building Services,Supplies and Services,Operational Furniture And Equipment,203,02/02/2023,2302-00441,0.00,142.00,R,AJM FIXINGS & POWER TOOLS LTD,No
Http://opendatacommunities.org/id/metropolitan-district-council/leeds,Leeds City Council,28/02/2023,Resources,Leeds Building Services,Supplies and Services,Operational Furniture And Equipment,203,02/02/2023,2302-00442,0.00,1450.57,R,AJM FIXINGS & POWER TOOLS LTD,No
Http://opendatacommunities.org/id/metropolitan-district-council/leeds,Leeds City Council,28/02/2023,Resources,Leeds Building Services,Supplies and Services,Operational Furniture And Equipment,203,02/02/2023,2302-00443,0.00,350.22,R,AJM FIXINGS & POWER TOOLS LTD,No
Http://opendatacommunities.org/id/metropolitan-district-council/leeds,Leeds City Council,28/02/2023,Resources,Leeds Building Services,Supplies and Services,Operational Furniture And Equipment,203,02/02/2023,2302-00444,0.00,779.78,R,AJM FIXINGS & POWER TOOLS LTD,No
Http://opendatacommunities.org/id/metropolitan-district-council/leeds,Leeds City Council,28/02/2023,Resources,Leeds Building Services,Premises,Cleaning Maintenance & Toiletries,127,02/02/2023,2302-00445,0.00,119.99,R,AJM FIXINGS & POWER TOOLS LTD,No
Http://opendatacommunities.org/id/metropolitan-district-council/leeds,Leeds City Council,28/02/2023,Resources,Leeds Building Services,Supplies and Services,Operational Furniture And Equipment,203,03/02/2023,2302-00446,0.00,115.82,R,AJM FIXINGS & POWER TOOLS LTD,No
Http://opendatacommunities.org/id/metropolitan-district-council/leeds,Leeds City Council,28/02/2023,Resources,Leeds Building Services,Premises,Cleaning Maintenance & Toiletries,127,03/02/2023,2302-00447,0.00,155.00,R,AJM FIXINGS & POWER TOOLS LTD,No
Http://opendatacommunities.org/id/metropolitan-district-council/leeds,Leeds City Council,28/02/2023,Resources,Leeds Building Services,Supplies and Services,Operational Furniture And Equipment,203,03/02/2023,2302-00448,0.00,1450.57,R,AJM FIXINGS & POWER TOOLS LTD,No
Http://opendatacommunities.org/id/metropolitan-district-council/leeds,Leeds City Council,28/02/2023,Resources,Leeds Building Services,Supplies and Services,Operational Furniture And Equipment,203,03/02/2023,2302-00449,0.00,2202.39,R,AJM FIXINGS & POWER TOOLS LTD,No
Http://opendatacommunities.org/id/metropolitan-district-council/leeds,Leeds City Council,28/02/2023,Resources,Leeds Building Services,Supplies and Services,Operational Furniture And Equipment,203,08/02/2023,2302-00450,0.00,97.00,R,AJM FIXINGS & POWER TOOLS LTD,No
Http://opendatacommunities.org/id/metropolitan-district-council/leeds,Leeds City Council,28/02/2023,Resources,Leeds Building Services,Supplies and Services,Operational Furniture And Equipment,203,08/02/2023,2302-00451,0.00,67.00,R,AJM FIXINGS & POWER TOOLS LTD,No
Http://opendatacommunities.org/id/metropolitan-district-council/leeds,Leeds City Council,28/02/2023,Resources,Leeds Building Services,Premises,Cleaning Maintenance & Toiletries,127,08/02/2023,2302-00452,0.00,38.99,R,AJM FIXINGS & POWER TOOLS LTD,No
Http://opendatacommunities.org/id/metropolitan-district-council/leeds,Leeds City Council,28/02/2023,Resources,Leeds Building Services,Premises,Cleaning Maintenance & Toiletries,127,08/02/2023,2302-00453,0.00,267.30,R,AJM FIXINGS & POWER TOOLS LTD,No
Http://opendatacommunities.org/id/metropolitan-district-council/leeds,Leeds City Council,28/02/2023,Resources,Leeds Building Services,Supplies and Services,Operational Furniture And Equipment,203,08/02/2023,2302-00454,0.00,213.40,R,AJM FIXINGS & POWER TOOLS LTD,No
Http://opendatacommunities.org/id/metropolitan-district-council/leeds,Leeds City Council,28/02/2023,Resources,Leeds Building Services,Premises,Cleaning Maintenance & Toiletries,127,08/02/2023,2302-00455,0.00,559.10,R,AJM FIXINGS & POWER TOOLS LTD,No
Http://opendatacommunities.org/id/metropolitan-district-council/leeds,Leeds City Council,28/02/2023,Resources,Leeds Building Services,Supplies and Services,Operational Furniture And Equipment,203,08/02/2023,2302-00456,0.00,106.34,R,AJM FIXINGS & POWER TOOLS LTD,No
Http://opendatacommunities.org/id/metropolitan-district-council/leeds,Leeds City Council,28/02/2023,Resources,Leeds Building Services,Supplies and Services,Operational Furniture And Equipment,203,10/02/2023,2302-00457,0.00,335.80,R,AJM FIXINGS & POWER TOOLS LTD,No
Http://opendatacommunities.org/id/metropolitan-district-council/leeds,Leeds City Council,28/02/2023,Resources,Leeds Building Services,Supplies and Services,Operational Furniture And Equipment,203,10/02/2023,2302-00458,0.00,102.00,R,AJM FIXINGS & POWER TOOLS LTD,No
Http://opendatacommunities.org/id/metropolitan-district-council/leeds,Leeds City Council,28/02/2023,Resources,Leeds Building Services,Supplies and Services,Operational Furniture And Equipment,203,10/02/2023,2302-00459,0.00,20.77,R,AJM FIXINGS & POWER TOOLS LTD,No
Http://opendatacommunities.org/id/metropolitan-district-council/leeds,Leeds City Council,28/02/2023,Resources,Leeds Building Services,Supplies and Services,Operational Furniture And Equipment,203,10/02/2023,2302-00460,0.00,458.16,R,AJM FIXINGS & POWER TOOLS LTD,No
Http://opendatacommunities.org/id/metropolitan-district-council/leeds,Leeds City Council,28/02/2023,Resources,Leeds Building Services,Supplies and Services,Operational Furniture And Equipment,203,13/02/2023,2302-00461,0.00,56.82,R,AJM FIXINGS & POWER TOOLS LTD,No
Http://opendatacommunities.org/id/metropolitan-district-council/leeds,Leeds City Council,28/02/2023,Resources,Leeds Building Services,Supplies and Services,Operational Furniture And Equipment,203,13/02/2023,2302-00462,0.00,63.78,R,AJM FIXINGS & POWER TOOLS LTD,No
Http://opendatacommunities.org/id/metropolitan-district-council/leeds,Leeds City Council,28/02/2023,Resources,Leeds Building Services,Premises,Cleaning Maintenance & Toiletries,127,13/02/2023,2302-00463,0.00,18.98,R,AJM FIXINGS & POWER TOOLS LTD,No
Http://opendatacommunities.org/id/metropolitan-district-council/leeds,Leeds City Council,28/02/2023,Resources,Leeds Building Services,Supplies and Services,Operational Furniture And Equipment,203,13/02/2023,2302-00464,0.00,10.59,R,AJM FIXINGS & POWER TOOLS LTD,No
Http://opendatacommunities.org/id/metropolitan-district-council/leeds,Leeds City Council,28/02/2023,Resources,Leeds Building Services,Supplies and Services,Operational Furniture And Equipment,203,13/02/2023,2302-00465,0.00,1450.57,R,AJM FIXINGS & POWER TOOLS LTD,No
Http://opendatacommunities.org/id/metropolitan-district-council/leeds,Leeds City Council,28/02/2023,Resources,Leeds Building Services,Supplies and Services,Operational Furniture And Equipment,203,13/02/2023,2302-00466,0.00,47.00,R,AJM FIXINGS & POWER TOOLS LTD,No
Http://opendatacommunities.org/id/metropolitan-district-council/leeds,Leeds City Council,28/02/2023,Resources,Leeds Building Services,Supplies and Services,Operational Furniture And Equipment,203,13/02/2023,2302-00467,0.00,68.70,R,AJM FIXINGS & POWER TOOLS LTD,No
Http://opendatacommunities.org/id/metropolitan-district-council/leeds,Leeds City Council,28/02/2023,Resources,Leeds Building Services,Premises,Cleaning Maintenance & Toiletries,127,16/02/2023,2302-00468,0.00,475.90,R,AJM FIXINGS & POWER TOOLS LTD,No
Http://opendatacommunities.org/id/metropolitan-district-council/leeds,Leeds City Council,28/02/2023,Resources,Leeds Building Services,Premises,Cleaning Maintenance & Toiletries,127,16/02/2023,2302-00469,0.00,73.65,R,AJM FIXINGS & POWER TOOLS LTD,No
Http://opendatacommunities.org/id/metropolitan-district-council/leeds,Leeds City Council,28/02/2023,Resources,Leeds Building Services,Supplies and Services,Operational Furniture And Equipment,203,16/02/2023,2302-00470,0.00,145.00,R,AJM FIXINGS & POWER TOOLS LTD,No
Http://opendatacommunities.org/id/metropolitan-district-council/leeds,Leeds City Council,28/02/2023,Resources,Leeds Building Services,Premises,Cleaning Maintenance & Toiletries,127,16/02/2023,2302-00471,0.00,125.80,R,AJM FIXINGS & POWER TOOLS LTD,No
Http://opendatacommunities.org/id/metropolitan-district-council/leeds,Leeds City Council,28/02/2023,Resources,Leeds Building Services,Supplies and Services,Operational Furniture And Equipment,203,17/02/2023,2302-00472,0.00,67.00,R,AJM FIXINGS & POWER TOOLS LTD,No
Http://opendatacommunities.org/id/metropolitan-district-council/leeds,Leeds City Council,28/02/2023,Resources,Leeds Building Services,Premises,Cleaning Maintenance & Toiletries,127,17/02/2023,2302-00473,0.00,230.00,R,AJM FIXINGS & POWER TOOLS LTD,No
Http://opendatacommunities.org/id/metropolitan-district-council/leeds,Leeds City Council,28/02/2023,Resources,Leeds Building Services,Supplies and Services,Operational Furniture And Equipment,203,17/02/2023,2302-00474,0.00,719.00,R,AJM FIXINGS & POWER TOOLS LTD,No
Http://opendatacommunities.org/id/metropolitan-district-council/leeds,Leeds City Council,28/02/2023,Resources,Leeds Building Services,Supplies and Services,Operational Furniture And Equipment,203,22/02/2023,2302-00475,0.00,67.00,R,AJM FIXINGS & POWER TOOLS LTD,No
Http://opendatacommunities.org/id/metropolitan-district-council/leeds,Leeds City Council,28/02/2023,Resources,Leeds Building Services,Supplies and Services,Operational Furniture And Equipment,203,22/02/2023,2302-00476,0.00,43.00,R,AJM FIXINGS & POWER TOOLS LTD,No
Http://opendatacommunities.org/id/metropolitan-district-council/leeds,Leeds City Council,28/02/2023,Resources,Leeds Building Services,Supplies and Services,Operational Furniture And Equipment,203,22/02/2023,2302-00477,0.00,84.00,R,AJM FIXINGS & POWER TOOLS LTD,No
Http://opendatacommunities.org/id/metropolitan-district-council/leeds,Leeds City Council,28/02/2023,Resources,Leeds Building Services,Supplies and Services,Operational Furniture And Equipment,203,22/02/2023,2302-00478,0.00,618.16,R,AJM FIXINGS & POWER TOOLS LTD,No
Http://opendatacommunities.org/id/metropolitan-district-council/leeds,Leeds City Council,28/02/2023,Resources,Leeds Building Services,Supplies and Services,Operational Furniture And Equipment,203,24/02/2023,2302-00479,0.00,1176.95,R,AJM FIXINGS & POWER TOOLS LTD,No
Http://opendatacommunities.org/id/metropolitan-district-council/leeds,Leeds City Council,28/02/2023,Resources,Leeds Building Services,Premises,Cleaning Maintenance & Toiletries,127,24/02/2023,2302-00480,0.00,208.50,R,AJM FIXINGS & POWER TOOLS LTD,No
Http://opendatacommunities.org/id/metropolitan-district-council/leeds,Leeds City Council,28/02/2023,Resources,Leeds Building Services,Premises,Cleaning Maintenance & Toiletries,127,24/02/2023,2302-00481,0.00,175.00,R,AJM FIXINGS & POWER TOOLS LTD,No
Http://opendatacommunities.org/id/metropolitan-district-council/leeds,Leeds City Council,28/02/2023,Resources,Leeds Building Services,Supplies and Services,Operational Furniture And Equipment,203,24/02/2023,2302-00482,0.00,183.00,R,AJM FIXINGS & POWER TOOLS LTD,No
Http://opendatacommunities.org/id/metropolitan-district-council/leeds,Leeds City Council,28/02/2023,Resources,Leeds Building Services,Premises,Cleaning Maintenance & Toiletries,127,27/02/2023,2302-00483,0.00,606.66,R,AJM FIXINGS & POWER TOOLS LTD,No
Http://opendatacommunities.org/id/metropolitan-district-council/leeds,Leeds City Council,28/02/2023,Resources,Leeds Building Services,Supplies and Services,Operational Furniture And Equipment,203,27/02/2023,2302-00484,0.00,1147.24,R,AJM FIXINGS & POWER TOOLS LTD,No
Http://opendatacommunities.org/id/metropolitan-district-council/leeds,Leeds City Council,28/02/2023,Resources,Leeds Building Services,Premises,Cleaning Maintenance & Toiletries,127,27/02/2023,2302-00485,0.00,199.00,R,AJM FIXINGS & POWER TOOLS LTD,No
Http://opendatacommunities.org/id/metropolitan-district-council/leeds,Leeds City Council,28/02/2023,Resources,Leeds Building Services,Supplies and Services,Operational Furniture And Equipment,203,27/02/2023,2302-00486,0.00,696.46,R,AJM FIXINGS & POWER TOOLS LTD,No
Http://opendatacommunities.org/id/metropolitan-district-council/leeds,Leeds City Council,28/02/2023,Resources,Leeds Building Services,Supplies and Services,Operational Furniture And Equipment,203,27/02/2023,2302-00487,0.00,392.50,R,AJM FIXINGS & POWER TOOLS LTD,No
Http://opendatacommunities.org/id/metropolitan-district-council/leeds,Leeds City Council,28/02/2023,Resources,Leeds Building Services,Supplies and Services,Operational Furniture And Equipment,203,27/02/2023,2302-00488,0.00,668.00,R,AJM FIXINGS & POWER TOOLS LTD,No
Http://opendatacommunities.org/id/metropolitan-district-council/leeds,Leeds City Council,28/02/2023,Children and Families,Social Care,Supplies and Services,General Amenity For Clients/Residents,285,01/02/2023,2302-00489,0.00,4.80,R,REDACTED PERSONAL DATA,No
Http://opendatacommunities.org/id/metropolitan-district-council/leeds,Leeds City Council,28/02/2023,Children and Families,Social Care,Transport,Public Transport Expenses,310,01/02/2023,2302-00490,0.00,12.80,R,REDACTED PERSONAL DATA,No
Http://opendatacommunities.org/id/metropolitan-district-council/leeds,Leeds City Council,28/02/2023,Children and Families,Social Care,Supplies and Services,General Amenity For Clients/Residents,285,10/02/2023,2302-00491,0.00,24.02,R,REDACTED PERSONAL DATA,No
Http://opendatacommunities.org/id/metropolitan-district-council/leeds,Leeds City Council,28/02/2023,Children and Families,Social Care,Transport,Public Transport Expenses,310,10/02/2023,2302-00492,0.00,14.40,R,REDACTED PERSONAL DATA,No
Http://opendatacommunities.org/id/metropolitan-district-council/leeds,Leeds City Council,28/02/2023,Communities Housing and Environment,Strategic Housing Partnership & Support,Capital,CONSTRUCTION,3,03/02/2023,2302-00493,0.00,5000.00,C,AKR Construction Ltd,No
Http://opendatacommunities.org/id/metropolitan-district-council/leeds,Leeds City Council,28/02/2023,Communities Housing and Environment,Strategic Housing Partnership & Support,Capital,CONSTRUCTION,3,03/02/2023,2302-00494,0.00,5700.00,C,AKR Construction Ltd,No
Http://opendatacommunities.org/id/metropolitan-district-council/leeds,Leeds City Council,28/02/2023,Communities Housing and Environment,Strategic Housing Partnership & Support,Capital,CONSTRUCTION,3,09/02/2023,2302-00495,0.00,10000.00,C,AKR Construction Ltd,No
Http://opendatacommunities.org/id/metropolitan-district-council/leeds,Leeds City Council,28/02/2023,Communities Housing and Environment,Strategic Housing Partnership & Support,Capital,CONSTRUCTION,3,17/02/2023,2302-00496,0.00,7000.00,C,AKR Construction Ltd,No
Http://opendatacommunities.org/id/metropolitan-district-council/leeds,Leeds City Council,28/02/2023,Communities Housing and Environment,Strategic Housing Partnership & Support,Capital,CONSTRUCTION,3,17/02/2023,2302-00497,0.00,7500.00,C,AKR Construction Ltd,No
Http://opendatacommunities.org/id/metropolitan-district-council/leeds,Leeds City Council,28/02/2023,Communities Housing and Environment,Strategic Housing Partnership & Support,Capital,CONSTRUCTION,3,17/02/2023,2302-00498,0.00,7500.00,C,AKR Construction Ltd,No
Http://opendatacommunities.org/id/metropolitan-district-council/leeds,Leeds City Council,28/02/2023,Communities Housing and Environment,Strategic Housing Partnership & Support,Capital,CONSTRUCTION,3,24/02/2023,2302-00499,0.00,5000.00,C,AKR Construction Ltd,No
Http://opendatacommunities.org/id/metropolitan-district-council/leeds,Leeds City Council,28/02/2023,Communities Housing and Environment,Strategic Housing Partnership & Support,Capital,CONSTRUCTION,3,24/02/2023,2302-00500,0.00,10000.00,C,AKR Construction Ltd,No
Http://opendatacommunities.org/id/metropolitan-district-council/leeds,Leeds City Council,28/02/2023,Resources,Democratic Services ,Appropriations,Civic Allowances,651,20/01/2023,2302-00501,0.00,80.00,R,Alan Brown Flowers,Yes
Http://opendatacommunities.org/id/metropolitan-district-council/leeds,Leeds City Council,28/02/2023,Resources,Democratic Services ,Appropriations,Civic Allowances,651,07/02/2023,2302-00502,0.00,100.00,R,Alan Brown Flowers,Yes
Http://opendatacommunities.org/id/metropolitan-district-council/leeds,Leeds City Council,28/02/2023,Children and Families,Social Care,Appropriations,Leaving Care Allowances,634,14/02/2023,2302-00503,0.00,10.00,R,REDACTED PERSONAL DATA,No
Http://opendatacommunities.org/id/metropolitan-district-council/leeds,Leeds City Council,28/02/2023,Resources,Finance,Supplies and Services,Memberships,226,03/02/2023,2302-00504,0.00,973.00,R,ALARM,No
Http://opendatacommunities.org/id/metropolitan-district-council/leeds,Leeds City Council,28/02/2023,Communities Housing and Environment,Parks and Countryside ,Premises,Maintenance Of Buildings,101,02/02/2023,2302-00505,0.00,10000.00,R,Alba Trees Plc,Yes
Http://opendatacommunities.org/id/metropolitan-district-council/leeds,Leeds City Council,28/02/2023,Communities Housing and Environment,Parks and Countryside ,Premises,Maintenance Of Buildings,101,02/02/2023,2302-00506,0.00,8723.24,R,Alba Trees Plc,Yes
Http://opendatacommunities.org/id/metropolitan-district-council/leeds,Leeds City Council,28/02/2023,Resources,Commercial Services,Transport,Vehicle Spares,345,16/02/2023,2302-00507,0.00,124.60,R,ALBERT JAGGER LIMITED,No
Http://opendatacommunities.org/id/metropolitan-district-council/leeds,Leeds City Council,28/02/2023,Communities Housing and Environment,Parks and Countryside ,Transport,Plant Spares,346,16/01/2023,2302-00508,0.00,2.50,R,Albion Electric Stores Lt,Yes
Http://opendatacommunities.org/id/metropolitan-district-council/leeds,Leeds City Council,28/02/2023,Communities Housing and Environment,Parks and Countryside ,Supplies and Services,Office Consumables,210,27/02/2023,2302-00509,0.00,46.80,R,Albion Electric Stores Lt,Yes
Http://opendatacommunities.org/id/metropolitan-district-council/leeds,Leeds City Council,28/02/2023,Communities Housing and Environment,Community Safety,Supplies and Services,Other Hired And Contracted Services,265,16/02/2023,2302-00510,0.00,425.00,R,Alcohol Research UK,No
Http://opendatacommunities.org/id/metropolitan-district-council/leeds,Leeds City Council,28/02/2023,Communities Housing and Environment,Community Safety,Supplies and Services,Other Hired And Contracted Services,265,28/02/2023,2302-00511,0.00,425.00,R,Alcohol Research UK,No
Http://opendatacommunities.org/id/metropolitan-district-council/leeds,Leeds City Council,28/02/2023,Communities Housing and Environment,Community Safety,Supplies and Services,Other Hired And Contracted Services,265,28/02/2023,2302-00512,0.00,795.00,R,Alcohol Research UK,No
Http://opendatacommunities.org/id/metropolitan-district-council/leeds,Leeds City Council,28/02/2023,Children and Families,Social Care ,Appropriations,Leaving Care Allowances,634,16/01/2023,2302-00513,0.00,22.49,R,Aldi,Yes
Http://opendatacommunities.org/id/metropolitan-district-council/leeds,Leeds City Council,28/02/2023,Communities Housing and Environment,Elections Licensing and Registration ,Supplies and Services,Office Consumables,210,21/01/2023,2302-00514,0.00,8.97,R,Aldi,Yes
Http://opendatacommunities.org/id/metropolitan-district-council/leeds,Leeds City Council,28/02/2023,Children and Families,Social Care ,Supplies and Services,Food & Drink,231,06/02/2023,2302-00515,0.00,3.14,R,Aldi,Yes
Http://opendatacommunities.org/id/metropolitan-district-council/leeds,Leeds City Council,28/02/2023,Children and Families,Social Care ,Supplies and Services,Food & Drink,231,25/02/2023,2302-00516,0.00,20.19,R,Aldi,Yes
Http://opendatacommunities.org/id/metropolitan-district-council/leeds,Leeds City Council,28/02/2023,Children and Families,Social Care ,Supplies and Services,Food & Drink,231,13/01/2023,2302-00517,0.00,6.47,R,Aldi 103 779,Yes
Http://opendatacommunities.org/id/metropolitan-district-council/leeds,Leeds City Council,28/02/2023,Children and Families,Social Care ,Supplies and Services,Food & Drink,231,01/02/2023,2302-00518,0.00,34.38,R,Aldi 40 779,Yes
Http://opendatacommunities.org/id/metropolitan-district-council/leeds,Leeds City Council,28/02/2023,Children and Families,Social Care ,Employees,Study Books & Equipment,72,05/02/2023,2302-00519,0.00,5.97,R,Aldi 40 779,Yes
Http://opendatacommunities.org/id/metropolitan-district-council/leeds,Leeds City Council,28/02/2023,Children and Families,Social Care ,Supplies and Services,Food & Drink,231,10/02/2023,2302-00520,0.00,13.55,R,Aldi 40 779,Yes
Http://opendatacommunities.org/id/metropolitan-district-council/leeds,Leeds City Council,28/02/2023,Children and Families,Social Care ,Appropriations,Leaving Care Allowances,634,20/01/2023,2302-00521,0.00,20.99,R,Aldi 46 779,Yes
Http://opendatacommunities.org/id/metropolitan-district-council/leeds,Leeds City Council,28/02/2023,Children and Families,Social Care ,Premises,Cleaning Maintenance & Toiletries,127,11/01/2023,2302-00522,0.00,4.16,R,Aldi 49 779,Yes
Http://opendatacommunities.org/id/metropolitan-district-council/leeds,Leeds City Council,28/02/2023,Children and Families,Social Care ,Supplies and Services,Food & Drink,231,19/01/2023,2302-00523,0.00,16.28,R,Aldi 49 779,Yes
Http://opendatacommunities.org/id/metropolitan-district-council/leeds,Leeds City Council,28/02/2023,Children and Families,Social Care ,Supplies and Services,Food & Drink,231,26/01/2023,2302-00524,0.00,75.00,R,Aldi 49 779,Yes
Http://opendatacommunities.org/id/metropolitan-district-council/leeds,Leeds City Council,28/02/2023,Children and Families,Social Care ,Supplies and Services,Food & Drink,231,11/02/2023,2302-00525,0.00,19.39,R,Aldi 49 779,Yes
Http://opendatacommunities.org/id/metropolitan-district-council/leeds,Leeds City Council,28/02/2023,Children and Families,Social Care ,Supplies and Services,Food & Drink,231,22/02/2023,2302-00526,0.00,5.52,R,Aldi 5 779,Yes
Http://opendatacommunities.org/id/metropolitan-district-council/leeds,Leeds City Council,28/02/2023,Strategic Landlord,Housing Management ,Supplies and Services,Food & Drink,231,26/01/2023,2302-00527,0.00,43.92,R,Aldi 779-126,Yes
Http://opendatacommunities.org/id/metropolitan-district-council/leeds,Leeds City Council,28/02/2023,Strategic Landlord,Housing Management ,Supplies and Services,Food & Drink,231,31/01/2023,2302-00528,0.00,14.34,R,Aldi 779-126,Yes
Http://opendatacommunities.org/id/metropolitan-district-council/leeds,Leeds City Council,28/02/2023,Children and Families,Social Care ,Supplies and Services,Food & Drink,231,10/02/2023,2302-00529,0.00,42.88,R,Aldi 8 779,Yes
Http://opendatacommunities.org/id/metropolitan-district-council/leeds,Leeds City Council,28/02/2023,Children and Families,Social Care ,Appropriations,Leaving Care Allowances,634,11/01/2023,2302-00530,0.00,19.53,R,Aldi 85 779,Yes
Http://opendatacommunities.org/id/metropolitan-district-council/leeds,Leeds City Council,28/02/2023,Children and Families,Social Care ,Supplies and Services,Food & Drink,231,24/01/2023,2302-00531,0.00,19.84,R,Aldi 85 779,Yes
Http://opendatacommunities.org/id/metropolitan-district-council/leeds,Leeds City Council,28/02/2023,Children and Families,Social Care ,Appropriations,Leaving Care Allowances,634,13/02/2023,2302-00532,0.00,23.79,R,Aldi 85 779,Yes
Http://opendatacommunities.org/id/metropolitan-district-council/leeds,Leeds City Council,28/02/2023,Children and Families,Social Care ,Supplies and Services,Food & Drink,231,24/02/2023,2302-00533,0.00,29.45,R,Aldi 85 779,Yes
Http://opendatacommunities.org/id/metropolitan-district-council/leeds,Leeds City Council,28/02/2023,City Development,Recreation ,Supplies and Services,Food & Drink,231,10/02/2023,2302-00534,0.00,8.90,R,Aldi 88 779,Yes
Http://opendatacommunities.org/id/metropolitan-district-council/leeds,Leeds City Council,28/02/2023,Children and Families,Social Care ,Supplies and Services,Food & Drink,231,09/01/2023,2302-00535,0.00,175.96,R,Aldi 89 779,Yes
Http://opendatacommunities.org/id/metropolitan-district-council/leeds,Leeds City Council,28/02/2023,Children and Families,Social Care ,Supplies and Services,Food & Drink,231,18/01/2023,2302-00536,0.00,4.52,R,Aldi 89 779,Yes
Http://opendatacommunities.org/id/metropolitan-district-council/leeds,Leeds City Council,28/02/2023,Children and Families,Social Care ,Appropriations,Leaving Care Allowances,634,27/01/2023,2302-00537,0.00,1.98,R,Aldi 89 779,Yes
Http://opendatacommunities.org/id/metropolitan-district-council/leeds,Leeds City Council,28/02/2023,Children and Families,Social Care ,Supplies and Services,Food & Drink,231,03/02/2023,2302-00538,0.00,4.72,R,Aldi 89 779,Yes
Http://opendatacommunities.org/id/metropolitan-district-council/leeds,Leeds City Council,28/02/2023,Children and Families,Social Care ,Agency Payments,Placement Support,550,03/02/2023,2302-00539,0.00,4.99,R,Aldi 89 779,Yes
Http://opendatacommunities.org/id/metropolitan-district-council/leeds,Leeds City Council,28/02/2023,Children and Families,Social Care ,Supplies and Services,Food & Drink,231,06/02/2023,2302-00540,0.00,171.70,R,Aldi 89 779,Yes
Http://opendatacommunities.org/id/metropolitan-district-council/leeds,Leeds City Council,28/02/2023,Children and Families,Social Care ,Agency Payments,Contact,548,10/02/2023,2302-00541,0.00,4.29,R,Aldi 89 779,Yes
Http://opendatacommunities.org/id/metropolitan-district-council/leeds,Leeds City Council,28/02/2023,Children and Families,Social Care ,Supplies and Services,Food & Drink,231,10/02/2023,2302-00542,0.00,68.08,R,Aldi 89 779,Yes
Http://opendatacommunities.org/id/metropolitan-district-council/leeds,Leeds City Council,28/02/2023,Children and Families,Social Care ,Supplies and Services,Food & Drink,231,15/02/2023,2302-00543,0.00,45.72,R,Aldi 89 779,Yes
Http://opendatacommunities.org/id/metropolitan-district-council/leeds,Leeds City Council,28/02/2023,Children and Families,Social Care ,Supplies and Services,Food & Drink,231,18/02/2023,2302-00544,0.00,42.39,R,Aldi 89 779,Yes
Http://opendatacommunities.org/id/metropolitan-district-council/leeds,Leeds City Council,28/02/2023,Children and Families,Social Care ,Supplies and Services,Food & Drink,231,19/02/2023,2302-00545,0.00,97.44,R,Aldi 89 779,Yes
Http://opendatacommunities.org/id/metropolitan-district-council/leeds,Leeds City Council,28/02/2023,Children and Families,Social Care ,Supplies and Services,Food & Drink,231,23/02/2023,2302-00546,0.00,20.37,R,Aldi 89 779,Yes
Http://opendatacommunities.org/id/metropolitan-district-council/leeds,Leeds City Council,28/02/2023,Communities Housing and Environment,Parks and Countryside ,Supplies and Services,Food & Drink,231,19/01/2023,2302-00547,0.00,149.11,R,Aldi 99 779,Yes
Http://opendatacommunities.org/id/metropolitan-district-council/leeds,Leeds City Council,28/02/2023,Children and Families,Social Care ,Supplies and Services,Food & Drink,231,30/12/2022,2302-00548,0.00,56.92,R,Aldi Stores,Yes
Http://opendatacommunities.org/id/metropolitan-district-council/leeds,Leeds City Council,28/02/2023,Children and Families,Social Care ,Supplies and Services,Food & Drink,231,04/01/2023,2302-00549,0.00,12.58,R,Aldi Stores,Yes
Http://opendatacommunities.org/id/metropolitan-district-council/leeds,Leeds City Council,28/02/2023,Communities Housing and Environment,Strategic Housing Partnership & Support ,Supplies and Services,Food & Drink,231,05/01/2023,2302-00550,0.00,6.13,R,Aldi Stores,Yes
Http://opendatacommunities.org/id/metropolitan-district-council/leeds,Leeds City Council,28/02/2023,Children and Families,Social Care ,Appropriations,Leaving Care Allowances,634,05/01/2023,2302-00551,0.00,17.41,R,Aldi Stores,Yes
Http://opendatacommunities.org/id/metropolitan-district-council/leeds,Leeds City Council,28/02/2023,Children and Families,Social Care ,Appropriations,Leaving Care Allowances,634,12/01/2023,2302-00552,0.00,12.82,R,Aldi Stores,Yes
Http://opendatacommunities.org/id/metropolitan-district-council/leeds,Leeds City Council,28/02/2023,Children and Families,Social Care ,Agency Payments,Section 17,551,12/01/2023,2302-00553,0.00,73.99,R,Aldi Stores,Yes
Http://opendatacommunities.org/id/metropolitan-district-council/leeds,Leeds City Council,28/02/2023,Children and Families,Social Care ,Supplies and Services,Food & Drink,231,20/01/2023,2302-00554,0.00,14.83,R,Aldi Stores,Yes
Http://opendatacommunities.org/id/metropolitan-district-council/leeds,Leeds City Council,28/02/2023,Children and Families,Social Care ,Supplies and Services,Food & Drink,231,01/02/2023,2302-00555,0.00,25.72,R,Aldi Stores,Yes
Http://opendatacommunities.org/id/metropolitan-district-council/leeds,Leeds City Council,28/02/2023,Children and Families,Social Care ,Supplies and Services,Operational Furniture And Equipment,203,03/02/2023,2302-00556,0.00,10.30,R,Aldi Stores,Yes
Http://opendatacommunities.org/id/metropolitan-district-council/leeds,Leeds City Council,28/02/2023,Children and Families,Social Care ,Supplies and Services,Teaching Materials,202,18/02/2023,2302-00557,0.00,8.69,R,Aldi Stores,Yes
Http://opendatacommunities.org/id/metropolitan-district-council/leeds,Leeds City Council,28/02/2023,Children and Families,Social Care ,Supplies and Services,Teaching Furniture & Equipment,207,20/02/2023,2302-00558,0.00,16.72,R,Aldi Stores,Yes
Http://opendatacommunities.org/id/metropolitan-district-council/leeds,Leeds City Council,28/02/2023,Children and Families,Social Care ,Supplies and Services,Operational Materials,205,20/02/2023,2302-00559,0.00,0.25,R,Aldi Stores,Yes
Http://opendatacommunities.org/id/metropolitan-district-council/leeds,Leeds City Council,28/02/2023,Children and Families,Social Care ,Supplies and Services,Food & Drink,231,20/02/2023,2302-00560,0.00,4.73,R,Aldi Stores,Yes
Http://opendatacommunities.org/id/metropolitan-district-council/leeds,Leeds City Council,28/02/2023,Children and Families,Social Care,Agency Payments,Contact,548,13/02/2023,2302-00561,0.00,10.00,R,REDACTED PERSONAL DATA,No
Http://opendatacommunities.org/id/metropolitan-district-council/leeds,Leeds City Council,28/02/2023,Children and Families,Social Care,Appropriations,Leaving Care Allowances,634,09/02/2023,2302-00562,0.00,100.00,R,REDACTED PERSONAL DATA,No
Http://opendatacommunities.org/id/metropolitan-district-council/leeds,Leeds City Council,28/02/2023,Children and Families,Social Care,Supplies and Services,General Amenity For Clients/Residents,285,10/02/2023,2302-00563,0.00,21.37,R,REDACTED PERSONAL DATA,No
Http://opendatacommunities.org/id/metropolitan-district-council/leeds,Leeds City Council,28/02/2023,Resources,Commercial Services,Supplies and Services,Other Hired And Contracted Services,265,10/02/2023,2302-00564,0.00,100.00,R,ALEX WAGG,No
Http://opendatacommunities.org/id/metropolitan-district-council/leeds,Leeds City Council,28/02/2023,Resources,Commercial Services,Supplies and Services,Other Hired And Contracted Services,265,10/02/2023,2302-00565,0.00,380.00,R,ALEX WAGG,No
Http://opendatacommunities.org/id/metropolitan-district-council/leeds,Leeds City Council,28/02/2023,Resources,Commercial Services,Supplies and Services,Other Hired And Contracted Services,265,22/02/2023,2302-00566,0.00,200.00,R,ALEX WAGG,No
Http://opendatacommunities.org/id/metropolitan-district-council/leeds,Leeds City Council,28/02/2023,Resources,Commercial Services,Supplies and Services,Other Hired And Contracted Services,265,22/02/2023,2302-00567,0.00,323.40,R,ALEX WAGG,No
Http://opendatacommunities.org/id/metropolitan-district-council/leeds,Leeds City Council,28/02/2023,Resources,Commercial Services,Supplies and Services,Other Hired And Contracted Services,265,24/02/2023,2302-00568,0.00,140.00,R,ALEX WAGG,No
Http://opendatacommunities.org/id/metropolitan-district-council/leeds,Leeds City Council,28/02/2023,City Development,Libraries Arts & Heritage,Supplies and Services,Other Hired And Contracted Services,265,02/02/2023,2302-00569,0.00,200.00,R,Alex Woodrow,No
Http://opendatacommunities.org/id/metropolitan-district-council/leeds,Leeds City Council,28/02/2023,Adults and Health,Services For Older People - 65 And Over,Agency Payments,Residential Care Dementia,571,01/02/2023,2302-00570,0.00,58073.15,R,ALEXANDER RESIDENTIAL HOME,No
Http://opendatacommunities.org/id/metropolitan-district-council/leeds,Leeds City Council,28/02/2023,Adults and Health,Services For Older People - 65 And Over,Agency Payments,Residential,580,01/02/2023,2302-00571,0.00,26583.53,R,ALEXANDER RESIDENTIAL HOME,No
Http://opendatacommunities.org/id/metropolitan-district-council/leeds,Leeds City Council,28/02/2023,Communities Housing and Environment,Customer Access,Supplies and Services,Bought In Professional Services,277,01/02/2023,2302-00572,0.00,54.00,R,Alexandra Costenco,No
Http://opendatacommunities.org/id/metropolitan-district-council/leeds,Leeds City Council,28/02/2023,Communities Housing and Environment,Customer Access,Supplies and Services,Bought In Professional Services,277,08/02/2023,2302-00573,0.00,54.00,R,Alexandra Costenco,No
Http://opendatacommunities.org/id/metropolitan-district-council/leeds,Leeds City Council,28/02/2023,Adults and Health,Services For Older People - 65 And Over,Agency Payments,Residential Care Dementia,571,01/02/2023,2302-00574,0.00,4773.24,R,ALEXANDRA COURT,No
Http://opendatacommunities.org/id/metropolitan-district-council/leeds,Leeds City Council,28/02/2023,Adults and Health,Services For Older People - 65 And Over,Agency Payments,Residential,580,01/02/2023,2302-00575,0.00,3546.27,R,ALEXANDRA COURT,No
Http://opendatacommunities.org/id/metropolitan-district-council/leeds,Leeds City Council,28/02/2023,Adults and Health,Home Care Services ,Supplies and Services,Clothing & Uniforms,241,04/01/2023,2302-00576,0.00,58.30,R,Alexandra Website,Yes
Http://opendatacommunities.org/id/metropolitan-district-council/leeds,Leeds City Council,28/02/2023,Adults and Health,Home Care Services ,Supplies and Services,Clothing & Uniforms,241,13/01/2023,2302-00577,0.00,61.96,R,Alexandra Website,Yes
Http://opendatacommunities.org/id/metropolitan-district-council/leeds,Leeds City Council,28/02/2023,Communities Housing and Environment,Customer Access,Supplies and Services,Other Hired And Contracted Services,265,15/02/2023,2302-00578,0.00,380.00,R,Alfred Bagnall & Sons (Leeds) Ltd,No
Http://opendatacommunities.org/id/metropolitan-district-council/leeds,Leeds City Council,28/02/2023,Resources,Leeds Building Services,Supplies and Services,Other Hired And Contracted Services,265,17/02/2023,2302-00579,0.00,2045.00,R,Alfred Bagnall & Sons (Leeds) Ltd,No
Http://opendatacommunities.org/id/metropolitan-district-council/leeds,Leeds City Council,28/02/2023,City Development,Markets & City Centre Management ,Supplies and Services,Grant Related Expenditure,290,16/01/2023,2302-00580,0.00,289.25,R,Alfreshco The Ap Gro,Yes
Http://opendatacommunities.org/id/metropolitan-district-council/leeds,Leeds City Council,28/02/2023,Communities Housing and Environment,Customer Access,Supplies and Services,Bought In Professional Services,277,01/02/2023,2302-00581,0.00,13.50,R,Ali Pourakaberian,No
Http://opendatacommunities.org/id/metropolitan-district-council/leeds,Leeds City Council,28/02/2023,Communities Housing and Environment,Customer Access,Supplies and Services,Bought In Professional Services,277,01/02/2023,2302-00582,0.00,27.00,R,Ali Pourakaberian,No
Http://opendatacommunities.org/id/metropolitan-district-council/leeds,Leeds City Council,28/02/2023,Communities Housing and Environment,Customer Access,Supplies and Services,Bought In Professional Services,277,08/02/2023,2302-00583,0.00,18.00,R,Ali Pourakaberian,No
Http://opendatacommunities.org/id/metropolitan-district-council/leeds,Leeds City Council,28/02/2023,Communities Housing and Environment,Customer Access,Supplies and Services,Bought In Professional Services,277,15/02/2023,2302-00584,0.00,18.00,R,Ali Pourakaberian,No
Http://opendatacommunities.org/id/metropolitan-district-council/leeds,Leeds City Council,28/02/2023,Communities Housing and Environment,Customer Access,Supplies and Services,Bought In Professional Services,277,15/02/2023,2302-00585,0.00,18.00,R,Ali Pourakaberian,No
Http://opendatacommunities.org/id/metropolitan-district-council/leeds,Leeds City Council,28/02/2023,Communities Housing and Environment,Customer Access,Supplies and Services,Bought In Professional Services,277,15/02/2023,2302-00586,0.00,18.00,R,Ali Pourakaberian,No
Http://opendatacommunities.org/id/metropolitan-district-council/leeds,Leeds City Council,28/02/2023,Communities Housing and Environment,Customer Access,Supplies and Services,Bought In Professional Services,277,22/02/2023,2302-00587,0.00,48.10,R,Ali Pourakaberian,No
Http://opendatacommunities.org/id/metropolitan-district-council/leeds,Leeds City Council,28/02/2023,Communities Housing and Environment,Customer Access,Supplies and Services,Bought In Professional Services,277,22/02/2023,2302-00588,0.00,22.50,R,Ali Pourakaberian,No
Http://opendatacommunities.org/id/metropolitan-district-council/leeds,Leeds City Council,28/02/2023,Communities Housing and Environment,Customer Access,Supplies and Services,Bought In Professional Services,277,22/02/2023,2302-00589,0.00,36.00,R,Ali Pourakaberian,No
Http://opendatacommunities.org/id/metropolitan-district-council/leeds,Leeds City Council,28/02/2023,City Development,Recreation,Supplies and Services,Bought In Professional Services,277,02/02/2023,2302-00590,0.00,20.00,R,Alice M Richardson,No
Http://opendatacommunities.org/id/metropolitan-district-council/leeds,Leeds City Council,28/02/2023,City Development,Markets & City Centre Management,Supplies and Services,Grant Related Expenditure,290,22/02/2023,2302-00591,0.00,700.00,R,Alice Rose Needham,No
Http://opendatacommunities.org/id/metropolitan-district-council/leeds,Leeds City Council,28/02/2023,Children and Families,Social Care,Agency Payments,Contact,548,10/02/2023,2302-00592,0.00,16.00,R,REDACTED PERSONAL DATA,No
Http://opendatacommunities.org/id/metropolitan-district-council/leeds,Leeds City Council,28/02/2023,Children and Families,Social Care,Agency Payments,Services Rendered By Other Organisations,511,03/02/2023,2302-00593,0.00,860.40,R,REDACTED PERSONAL DATA,No
Http://opendatacommunities.org/id/metropolitan-district-council/leeds,Leeds City Council,28/02/2023,Children and Families,Social Care,Internal Recharges,Legal Disbursements,411,08/02/2023,2302-00594,0.00,450.00,R,Alison Davenport,No
Http://opendatacommunities.org/id/metropolitan-district-council/leeds,Leeds City Council,28/02/2023,City Development,Libraries Arts & Heritage,Supplies and Services,Other Hired And Contracted Services,265,10/02/2023,2302-00595,0.00,360.00,R,Alison Eastwood,No
Http://opendatacommunities.org/id/metropolitan-district-council/leeds,Leeds City Council,28/02/2023,Communities Housing and Environment,Customer Access,Supplies and Services,Licences,266,08/02/2023,2302-00596,0.00,1000.00,R,Alison Mcintryre,No
Http://opendatacommunities.org/id/metropolitan-district-council/leeds,Leeds City Council,28/02/2023,Resources,Commercial Services,Supplies and Services,Other Hired And Contracted Services,265,21/02/2023,2302-00597,0.00,411.60,R,REDACTED PERSONAL DATA,No
Http://opendatacommunities.org/id/metropolitan-district-council/leeds,Leeds City Council,28/02/2023,Communities Housing and Environment,Waste Management ,Supplies and Services,Operational Furniture And Equipment,203,27/02/2023,2302-00598,0.00,230.00,R,Alistair Bromhead Ltd,Yes
Http://opendatacommunities.org/id/metropolitan-district-council/leeds,Leeds City Council,28/02/2023,Children and Families,Social Care,Agency Payments,Services Rendered By Other Organisations,511,01/02/2023,2302-00599,0.00,2005.20,R,All Stars Childcare,No
Http://opendatacommunities.org/id/metropolitan-district-council/leeds,Leeds City Council,28/02/2023,Children and Families,Social Care,Agency Payments,Services Rendered By Other Organisations,511,03/02/2023,2302-00600,0.00,14053.20,R,All Stars Childcare,No
Http://opendatacommunities.org/id/metropolitan-district-council/leeds,Leeds City Council,28/02/2023,Adults and Health,Services For Older People - 65 And Over ,Premises,First Aid Requisites,128,30/01/2023,2302-00601,0.00,23.28,R,Allanda,Yes
Http://opendatacommunities.org/id/metropolitan-district-council/leeds,Leeds City Council,28/02/2023,Adults and Health,Services For Adults Under 65 Mental/Dis,Supplies and Services,Operational Furniture And Equipment,203,03/02/2023,2302-00602,0.00,108.00,R,ALLANSOUND COMMUNICATIONS,No
Http://opendatacommunities.org/id/metropolitan-district-council/leeds,Leeds City Council,28/02/2023,Adults and Health,Services For Adults Under 65 Mental/Dis,Supplies and Services,Operational Furniture And Equipment,203,06/02/2023,2302-00603,0.00,108.00,R,ALLANSOUND COMMUNICATIONS,No
Http://opendatacommunities.org/id/metropolitan-district-council/leeds,Leeds City Council,28/02/2023,Communities Housing and Environment,Parks and Countryside,Supplies and Services,Other Hired And Contracted Services,265,08/02/2023,2302-00604,0.00,120.00,R,ALLANSOUND COMMUNICATIONS,No
Http://opendatacommunities.org/id/metropolitan-district-council/leeds,Leeds City Council as Accountable Body,28/02/2023,Social Services Pooled Budgets,Jcs For People With Learning Disabilitie,Agency Payments,Sheltered Accommodation,569,01/02/2023,2302-00605,0.00,35094.13,R,Allerton Avenue,No
Http://opendatacommunities.org/id/metropolitan-district-council/leeds,Leeds City Council,28/02/2023,Resources,Leeds Building Services,Supplies and Services,Other Hired And Contracted Services,265,10/02/2023,2302-00606,0.00,16362.24,R,Allerton Damp-Proofing Ltd,No
Http://opendatacommunities.org/id/metropolitan-district-council/leeds,Leeds City Council,28/02/2023,Adults and Health,Public Health,Agency Payments,Public Health Commissioned Services,526,10/02/2023,2302-00607,0.00,1391.56,R,Allerton Medical Centre,No
Http://opendatacommunities.org/id/metropolitan-district-council/leeds,Leeds City Council,28/02/2023,Adults and Health,Services For Older People - 65 And Over,Agency Payments,Nursing Care Dementia,574,01/02/2023,2302-00608,0.00,9185.68,R,ALLERTON PARK N H,No
Http://opendatacommunities.org/id/metropolitan-district-council/leeds,Leeds City Council,28/02/2023,Resources,Finance,Supplies and Services,Bank Charges,263,06/02/2023,2302-00609,0.00,156.00,R,ALLIANCE & LEICESTER COMMERCIAL BANK,No
Http://opendatacommunities.org/id/metropolitan-district-council/leeds,Leeds City Council,28/02/2023,Resources,Finance,Supplies and Services,Bank Charges,263,06/02/2023,2302-00610,0.00,100.00,R,ALLIANCE & LEICESTER COMMERCIAL BANK,No
Http://opendatacommunities.org/id/metropolitan-district-council/leeds,Leeds City Council,28/02/2023,Resources,Commercial Services,Transport,Vehicle Spares,345,03/02/2023,2302-00611,0.00,1314.31,R,Alliance Automotive UK CV LTD,No
Http://opendatacommunities.org/id/metropolitan-district-council/leeds,Leeds City Council,28/02/2023,Resources,Commercial Services,Transport,Vehicle Spares,345,03/02/2023,2302-00612,0.00,1085.78,R,Alliance Automotive UK CV LTD,No
Http://opendatacommunities.org/id/metropolitan-district-council/leeds,Leeds City Council,28/02/2023,Resources,Commercial Services,Transport,Vehicle Spares,345,03/02/2023,2302-00613,0.00,187.11,R,Alliance Automotive UK CV LTD,No
Http://opendatacommunities.org/id/metropolitan-district-council/leeds,Leeds City Council,28/02/2023,Resources,Commercial Services,Transport,Vehicle Spares,345,03/02/2023,2302-00614,0.00,153.42,R,Alliance Automotive UK CV LTD,No
Http://opendatacommunities.org/id/metropolitan-district-council/leeds,Leeds City Council,28/02/2023,Resources,Commercial Services,Transport,Vehicle Spares,345,03/02/2023,2302-00615,0.00,839.42,R,Alliance Automotive UK CV LTD,No
Http://opendatacommunities.org/id/metropolitan-district-council/leeds,Leeds City Council,28/02/2023,Resources,Commercial Services,Transport,Vehicle Spares,345,03/02/2023,2302-00616,0.00,173.07,R,Alliance Automotive UK CV LTD,No
Http://opendatacommunities.org/id/metropolitan-district-council/leeds,Leeds City Council,28/02/2023,Resources,Commercial Services,Transport,Vehicle Spares,345,03/02/2023,2302-00617,0.00,245.86,R,Alliance Automotive UK CV LTD,No
Http://opendatacommunities.org/id/metropolitan-district-council/leeds,Leeds City Council,28/02/2023,Resources,Commercial Services,Transport,Vehicle Spares,345,03/02/2023,2302-00618,0.00,114.47,R,Alliance Automotive UK CV LTD,No
Http://opendatacommunities.org/id/metropolitan-district-council/leeds,Leeds City Council,28/02/2023,Resources,Commercial Services,Transport,Vehicle Spares,345,03/02/2023,2302-00619,0.00,320.53,R,Alliance Automotive UK CV LTD,No
Http://opendatacommunities.org/id/metropolitan-district-council/leeds,Leeds City Council,28/02/2023,Resources,Commercial Services,Transport,Vehicle Spares,345,03/02/2023,2302-00620,0.00,59.02,R,Alliance Automotive UK CV LTD,No
Http://opendatacommunities.org/id/metropolitan-district-council/leeds,Leeds City Council,28/02/2023,Resources,Commercial Services,Transport,Vehicle Spares,345,03/02/2023,2302-00621,0.00,123.91,R,Alliance Automotive UK CV LTD,No
Http://opendatacommunities.org/id/metropolitan-district-council/leeds,Leeds City Council,28/02/2023,Resources,Commercial Services,Transport,Vehicle Spares,345,03/02/2023,2302-00622,0.00,88.51,R,Alliance Automotive UK CV LTD,No
Http://opendatacommunities.org/id/metropolitan-district-council/leeds,Leeds City Council,28/02/2023,Resources,Commercial Services,Transport,Vehicle Spares,345,03/02/2023,2302-00623,0.00,92.47,R,Alliance Automotive UK CV LTD,No
Http://opendatacommunities.org/id/metropolitan-district-council/leeds,Leeds City Council,28/02/2023,Resources,Commercial Services,Transport,Vehicle Spares,345,03/02/2023,2302-00624,0.00,172.01,R,Alliance Automotive UK CV LTD,No
Http://opendatacommunities.org/id/metropolitan-district-council/leeds,Leeds City Council,28/02/2023,Resources,Commercial Services,Transport,Vehicle Spares,345,03/02/2023,2302-00625,0.00,4.00,R,Alliance Automotive UK CV LTD,No
Http://opendatacommunities.org/id/metropolitan-district-council/leeds,Leeds City Council,28/02/2023,Resources,Commercial Services,Transport,Vehicle Spares,345,03/02/2023,2302-00626,0.00,49.10,R,Alliance Automotive UK CV LTD,No
Http://opendatacommunities.org/id/metropolitan-district-council/leeds,Leeds City Council,28/02/2023,Resources,Commercial Services,Transport,Vehicle Spares,345,03/02/2023,2302-00627,0.00,68.81,R,Alliance Automotive UK CV LTD,No
Http://opendatacommunities.org/id/metropolitan-district-council/leeds,Leeds City Council,28/02/2023,Resources,Commercial Services,Transport,Vehicle Spares,345,03/02/2023,2302-00628,0.00,28.98,R,Alliance Automotive UK CV LTD,No
Http://opendatacommunities.org/id/metropolitan-district-council/leeds,Leeds City Council,28/02/2023,Resources,Commercial Services,Transport,Vehicle Spares,345,03/02/2023,2302-00629,0.00,252.79,R,Alliance Automotive UK CV LTD,No
Http://opendatacommunities.org/id/metropolitan-district-council/leeds,Leeds City Council,28/02/2023,Resources,Commercial Services,Transport,Vehicle Spares,345,03/02/2023,2302-00630,0.00,127.86,R,Alliance Automotive UK CV LTD,No
Http://opendatacommunities.org/id/metropolitan-district-council/leeds,Leeds City Council,28/02/2023,Resources,Commercial Services,Transport,Vehicle Spares,345,03/02/2023,2302-00631,0.00,590.05,R,Alliance Automotive UK CV LTD,No
Http://opendatacommunities.org/id/metropolitan-district-council/leeds,Leeds City Council,28/02/2023,Resources,Commercial Services,Transport,Vehicle Spares,345,03/02/2023,2302-00632,0.00,758.35,R,Alliance Automotive UK CV LTD,No
Http://opendatacommunities.org/id/metropolitan-district-council/leeds,Leeds City Council,28/02/2023,Resources,Commercial Services,Transport,Vehicle Spares,345,03/02/2023,2302-00633,0.00,212.76,R,Alliance Automotive UK CV LTD,No
Http://opendatacommunities.org/id/metropolitan-district-council/leeds,Leeds City Council,28/02/2023,Resources,Commercial Services,Transport,Vehicle Spares,345,03/02/2023,2302-00634,0.00,486.79,R,Alliance Automotive UK CV LTD,No
Http://opendatacommunities.org/id/metropolitan-district-council/leeds,Leeds City Council,28/02/2023,Resources,Commercial Services,Transport,Vehicle Spares,345,03/02/2023,2302-00635,0.00,16.34,R,Alliance Automotive UK CV LTD,No
Http://opendatacommunities.org/id/metropolitan-district-council/leeds,Leeds City Council,28/02/2023,Resources,Commercial Services,Transport,Vehicle Spares,345,03/02/2023,2302-00636,0.00,63.76,R,Alliance Automotive UK CV LTD,No
Http://opendatacommunities.org/id/metropolitan-district-council/leeds,Leeds City Council,28/02/2023,Resources,Commercial Services,Transport,Vehicle Spares,345,03/02/2023,2302-00637,0.00,831.61,R,Alliance Automotive UK CV LTD,No
Http://opendatacommunities.org/id/metropolitan-district-council/leeds,Leeds City Council,28/02/2023,Resources,Commercial Services,Transport,Vehicle Spares,345,03/02/2023,2302-00638,0.00,43.31,R,Alliance Automotive UK CV LTD,No
Http://opendatacommunities.org/id/metropolitan-district-council/leeds,Leeds City Council,28/02/2023,Resources,Commercial Services,Transport,Vehicle Spares,345,03/02/2023,2302-00639,0.00,132.62,R,Alliance Automotive UK CV LTD,No
Http://opendatacommunities.org/id/metropolitan-district-council/leeds,Leeds City Council,28/02/2023,Resources,Commercial Services,Transport,Vehicle Spares,345,03/02/2023,2302-00640,0.00,64.84,R,Alliance Automotive UK CV LTD,No
Http://opendatacommunities.org/id/metropolitan-district-council/leeds,Leeds City Council,28/02/2023,Resources,Commercial Services,Transport,Vehicle Spares,345,03/02/2023,2302-00641,0.00,193.44,R,Alliance Automotive UK CV LTD,No
Http://opendatacommunities.org/id/metropolitan-district-council/leeds,Leeds City Council,28/02/2023,Resources,Commercial Services,Transport,Vehicle Spares,345,03/02/2023,2302-00642,0.00,285.12,R,Alliance Automotive UK CV LTD,No
Http://opendatacommunities.org/id/metropolitan-district-council/leeds,Leeds City Council,28/02/2023,Resources,Commercial Services,Transport,Vehicle Spares,345,03/02/2023,2302-00643,0.00,321.36,R,Alliance Automotive UK CV LTD,No
Http://opendatacommunities.org/id/metropolitan-district-council/leeds,Leeds City Council,28/02/2023,Resources,Commercial Services,Transport,Vehicle Spares,345,03/02/2023,2302-00644,0.00,13.90,R,Alliance Automotive UK CV LTD,No
Http://opendatacommunities.org/id/metropolitan-district-council/leeds,Leeds City Council,28/02/2023,Resources,Commercial Services,Transport,Vehicle Spares,345,03/02/2023,2302-00645,0.00,1038.04,R,Alliance Automotive UK CV LTD,No
Http://opendatacommunities.org/id/metropolitan-district-council/leeds,Leeds City Council,28/02/2023,Resources,Commercial Services,Transport,Vehicle Spares,345,03/02/2023,2302-00646,0.00,21.29,R,Alliance Automotive UK CV LTD,No
Http://opendatacommunities.org/id/metropolitan-district-council/leeds,Leeds City Council,28/02/2023,Resources,Commercial Services,Transport,Vehicle Spares,345,03/02/2023,2302-00647,0.00,388.09,R,Alliance Automotive UK CV LTD,No
Http://opendatacommunities.org/id/metropolitan-district-council/leeds,Leeds City Council,28/02/2023,Resources,Commercial Services,Transport,Vehicle Spares,345,03/02/2023,2302-00648,0.00,128.21,R,Alliance Automotive UK CV LTD,No
Http://opendatacommunities.org/id/metropolitan-district-council/leeds,Leeds City Council,28/02/2023,Resources,Commercial Services,Transport,Vehicle Spares,345,03/02/2023,2302-00649,0.00,37.82,R,Alliance Automotive UK CV LTD,No
Http://opendatacommunities.org/id/metropolitan-district-council/leeds,Leeds City Council,28/02/2023,Resources,Commercial Services,Transport,Vehicle Spares,345,03/02/2023,2302-00650,0.00,27.33,R,Alliance Automotive UK CV LTD,No
Http://opendatacommunities.org/id/metropolitan-district-council/leeds,Leeds City Council,28/02/2023,Resources,Commercial Services,Transport,Vehicle Spares,345,03/02/2023,2302-00651,0.00,97.69,R,Alliance Automotive UK CV LTD,No
Http://opendatacommunities.org/id/metropolitan-district-council/leeds,Leeds City Council,28/02/2023,Resources,Commercial Services,Transport,Vehicle Spares,345,03/02/2023,2302-00652,0.00,115.79,R,Alliance Automotive UK CV LTD,No
Http://opendatacommunities.org/id/metropolitan-district-council/leeds,Leeds City Council,28/02/2023,Resources,Commercial Services,Transport,Vehicle Spares,345,03/02/2023,2302-00653,0.00,115.64,R,Alliance Automotive UK CV LTD,No
Http://opendatacommunities.org/id/metropolitan-district-council/leeds,Leeds City Council,28/02/2023,Resources,Commercial Services,Transport,Vehicle Spares,345,03/02/2023,2302-00654,0.00,17.41,R,Alliance Automotive UK CV LTD,No
Http://opendatacommunities.org/id/metropolitan-district-council/leeds,Leeds City Council,28/02/2023,Resources,Commercial Services,Transport,Vehicle Spares,345,03/02/2023,2302-00655,0.00,267.10,R,Alliance Automotive UK CV LTD,No
Http://opendatacommunities.org/id/metropolitan-district-council/leeds,Leeds City Council,28/02/2023,Resources,Commercial Services,Transport,Vehicle Spares,345,03/02/2023,2302-00656,0.00,51.59,R,Alliance Automotive UK CV LTD,No
Http://opendatacommunities.org/id/metropolitan-district-council/leeds,Leeds City Council,28/02/2023,Resources,Commercial Services,Transport,Vehicle Spares,345,03/02/2023,2302-00657,0.00,121.41,R,Alliance Automotive UK CV LTD,No
Http://opendatacommunities.org/id/metropolitan-district-council/leeds,Leeds City Council,28/02/2023,Resources,Commercial Services,Transport,Vehicle Spares,345,03/02/2023,2302-00658,0.00,3.96,R,Alliance Automotive UK CV LTD,No
Http://opendatacommunities.org/id/metropolitan-district-council/leeds,Leeds City Council,28/02/2023,Resources,Commercial Services,Transport,Vehicle Spares,345,03/02/2023,2302-00659,0.00,3.96,R,Alliance Automotive UK CV LTD,No
Http://opendatacommunities.org/id/metropolitan-district-council/leeds,Leeds City Council,28/02/2023,Resources,Commercial Services,Transport,Vehicle Spares,345,03/02/2023,2302-00660,0.00,81.73,R,Alliance Automotive UK CV LTD,No
Http://opendatacommunities.org/id/metropolitan-district-council/leeds,Leeds City Council,28/02/2023,Resources,Commercial Services,Transport,Vehicle Spares,345,03/02/2023,2302-00661,0.00,550.93,R,Alliance Automotive UK CV LTD,No
Http://opendatacommunities.org/id/metropolitan-district-council/leeds,Leeds City Council,28/02/2023,Resources,Commercial Services,Transport,Vehicle Spares,345,03/02/2023,2302-00662,0.00,206.90,R,Alliance Automotive UK CV LTD,No
Http://opendatacommunities.org/id/metropolitan-district-council/leeds,Leeds City Council,28/02/2023,Resources,Commercial Services,Transport,Vehicle Spares,345,03/02/2023,2302-00663,0.00,393.20,R,Alliance Automotive UK CV LTD,No
Http://opendatacommunities.org/id/metropolitan-district-council/leeds,Leeds City Council,28/02/2023,Resources,Commercial Services,Transport,Vehicle Spares,345,03/02/2023,2302-00664,0.00,158.31,R,Alliance Automotive UK CV LTD,No
Http://opendatacommunities.org/id/metropolitan-district-council/leeds,Leeds City Council,28/02/2023,Resources,Commercial Services,Transport,Vehicle Spares,345,03/02/2023,2302-00665,0.00,97.58,R,Alliance Automotive UK CV LTD,No
Http://opendatacommunities.org/id/metropolitan-district-council/leeds,Leeds City Council,28/02/2023,Resources,Commercial Services,Transport,Vehicle Spares,345,03/02/2023,2302-00666,0.00,14.74,R,Alliance Automotive UK CV LTD,No
Http://opendatacommunities.org/id/metropolitan-district-council/leeds,Leeds City Council,28/02/2023,Resources,Commercial Services,Transport,Vehicle Spares,345,03/02/2023,2302-00667,0.00,74.73,R,Alliance Automotive UK CV LTD,No
Http://opendatacommunities.org/id/metropolitan-district-council/leeds,Leeds City Council,28/02/2023,Resources,Commercial Services,Transport,Vehicle Spares,345,03/02/2023,2302-00668,0.00,196.02,R,Alliance Automotive UK CV LTD,No
Http://opendatacommunities.org/id/metropolitan-district-council/leeds,Leeds City Council,28/02/2023,Resources,Commercial Services,Transport,Vehicle Spares,345,03/02/2023,2302-00669,0.00,1137.51,R,Alliance Automotive UK CV LTD,No
Http://opendatacommunities.org/id/metropolitan-district-council/leeds,Leeds City Council,28/02/2023,Resources,Commercial Services,Transport,Vehicle Spares,345,03/02/2023,2302-00670,0.00,131.62,R,Alliance Automotive UK CV LTD,No
Http://opendatacommunities.org/id/metropolitan-district-council/leeds,Leeds City Council,28/02/2023,Resources,Commercial Services,Transport,Vehicle Spares,345,03/02/2023,2302-00671,0.00,25.61,R,Alliance Automotive UK CV LTD,No
Http://opendatacommunities.org/id/metropolitan-district-council/leeds,Leeds City Council,28/02/2023,Resources,Commercial Services,Transport,Vehicle Spares,345,03/02/2023,2302-00672,0.00,306.24,R,Alliance Automotive UK CV LTD,No
Http://opendatacommunities.org/id/metropolitan-district-council/leeds,Leeds City Council,28/02/2023,Resources,Commercial Services,Transport,Vehicle Spares,345,09/02/2023,2302-00673,0.00,344.21,R,Alliance Automotive UK CV LTD,No
Http://opendatacommunities.org/id/metropolitan-district-council/leeds,Leeds City Council,28/02/2023,Resources,Commercial Services,Transport,Vehicle Spares,345,09/02/2023,2302-00674,0.00,677.60,R,Alliance Automotive UK CV LTD,No
Http://opendatacommunities.org/id/metropolitan-district-council/leeds,Leeds City Council,28/02/2023,Resources,Commercial Services,Transport,Vehicle Spares,345,09/02/2023,2302-00675,0.00,636.45,R,Alliance Automotive UK CV LTD,No
Http://opendatacommunities.org/id/metropolitan-district-council/leeds,Leeds City Council,28/02/2023,Resources,Commercial Services,Transport,Vehicle Spares,345,09/02/2023,2302-00676,0.00,15.71,R,Alliance Automotive UK CV LTD,No
Http://opendatacommunities.org/id/metropolitan-district-council/leeds,Leeds City Council,28/02/2023,Resources,Commercial Services,Transport,Vehicle Spares,345,09/02/2023,2302-00677,0.00,316.76,R,Alliance Automotive UK CV LTD,No
Http://opendatacommunities.org/id/metropolitan-district-council/leeds,Leeds City Council,28/02/2023,Resources,Commercial Services,Transport,Vehicle Spares,345,09/02/2023,2302-00678,0.00,533.61,R,Alliance Automotive UK CV LTD,No
Http://opendatacommunities.org/id/metropolitan-district-council/leeds,Leeds City Council,28/02/2023,Resources,Commercial Services,Transport,Vehicle Spares,345,09/02/2023,2302-00679,0.00,133.65,R,Alliance Automotive UK CV LTD,No
Http://opendatacommunities.org/id/metropolitan-district-council/leeds,Leeds City Council,28/02/2023,Resources,Commercial Services,Transport,Vehicle Spares,345,09/02/2023,2302-00680,0.00,800.42,R,Alliance Automotive UK CV LTD,No
Http://opendatacommunities.org/id/metropolitan-district-council/leeds,Leeds City Council,28/02/2023,Resources,Commercial Services,Transport,Vehicle Spares,345,09/02/2023,2302-00681,0.00,142.17,R,Alliance Automotive UK CV LTD,No
Http://opendatacommunities.org/id/metropolitan-district-council/leeds,Leeds City Council,28/02/2023,Resources,Commercial Services,Transport,Vehicle Spares,345,09/02/2023,2302-00682,0.00,229.99,R,Alliance Automotive UK CV LTD,No
Http://opendatacommunities.org/id/metropolitan-district-council/leeds,Leeds City Council,28/02/2023,Resources,Commercial Services,Transport,Vehicle Spares,345,09/02/2023,2302-00683,0.00,237.31,R,Alliance Automotive UK CV LTD,No
Http://opendatacommunities.org/id/metropolitan-district-council/leeds,Leeds City Council,28/02/2023,Resources,Commercial Services,Transport,Vehicle Spares,345,09/02/2023,2302-00684,0.00,206.95,R,Alliance Automotive UK CV LTD,No
Http://opendatacommunities.org/id/metropolitan-district-council/leeds,Leeds City Council,28/02/2023,Resources,Commercial Services,Transport,Vehicle Spares,345,09/02/2023,2302-00685,0.00,394.03,R,Alliance Automotive UK CV LTD,No
Http://opendatacommunities.org/id/metropolitan-district-council/leeds,Leeds City Council,28/02/2023,Resources,Commercial Services,Transport,Vehicle Spares,345,09/02/2023,2302-00686,0.00,175.47,R,Alliance Automotive UK CV LTD,No
Http://opendatacommunities.org/id/metropolitan-district-council/leeds,Leeds City Council,28/02/2023,Resources,Commercial Services,Transport,Vehicle Spares,345,09/02/2023,2302-00687,0.00,168.72,R,Alliance Automotive UK CV LTD,No
Http://opendatacommunities.org/id/metropolitan-district-council/leeds,Leeds City Council,28/02/2023,Resources,Commercial Services,Transport,Vehicle Spares,345,09/02/2023,2302-00688,0.00,217.80,R,Alliance Automotive UK CV LTD,No
Http://opendatacommunities.org/id/metropolitan-district-council/leeds,Leeds City Council,28/02/2023,Resources,Commercial Services,Transport,Vehicle Spares,345,09/02/2023,2302-00689,0.00,187.61,R,Alliance Automotive UK CV LTD,No
Http://opendatacommunities.org/id/metropolitan-district-council/leeds,Leeds City Council,28/02/2023,Resources,Commercial Services,Transport,Vehicle Spares,345,09/02/2023,2302-00690,0.00,58.41,R,Alliance Automotive UK CV LTD,No
Http://opendatacommunities.org/id/metropolitan-district-council/leeds,Leeds City Council,28/02/2023,Resources,Commercial Services,Transport,Vehicle Spares,345,09/02/2023,2302-00691,0.00,269.44,R,Alliance Automotive UK CV LTD,No
Http://opendatacommunities.org/id/metropolitan-district-council/leeds,Leeds City Council,28/02/2023,Resources,Commercial Services,Transport,Vehicle Spares,345,09/02/2023,2302-00692,0.00,244.08,R,Alliance Automotive UK CV LTD,No
Http://opendatacommunities.org/id/metropolitan-district-council/leeds,Leeds City Council,28/02/2023,Resources,Commercial Services,Transport,Vehicle Spares,345,09/02/2023,2302-00693,0.00,79.16,R,Alliance Automotive UK CV LTD,No
Http://opendatacommunities.org/id/metropolitan-district-council/leeds,Leeds City Council,28/02/2023,Resources,Commercial Services,Transport,Vehicle Spares,345,09/02/2023,2302-00694,0.00,12.38,R,Alliance Automotive UK CV LTD,No
Http://opendatacommunities.org/id/metropolitan-district-council/leeds,Leeds City Council,28/02/2023,Resources,Commercial Services,Transport,Vehicle Spares,345,10/02/2023,2302-00695,0.00,-98.51,R,Alliance Automotive UK CV LTD,No
Http://opendatacommunities.org/id/metropolitan-district-council/leeds,Leeds City Council,28/02/2023,Resources,Commercial Services,Transport,Vehicle Spares,345,10/02/2023,2302-00696,0.00,664.19,R,Alliance Automotive UK CV LTD,No
Http://opendatacommunities.org/id/metropolitan-district-council/leeds,Leeds City Council,28/02/2023,Resources,Commercial Services,Transport,Vehicle Spares,345,10/02/2023,2302-00697,0.00,82.69,R,Alliance Automotive UK CV LTD,No
Http://opendatacommunities.org/id/metropolitan-district-council/leeds,Leeds City Council,28/02/2023,Resources,Commercial Services,Transport,Vehicle Spares,345,10/02/2023,2302-00698,0.00,241.31,R,Alliance Automotive UK CV LTD,No
Http://opendatacommunities.org/id/metropolitan-district-council/leeds,Leeds City Council,28/02/2023,Resources,Commercial Services,Transport,Vehicle Spares,345,10/02/2023,2302-00699,0.00,20.15,R,Alliance Automotive UK CV LTD,No
Http://opendatacommunities.org/id/metropolitan-district-council/leeds,Leeds City Council,28/02/2023,Resources,Commercial Services,Transport,Vehicle Spares,345,10/02/2023,2302-00700,0.00,833.58,R,Alliance Automotive UK CV LTD,No
Http://opendatacommunities.org/id/metropolitan-district-council/leeds,Leeds City Council,28/02/2023,Resources,Commercial Services,Transport,Vehicle Spares,345,10/02/2023,2302-00701,0.00,142.17,R,Alliance Automotive UK CV LTD,No
Http://opendatacommunities.org/id/metropolitan-district-council/leeds,Leeds City Council,28/02/2023,Resources,Commercial Services,Transport,Vehicle Spares,345,10/02/2023,2302-00702,0.00,129.66,R,Alliance Automotive UK CV LTD,No
Http://opendatacommunities.org/id/metropolitan-district-council/leeds,Leeds City Council,28/02/2023,Resources,Commercial Services,Transport,Vehicle Spares,345,10/02/2023,2302-00703,0.00,291.15,R,Alliance Automotive UK CV LTD,No
Http://opendatacommunities.org/id/metropolitan-district-council/leeds,Leeds City Council,28/02/2023,Resources,Commercial Services,Transport,Vehicle Spares,345,10/02/2023,2302-00704,0.00,69.26,R,Alliance Automotive UK CV LTD,No
Http://opendatacommunities.org/id/metropolitan-district-council/leeds,Leeds City Council,28/02/2023,Resources,Commercial Services,Transport,Vehicle Spares,345,10/02/2023,2302-00705,0.00,270.87,R,Alliance Automotive UK CV LTD,No
Http://opendatacommunities.org/id/metropolitan-district-council/leeds,Leeds City Council,28/02/2023,Resources,Commercial Services,Transport,Vehicle Spares,345,10/02/2023,2302-00706,0.00,309.48,R,Alliance Automotive UK CV LTD,No
Http://opendatacommunities.org/id/metropolitan-district-council/leeds,Leeds City Council,28/02/2023,Resources,Commercial Services,Transport,Vehicle Spares,345,10/02/2023,2302-00707,0.00,69.50,R,Alliance Automotive UK CV LTD,No
Http://opendatacommunities.org/id/metropolitan-district-council/leeds,Leeds City Council,28/02/2023,Resources,Commercial Services,Transport,Vehicle Spares,345,10/02/2023,2302-00708,0.00,453.29,R,Alliance Automotive UK CV LTD,No
Http://opendatacommunities.org/id/metropolitan-district-council/leeds,Leeds City Council,28/02/2023,Resources,Commercial Services,Transport,Vehicle Spares,345,10/02/2023,2302-00709,0.00,57.76,R,Alliance Automotive UK CV LTD,No
Http://opendatacommunities.org/id/metropolitan-district-council/leeds,Leeds City Council,28/02/2023,Resources,Commercial Services,Transport,Vehicle Spares,345,10/02/2023,2302-00710,0.00,137.45,R,Alliance Automotive UK CV LTD,No
Http://opendatacommunities.org/id/metropolitan-district-council/leeds,Leeds City Council,28/02/2023,Resources,Commercial Services,Transport,Vehicle Spares,345,10/02/2023,2302-00711,0.00,145.02,R,Alliance Automotive UK CV LTD,No
Http://opendatacommunities.org/id/metropolitan-district-council/leeds,Leeds City Council,28/02/2023,Resources,Commercial Services,Transport,Vehicle Spares,345,10/02/2023,2302-00712,0.00,56.44,R,Alliance Automotive UK CV LTD,No
Http://opendatacommunities.org/id/metropolitan-district-council/leeds,Leeds City Council,28/02/2023,Resources,Commercial Services,Transport,Vehicle Spares,345,10/02/2023,2302-00713,0.00,296.01,R,Alliance Automotive UK CV LTD,No
Http://opendatacommunities.org/id/metropolitan-district-council/leeds,Leeds City Council,28/02/2023,Resources,Commercial Services,Transport,Vehicle Spares,345,10/02/2023,2302-00714,0.00,89.06,R,Alliance Automotive UK CV LTD,No
Http://opendatacommunities.org/id/metropolitan-district-council/leeds,Leeds City Council,28/02/2023,Resources,Commercial Services,Transport,Vehicle Spares,345,10/02/2023,2302-00715,0.00,98.51,R,Alliance Automotive UK CV LTD,No
Http://opendatacommunities.org/id/metropolitan-district-council/leeds,Leeds City Council,28/02/2023,Resources,Commercial Services,Transport,Vehicle Spares,345,10/02/2023,2302-00716,0.00,51.33,R,Alliance Automotive UK CV LTD,No
Http://opendatacommunities.org/id/metropolitan-district-council/leeds,Leeds City Council,28/02/2023,Resources,Commercial Services,Transport,Vehicle Spares,345,16/02/2023,2302-00717,0.00,245.61,R,Alliance Automotive UK CV LTD,No
Http://opendatacommunities.org/id/metropolitan-district-council/leeds,Leeds City Council,28/02/2023,Resources,Commercial Services,Transport,Vehicle Spares,345,16/02/2023,2302-00718,0.00,48.47,R,Alliance Automotive UK CV LTD,No
Http://opendatacommunities.org/id/metropolitan-district-council/leeds,Leeds City Council,28/02/2023,Resources,Commercial Services,Transport,Vehicle Spares,345,16/02/2023,2302-00719,0.00,29.51,R,Alliance Automotive UK CV LTD,No
Http://opendatacommunities.org/id/metropolitan-district-council/leeds,Leeds City Council,28/02/2023,Resources,Commercial Services,Transport,Vehicle Spares,345,16/02/2023,2302-00720,0.00,590.05,R,Alliance Automotive UK CV LTD,No
Http://opendatacommunities.org/id/metropolitan-district-council/leeds,Leeds City Council,28/02/2023,Resources,Commercial Services,Transport,Vehicle Spares,345,16/02/2023,2302-00721,0.00,4.21,R,Alliance Automotive UK CV LTD,No
Http://opendatacommunities.org/id/metropolitan-district-council/leeds,Leeds City Council,28/02/2023,Resources,Commercial Services,Transport,Vehicle Spares,345,16/02/2023,2302-00722,0.00,128.21,R,Alliance Automotive UK CV LTD,No
Http://opendatacommunities.org/id/metropolitan-district-council/leeds,Leeds City Council,28/02/2023,Resources,Commercial Services,Transport,Vehicle Spares,345,16/02/2023,2302-00723,0.00,231.66,R,Alliance Automotive UK CV LTD,No
Http://opendatacommunities.org/id/metropolitan-district-council/leeds,Leeds City Council,28/02/2023,Resources,Commercial Services,Transport,Vehicle Spares,345,16/02/2023,2302-00724,0.00,8.14,R,Alliance Automotive UK CV LTD,No
Http://opendatacommunities.org/id/metropolitan-district-council/leeds,Leeds City Council,28/02/2023,Resources,Commercial Services,Transport,Vehicle Spares,345,16/02/2023,2302-00725,0.00,273.79,R,Alliance Automotive UK CV LTD,No
Http://opendatacommunities.org/id/metropolitan-district-council/leeds,Leeds City Council,28/02/2023,Resources,Commercial Services,Transport,Vehicle Spares,345,16/02/2023,2302-00726,0.00,154.26,R,Alliance Automotive UK CV LTD,No
Http://opendatacommunities.org/id/metropolitan-district-council/leeds,Leeds City Council,28/02/2023,Resources,Commercial Services,Transport,Vehicle Spares,345,16/02/2023,2302-00727,0.00,25.45,R,Alliance Automotive UK CV LTD,No
Http://opendatacommunities.org/id/metropolitan-district-council/leeds,Leeds City Council,28/02/2023,Resources,Commercial Services,Transport,Vehicle Spares,345,16/02/2023,2302-00728,0.00,208.74,R,Alliance Automotive UK CV LTD,No
Http://opendatacommunities.org/id/metropolitan-district-council/leeds,Leeds City Council,28/02/2023,Resources,Commercial Services,Transport,Vehicle Spares,345,16/02/2023,2302-00729,0.00,135.66,R,Alliance Automotive UK CV LTD,No
Http://opendatacommunities.org/id/metropolitan-district-council/leeds,Leeds City Council,28/02/2023,Resources,Commercial Services,Transport,Vehicle Spares,345,16/02/2023,2302-00730,0.00,135.66,R,Alliance Automotive UK CV LTD,No
Http://opendatacommunities.org/id/metropolitan-district-council/leeds,Leeds City Council,28/02/2023,Resources,Commercial Services,Transport,Vehicle Spares,345,16/02/2023,2302-00731,0.00,722.42,R,Alliance Automotive UK CV LTD,No
Http://opendatacommunities.org/id/metropolitan-district-council/leeds,Leeds City Council,28/02/2023,Resources,Commercial Services,Transport,Vehicle Spares,345,16/02/2023,2302-00732,0.00,6.92,R,Alliance Automotive UK CV LTD,No
Http://opendatacommunities.org/id/metropolitan-district-council/leeds,Leeds City Council,28/02/2023,Resources,Commercial Services,Transport,Vehicle Spares,345,16/02/2023,2302-00733,0.00,787.05,R,Alliance Automotive UK CV LTD,No
Http://opendatacommunities.org/id/metropolitan-district-council/leeds,Leeds City Council,28/02/2023,Resources,Commercial Services,Transport,Vehicle Spares,345,16/02/2023,2302-00734,0.00,113.38,R,Alliance Automotive UK CV LTD,No
Http://opendatacommunities.org/id/metropolitan-district-council/leeds,Leeds City Council,28/02/2023,Resources,Commercial Services,Transport,Vehicle Spares,345,16/02/2023,2302-00735,0.00,106.77,R,Alliance Automotive UK CV LTD,No
Http://opendatacommunities.org/id/metropolitan-district-council/leeds,Leeds City Council,28/02/2023,Resources,Commercial Services,Transport,Vehicle Spares,345,16/02/2023,2302-00736,0.00,692.96,R,Alliance Automotive UK CV LTD,No
Http://opendatacommunities.org/id/metropolitan-district-council/leeds,Leeds City Council,28/02/2023,Resources,Commercial Services,Transport,Vehicle Spares,345,16/02/2023,2302-00737,0.00,364.32,R,Alliance Automotive UK CV LTD,No
Http://opendatacommunities.org/id/metropolitan-district-council/leeds,Leeds City Council,28/02/2023,Resources,Commercial Services,Transport,Vehicle Spares,345,16/02/2023,2302-00738,0.00,43.83,R,Alliance Automotive UK CV LTD,No
Http://opendatacommunities.org/id/metropolitan-district-council/leeds,Leeds City Council,28/02/2023,Resources,Commercial Services,Transport,Vehicle Spares,345,16/02/2023,2302-00739,0.00,6.92,R,Alliance Automotive UK CV LTD,No
Http://opendatacommunities.org/id/metropolitan-district-council/leeds,Leeds City Council,28/02/2023,Resources,Commercial Services,Transport,Vehicle Spares,345,16/02/2023,2302-00740,0.00,11.69,R,Alliance Automotive UK CV LTD,No
Http://opendatacommunities.org/id/metropolitan-district-council/leeds,Leeds City Council,28/02/2023,Resources,Commercial Services,Transport,Vehicle Spares,345,16/02/2023,2302-00741,0.00,184.14,R,Alliance Automotive UK CV LTD,No
Http://opendatacommunities.org/id/metropolitan-district-council/leeds,Leeds City Council,28/02/2023,Resources,Commercial Services,Transport,Vehicle Spares,345,16/02/2023,2302-00742,0.00,173.12,R,Alliance Automotive UK CV LTD,No
Http://opendatacommunities.org/id/metropolitan-district-council/leeds,Leeds City Council,28/02/2023,Resources,Commercial Services,Transport,Vehicle Spares,345,16/02/2023,2302-00743,0.00,24.74,R,Alliance Automotive UK CV LTD,No
Http://opendatacommunities.org/id/metropolitan-district-council/leeds,Leeds City Council,28/02/2023,Resources,Commercial Services,Transport,Vehicle Spares,345,16/02/2023,2302-00744,0.00,53.02,R,Alliance Automotive UK CV LTD,No
Http://opendatacommunities.org/id/metropolitan-district-council/leeds,Leeds City Council,28/02/2023,Resources,Commercial Services,Transport,Vehicle Spares,345,16/02/2023,2302-00745,0.00,33.11,R,Alliance Automotive UK CV LTD,No
Http://opendatacommunities.org/id/metropolitan-district-council/leeds,Leeds City Council,28/02/2023,Resources,Commercial Services,Transport,Vehicle Spares,345,17/02/2023,2302-00746,0.00,-135.66,R,Alliance Automotive UK CV LTD,No
Http://opendatacommunities.org/id/metropolitan-district-council/leeds,Leeds City Council,28/02/2023,Resources,Commercial Services,Transport,Vehicle Spares,345,17/02/2023,2302-00747,0.00,-59.76,R,Alliance Automotive UK CV LTD,No
Http://opendatacommunities.org/id/metropolitan-district-council/leeds,Leeds City Council,28/02/2023,Resources,Commercial Services,Transport,Vehicle Spares,345,17/02/2023,2302-00748,0.00,-59.02,R,Alliance Automotive UK CV LTD,No
Http://opendatacommunities.org/id/metropolitan-district-council/leeds,Leeds City Council,28/02/2023,Resources,Commercial Services,Transport,Vehicle Spares,345,17/02/2023,2302-00749,0.00,-150.48,R,Alliance Automotive UK CV LTD,No
Http://opendatacommunities.org/id/metropolitan-district-council/leeds,Leeds City Council,28/02/2023,Resources,Commercial Services,Transport,Vehicle Spares,345,17/02/2023,2302-00750,0.00,21.54,R,Alliance Automotive UK CV LTD,No
Http://opendatacommunities.org/id/metropolitan-district-council/leeds,Leeds City Council,28/02/2023,Resources,Commercial Services,Transport,Vehicle Spares,345,17/02/2023,2302-00751,0.00,180.74,R,Alliance Automotive UK CV LTD,No
Http://opendatacommunities.org/id/metropolitan-district-council/leeds,Leeds City Council,28/02/2023,Resources,Commercial Services,Transport,Vehicle Spares,345,17/02/2023,2302-00752,0.00,62.55,R,Alliance Automotive UK CV LTD,No
Http://opendatacommunities.org/id/metropolitan-district-council/leeds,Leeds City Council,28/02/2023,Resources,Commercial Services,Transport,Vehicle Spares,345,17/02/2023,2302-00753,0.00,160.29,R,Alliance Automotive UK CV LTD,No
Http://opendatacommunities.org/id/metropolitan-district-council/leeds,Leeds City Council,28/02/2023,Resources,Commercial Services,Transport,Vehicle Spares,345,17/02/2023,2302-00754,0.00,1530.10,R,Alliance Automotive UK CV LTD,No
Http://opendatacommunities.org/id/metropolitan-district-council/leeds,Leeds City Council,28/02/2023,Resources,Commercial Services,Transport,Vehicle Spares,345,17/02/2023,2302-00755,0.00,185.57,R,Alliance Automotive UK CV LTD,No
Http://opendatacommunities.org/id/metropolitan-district-council/leeds,Leeds City Council,28/02/2023,Resources,Commercial Services,Transport,Vehicle Spares,345,17/02/2023,2302-00756,0.00,329.26,R,Alliance Automotive UK CV LTD,No
Http://opendatacommunities.org/id/metropolitan-district-council/leeds,Leeds City Council,28/02/2023,Resources,Commercial Services,Transport,Vehicle Spares,345,17/02/2023,2302-00757,0.00,102.47,R,Alliance Automotive UK CV LTD,No
Http://opendatacommunities.org/id/metropolitan-district-council/leeds,Leeds City Council,28/02/2023,Resources,Commercial Services,Transport,Vehicle Spares,345,17/02/2023,2302-00758,0.00,61.72,R,Alliance Automotive UK CV LTD,No
Http://opendatacommunities.org/id/metropolitan-district-council/leeds,Leeds City Council,28/02/2023,Resources,Commercial Services,Transport,Vehicle Spares,345,17/02/2023,2302-00759,0.00,5.56,R,Alliance Automotive UK CV LTD,No
Http://opendatacommunities.org/id/metropolitan-district-council/leeds,Leeds City Council,28/02/2023,Resources,Commercial Services,Transport,Vehicle Spares,345,17/02/2023,2302-00760,0.00,78.41,R,Alliance Automotive UK CV LTD,No
Http://opendatacommunities.org/id/metropolitan-district-council/leeds,Leeds City Council,28/02/2023,Resources,Commercial Services,Transport,Vehicle Spares,345,17/02/2023,2302-00761,0.00,46.34,R,Alliance Automotive UK CV LTD,No
Http://opendatacommunities.org/id/metropolitan-district-council/leeds,Leeds City Council,28/02/2023,Resources,Commercial Services,Transport,Vehicle Spares,345,17/02/2023,2302-00762,0.00,56.08,R,Alliance Automotive UK CV LTD,No
Http://opendatacommunities.org/id/metropolitan-district-council/leeds,Leeds City Council,28/02/2023,Resources,Commercial Services,Transport,Vehicle Spares,345,17/02/2023,2302-00763,0.00,280.14,R,Alliance Automotive UK CV LTD,No
Http://opendatacommunities.org/id/metropolitan-district-council/leeds,Leeds City Council,28/02/2023,Resources,Commercial Services,Transport,Vehicle Spares,345,17/02/2023,2302-00764,0.00,160.60,R,Alliance Automotive UK CV LTD,No
Http://opendatacommunities.org/id/metropolitan-district-council/leeds,Leeds City Council,28/02/2023,Resources,Commercial Services,Transport,Vehicle Spares,345,17/02/2023,2302-00765,0.00,20.50,R,Alliance Automotive UK CV LTD,No
Http://opendatacommunities.org/id/metropolitan-district-council/leeds,Leeds City Council,28/02/2023,Resources,Commercial Services,Transport,Vehicle Spares,345,17/02/2023,2302-00766,0.00,22.61,R,Alliance Automotive UK CV LTD,No
Http://opendatacommunities.org/id/metropolitan-district-council/leeds,Leeds City Council,28/02/2023,Resources,Commercial Services,Transport,Vehicle Spares,345,17/02/2023,2302-00767,0.00,85.33,R,Alliance Automotive UK CV LTD,No
Http://opendatacommunities.org/id/metropolitan-district-council/leeds,Leeds City Council,28/02/2023,Resources,Commercial Services,Transport,Vehicle Spares,345,17/02/2023,2302-00768,0.00,31.37,R,Alliance Automotive UK CV LTD,No
Http://opendatacommunities.org/id/metropolitan-district-council/leeds,Leeds City Council,28/02/2023,Resources,Commercial Services,Transport,Vehicle Spares,345,17/02/2023,2302-00769,0.00,1108.27,R,Alliance Automotive UK CV LTD,No
Http://opendatacommunities.org/id/metropolitan-district-council/leeds,Leeds City Council,28/02/2023,Resources,Commercial Services,Transport,Vehicle Spares,345,17/02/2023,2302-00770,0.00,167.65,R,Alliance Automotive UK CV LTD,No
Http://opendatacommunities.org/id/metropolitan-district-council/leeds,Leeds City Council,28/02/2023,Resources,Commercial Services,Transport,Vehicle Spares,345,17/02/2023,2302-00771,0.00,793.04,R,Alliance Automotive UK CV LTD,No
Http://opendatacommunities.org/id/metropolitan-district-council/leeds,Leeds City Council,28/02/2023,Resources,Commercial Services,Transport,Vehicle Spares,345,17/02/2023,2302-00772,0.00,69.47,R,Alliance Automotive UK CV LTD,No
Http://opendatacommunities.org/id/metropolitan-district-council/leeds,Leeds City Council,28/02/2023,Resources,Commercial Services,Transport,Vehicle Spares,345,17/02/2023,2302-00773,0.00,202.80,R,Alliance Automotive UK CV LTD,No
Http://opendatacommunities.org/id/metropolitan-district-council/leeds,Leeds City Council,28/02/2023,Resources,Commercial Services,Transport,Vehicle Spares,345,17/02/2023,2302-00774,0.00,78.21,R,Alliance Automotive UK CV LTD,No
Http://opendatacommunities.org/id/metropolitan-district-council/leeds,Leeds City Council,28/02/2023,Resources,Commercial Services,Transport,Vehicle Spares,345,17/02/2023,2302-00775,0.00,40.05,R,Alliance Automotive UK CV LTD,No
Http://opendatacommunities.org/id/metropolitan-district-council/leeds,Leeds City Council,28/02/2023,Resources,Commercial Services,Transport,Vehicle Spares,345,17/02/2023,2302-00776,0.00,187.11,R,Alliance Automotive UK CV LTD,No
Http://opendatacommunities.org/id/metropolitan-district-council/leeds,Leeds City Council,28/02/2023,Resources,Commercial Services,Transport,Vehicle Spares,345,17/02/2023,2302-00777,0.00,1722.60,R,Alliance Automotive UK CV LTD,No
Http://opendatacommunities.org/id/metropolitan-district-council/leeds,Leeds City Council,28/02/2023,Resources,Commercial Services,Transport,Vehicle Spares,345,17/02/2023,2302-00778,0.00,370.00,R,Alliance Automotive UK CV LTD,No
Http://opendatacommunities.org/id/metropolitan-district-council/leeds,Leeds City Council,28/02/2023,Resources,Commercial Services,Transport,Vehicle Spares,345,17/02/2023,2302-00779,0.00,784.08,R,Alliance Automotive UK CV LTD,No
Http://opendatacommunities.org/id/metropolitan-district-council/leeds,Leeds City Council,28/02/2023,Resources,Commercial Services,Transport,Vehicle Spares,345,17/02/2023,2302-00780,0.00,15.29,R,Alliance Automotive UK CV LTD,No
Http://opendatacommunities.org/id/metropolitan-district-council/leeds,Leeds City Council,28/02/2023,Resources,Commercial Services,Transport,Vehicle Spares,345,17/02/2023,2302-00781,0.00,544.50,R,Alliance Automotive UK CV LTD,No
Http://opendatacommunities.org/id/metropolitan-district-council/leeds,Leeds City Council,28/02/2023,Resources,Commercial Services,Transport,Vehicle Spares,345,23/02/2023,2302-00782,0.00,-32.47,R,Alliance Automotive UK CV LTD,No
Http://opendatacommunities.org/id/metropolitan-district-council/leeds,Leeds City Council,28/02/2023,Resources,Commercial Services,Transport,Vehicle Spares,345,23/02/2023,2302-00783,0.00,9.77,R,Alliance Automotive UK CV LTD,No
Http://opendatacommunities.org/id/metropolitan-district-council/leeds,Leeds City Council,28/02/2023,Resources,Commercial Services,Transport,Vehicle Spares,345,23/02/2023,2302-00784,0.00,167.65,R,Alliance Automotive UK CV LTD,No
Http://opendatacommunities.org/id/metropolitan-district-council/leeds,Leeds City Council,28/02/2023,Resources,Commercial Services,Transport,Vehicle Spares,345,23/02/2023,2302-00785,0.00,176.39,R,Alliance Automotive UK CV LTD,No
Http://opendatacommunities.org/id/metropolitan-district-council/leeds,Leeds City Council,28/02/2023,Resources,Commercial Services,Transport,Vehicle Spares,345,23/02/2023,2302-00786,0.00,79.19,R,Alliance Automotive UK CV LTD,No
Http://opendatacommunities.org/id/metropolitan-district-council/leeds,Leeds City Council,28/02/2023,Resources,Commercial Services,Transport,Vehicle Spares,345,23/02/2023,2302-00787,0.00,986.38,R,Alliance Automotive UK CV LTD,No
Http://opendatacommunities.org/id/metropolitan-district-council/leeds,Leeds City Council,28/02/2023,Resources,Commercial Services,Transport,Vehicle Spares,345,23/02/2023,2302-00788,0.00,403.11,R,Alliance Automotive UK CV LTD,No
Http://opendatacommunities.org/id/metropolitan-district-council/leeds,Leeds City Council,28/02/2023,Resources,Commercial Services,Transport,Vehicle Spares,345,23/02/2023,2302-00789,0.00,206.00,R,Alliance Automotive UK CV LTD,No
Http://opendatacommunities.org/id/metropolitan-district-council/leeds,Leeds City Council,28/02/2023,Resources,Commercial Services,Transport,Vehicle Spares,345,23/02/2023,2302-00790,0.00,29.36,R,Alliance Automotive UK CV LTD,No
Http://opendatacommunities.org/id/metropolitan-district-council/leeds,Leeds City Council,28/02/2023,Resources,Commercial Services,Transport,Vehicle Spares,345,23/02/2023,2302-00791,0.00,45.27,R,Alliance Automotive UK CV LTD,No
Http://opendatacommunities.org/id/metropolitan-district-council/leeds,Leeds City Council,28/02/2023,Resources,Commercial Services,Transport,Vehicle Spares,345,23/02/2023,2302-00792,0.00,32.11,R,Alliance Automotive UK CV LTD,No
Http://opendatacommunities.org/id/metropolitan-district-council/leeds,Leeds City Council,28/02/2023,Resources,Commercial Services,Transport,Vehicle Spares,345,23/02/2023,2302-00793,0.00,35.01,R,Alliance Automotive UK CV LTD,No
Http://opendatacommunities.org/id/metropolitan-district-council/leeds,Leeds City Council,28/02/2023,Resources,Commercial Services,Transport,Vehicle Spares,345,23/02/2023,2302-00794,0.00,61.69,R,Alliance Automotive UK CV LTD,No
Http://opendatacommunities.org/id/metropolitan-district-council/leeds,Leeds City Council,28/02/2023,Resources,Commercial Services,Transport,Vehicle Spares,345,23/02/2023,2302-00795,0.00,13.55,R,Alliance Automotive UK CV LTD,No
Http://opendatacommunities.org/id/metropolitan-district-council/leeds,Leeds City Council,28/02/2023,Resources,Commercial Services,Transport,Vehicle Spares,345,23/02/2023,2302-00796,0.00,10840.50,R,Alliance Automotive UK CV LTD,No
Http://opendatacommunities.org/id/metropolitan-district-council/leeds,Leeds City Council,28/02/2023,Resources,Commercial Services,Transport,Vehicle Spares,345,23/02/2023,2302-00797,0.00,295.02,R,Alliance Automotive UK CV LTD,No
Http://opendatacommunities.org/id/metropolitan-district-council/leeds,Leeds City Council,28/02/2023,Resources,Commercial Services,Transport,Vehicle Spares,345,23/02/2023,2302-00798,0.00,122.32,R,Alliance Automotive UK CV LTD,No
Http://opendatacommunities.org/id/metropolitan-district-council/leeds,Leeds City Council,28/02/2023,Resources,Commercial Services,Transport,Vehicle Spares,345,23/02/2023,2302-00799,0.00,666.18,R,Alliance Automotive UK CV LTD,No
Http://opendatacommunities.org/id/metropolitan-district-council/leeds,Leeds City Council,28/02/2023,Resources,Commercial Services,Transport,Vehicle Spares,345,23/02/2023,2302-00800,0.00,35.31,R,Alliance Automotive UK CV LTD,No
Http://opendatacommunities.org/id/metropolitan-district-council/leeds,Leeds City Council,28/02/2023,Resources,Commercial Services,Transport,Vehicle Spares,345,23/02/2023,2302-00801,0.00,86.65,R,Alliance Automotive UK CV LTD,No
Http://opendatacommunities.org/id/metropolitan-district-council/leeds,Leeds City Council,28/02/2023,Resources,Commercial Services,Transport,Vehicle Spares,345,23/02/2023,2302-00802,0.00,173.75,R,Alliance Automotive UK CV LTD,No
Http://opendatacommunities.org/id/metropolitan-district-council/leeds,Leeds City Council,28/02/2023,Resources,Commercial Services,Transport,Vehicle Spares,345,23/02/2023,2302-00803,0.00,514.11,R,Alliance Automotive UK CV LTD,No
Http://opendatacommunities.org/id/metropolitan-district-council/leeds,Leeds City Council,28/02/2023,Resources,Commercial Services,Transport,Vehicle Spares,345,23/02/2023,2302-00804,0.00,52.81,R,Alliance Automotive UK CV LTD,No
Http://opendatacommunities.org/id/metropolitan-district-council/leeds,Leeds City Council,28/02/2023,Resources,Commercial Services,Transport,Vehicle Spares,345,23/02/2023,2302-00805,0.00,32.87,R,Alliance Automotive UK CV LTD,No
Http://opendatacommunities.org/id/metropolitan-district-council/leeds,Leeds City Council,28/02/2023,Resources,Commercial Services,Transport,Vehicle Spares,345,23/02/2023,2302-00806,0.00,357.24,R,Alliance Automotive UK CV LTD,No
Http://opendatacommunities.org/id/metropolitan-district-council/leeds,Leeds City Council,28/02/2023,Resources,Commercial Services,Transport,Vehicle Spares,345,23/02/2023,2302-00807,0.00,370.96,R,Alliance Automotive UK CV LTD,No
Http://opendatacommunities.org/id/metropolitan-district-council/leeds,Leeds City Council,28/02/2023,Resources,Commercial Services,Transport,Vehicle Spares,345,23/02/2023,2302-00808,0.00,174.15,R,Alliance Automotive UK CV LTD,No
Http://opendatacommunities.org/id/metropolitan-district-council/leeds,Leeds City Council,28/02/2023,Resources,Commercial Services,Transport,Vehicle Spares,345,23/02/2023,2302-00809,0.00,187.11,R,Alliance Automotive UK CV LTD,No
Http://opendatacommunities.org/id/metropolitan-district-council/leeds,Leeds City Council,28/02/2023,Resources,Commercial Services,Transport,Vehicle Spares,345,23/02/2023,2302-00810,0.00,356.31,R,Alliance Automotive UK CV LTD,No
